Body Name,Service Area,Expenses Type,Invoice Payment Date,Transaction Number,Supplier Name,Net Amount
Manchester City Council,Childrens & Education Services,Payments for services,01-Dec-22,5105846849,The Together Trust,"63,680.65"
Manchester City Council,Childrens & Education Services,Payments for services,01-Dec-22,5105846850,The Together Trust,"49,713.84"
Manchester City Council,Childrens & Education Services,Payments for services,01-Dec-22,5105846858,The Together Trust,"6,243.00"
Manchester City Council,Childrens & Education Services,Payments for services,01-Dec-22,5105846852,The Together Trust,"3,972.73"
Manchester City Council,Childrens & Education Services,Payments for services,01-Dec-22,5105846856,The Together Trust,"3,972.73"
Manchester City Council,Childrens & Education Services,Payments for services,01-Dec-22,5105846854,The Together Trust,"3,878.73"
Manchester City Council,Childrens & Education Services,Payments for services,12-Dec-22,5105848433,The Together Trust,"4,426.48"
Manchester City Council,Childrens & Education Services,Payments for services,12-Dec-22,5105848430,The Together Trust,"2,023.42"
Manchester City Council,Childrens & Education Services,Payments for services,12-Dec-22,5105848432,The Together Trust,"1,060.15"
Manchester City Council,Childrens & Education Services,Payments for services,12-Dec-22,5105848431,The Together Trust,788.95
Manchester City Council,Housing General Fund,Building Works,05-Dec-22,1907950784,Pollock Lifts Ltd,"14,159.00"
Manchester City Council,Housing General Fund,Building Works,21-Dec-22,1907968651,Pollock Lifts Ltd,"19,413.00"
Manchester City Council,Housing General Fund,Building Works,21-Dec-22,1907968644,Pollock Lifts Ltd,"11,858.00"
Manchester City Council,Adult Social Care,Supporting People Payments,09-Dec-22,5105848192,Praxis Care Group,"6,013.67"
Manchester City Council,Regeneration Finance,Taxi Vehicle Materia,13-Dec-22,5105848636,VIP-System Ltd,"3,364.86"
Manchester City Council,Regeneration Finance,Taxi Vehicle Materia,31-Dec-22,5105850743,VIP-System Ltd,"1,783.00"
Manchester City Council,Manchester Leisure,Other Insurance,23-Dec-22,1907963873,Aon Ltd,"8,966.56"
Manchester City Council,Chief Executives,Printing,31-Dec-22,5105850732,Mail Solutions,"1,824.00"
Manchester City Council,Childrens & Education Services,Transport Coach Hire,12-Dec-22,5105848414,T/A Beresford Travel,"3,105.00"
Manchester City Council,Childrens & Education Services,Transport Coach Hire,31-Dec-22,5105850626,T/A Beresford Travel,"-1,620.00"
Manchester City Council,Adult Social Care,Third party payments relating to Voluntary Organisations,21-Dec-22,5105850023,The Shaw Centre,"15,638.12"
Manchester City Council,Adult Social Care,Supporting People Payments,01-Dec-22,5105846816,People First Housing Association,"13,833.27"
Manchester City Council,Childrens & Education Services,I T Provision,12-Dec-22,5105847869,Caci Ltd,"4,150.00"
Manchester City Council,Adult Social Care,Supporting People Payments,19-Dec-22,5105849648,Housing 21,"2,850.00"
Manchester City Council,Corporate Services,Professional fees,13-Dec-22,5105848062,Post Office Ltd,"2,026.60"
Manchester City Council,Corporate Services,Postage,08-Dec-22,5105847703,Royal Mail Group Plc,"11,917.77"
Manchester City Council,Corporate Services,Postage,08-Dec-22,5105847912,Royal Mail Group Plc,"9,298.33"
Manchester City Council,Chief Executives,Postage,15-Dec-22,5105849198,Royal Mail Group Plc,"28,306.88"
Manchester City Council,Corporate Services,Postage,15-Dec-22,5105848015,Royal Mail Group Plc,"-4,770.09"
Manchester City Council,Corporate Services,Postage,23-Dec-22,5105850506,Royal Mail Group Plc,"12,078.95"
Manchester City Council,Regeneration Finance,Postage,23-Dec-22,5105850567,Royal Mail,825.00
Manchester City Council,Adult Social Care,Third party payments relating to Voluntary Organisations,12-Dec-22,5105846953,Nacro,"104,166.67"
Manchester City Council,Adult Social Care,Third party payments relating to Voluntary Organisations,12-Dec-22,5105848337,Nacro,"13,139.33"
Manchester City Council,Adult Social Care,Personal needs of client,02-Dec-22,5105846932,Tunstall Healthcare (UK) Ltd,"1,900.00"
Manchester City Council,Adult Social Care,Personal needs of client,08-Dec-22,5105847779,Tunstall Healthcare (UK) Ltd,"3,800.00"
Manchester City Council,Adult Social Care,Personal needs of client,16-Dec-22,5105848014,Tunstall Healthcare (UK) Ltd,"5,700.00"
Manchester City Council,Childrens & Education Services,Agency staff provision,05-Dec-22,5105846867,Gatenby Sanderson,"4,560.00"
Manchester City Council,Regeneration Finance,Rents,15-Dec-22,1907955791,Asda Stores Ltd (Leeds),"12,500.00"
Manchester City Council,Environment and Operations,Works and associated costs for Land and Buildings,05-Dec-22,5105847251,Eversheds Llp,"2,130.00"
Manchester City Council,Regeneration Finance,Legal Fees,19-Dec-22,5105849698,Eversheds Llp,"10,948.50"
Manchester City Council,Libraries and Theatres,Works and associated costs for Land and Buildings,20-Dec-22,1907963938,Eversheds Llp,"8,303.90"
Manchester City Council,Adult Social Care,Personal needs of client,12-Dec-22,5105847960,Prism Medical UK Carefree Division,817.61
Manchester City Council,Adult Social Care,Personal needs of client,19-Dec-22,5105849603,Prism Medical UK Carefree Division,"1,436.31"
Manchester City Council,Adult Social Care,Personal needs of client,19-Dec-22,5105849602,Prism Medical UK Carefree Division,814.78
Manchester City Council,Adult Social Care,Personal needs of client,31-Dec-22,5105850795,Prism Medical UK Carefree Division,"1,495.72"
Manchester City Council,Adult Social Care,Personal needs of client,31-Dec-22,5105847194,Prism Medical UK Carefree Division,871.67
Manchester City Council,Housing Revenue Account,Council Dwelling Adaptations,16-Dec-22,5105849407,DLP Services (Northern) Ltd,"15,779.83"
Manchester City Council,Manchester Leisure,Grant and subscriptions awarded,23-Dec-22,5105849792,Wythenshawe Community Initiative,"2,000.00"
Manchester City Council,Manchester Leisure,Payments to Sub-Contractors,02-Dec-22,5105846984,Redacted Personal Information,"9,326.00"
Manchester City Council,Childrens & Education Services,Transport Coach Hire,14-Dec-22,5105849089,Hastings Private Hire,"15,577.00"
Manchester City Council,Childrens & Education Services,Transport Coach Hire,31-Dec-22,5105850538,Hastings Private Hire,"10,814.00"
Manchester City Council,Corporate Services,Licences Purchase,20-Dec-22,5105849931,Blazie,"7,610.00"
Manchester City Council,Regeneration Finance,Subsistence and Conference Expenses,05-Dec-22,5105847260,Assessment & Qualifications Allianc,508.95
Manchester City Council,Chief Executives,Agency staff provision,14-Dec-22,5105848890,NES UK Limited,"24,589.00"
Manchester City Council,Regeneration Finance,Removal and Storage of Furniture,09-Dec-22,5105848165,BCL,961.00
Manchester City Council,Corporate Services,Works and associated costs for Land and Buildings,12-Dec-22,5105848005,BCL,"2,480.00"
Manchester City Council,Highways Services,Purchase of stores for re-distribution,14-Dec-22,5105848001,Instarmac Group Ltd,"2,867.20"
Manchester City Council,Highways Services,Purchase of stores for re-distribution,15-Dec-22,5105848834,Instarmac Group Ltd,"3,088.28"
Manchester City Council,Highways Services,Purchase of stores for re-distribution,21-Dec-22,5105849731,Instarmac Group Ltd,616.20
Manchester City Council,Chief Executives,Advertising,15-Dec-22,5105849187,Haymarket Publishing Services Ltd,795.00
Manchester City Council,Manchester Leisure,Security,16-Dec-22,5105849471,Chubb  Systems Limited,649.92
Manchester City Council,Manchester Leisure,Security,16-Dec-22,5105849472,Chubb  Systems Limited,649.92
Manchester City Council,Adult Social Care,Refuse Collection,13-Dec-22,5105848661,Initial Medical Services,"2,143.77"
Manchester City Council,Chief Executives,CRB Fees,14-Dec-22,5105849080,Disclosure & Barring Service,"20,268.00"
Manchester City Council,Corporate Services,Payments to Contractors,19-Dec-22,5105849464,NSL Ltd,"316,069.57"
Manchester City Council,Corporate Services,Payments to Contractors,19-Dec-22,5105849462,NSL Ltd,"71,862.78"
Manchester City Council,Corporate Services,Payments to Contractors,19-Dec-22,5105849463,NSL Ltd,"57,296.47"
Manchester City Council,Corporate Services,Payments to Contractors,19-Dec-22,5105849465,NSL Ltd,"33,661.98"
Manchester City Council,Corporate Services,Cash Collection,20-Dec-22,5105849799,NSL Ltd,"5,757.39"
Manchester City Council,Manchester Leisure,Payments to Sub-Contractors,21-Dec-22,5105849999,NSL Ltd,"4,022.80"
Manchester City Council,Adult Social Care,Equipment,31-Dec-22,5105847906,Sarabec Limited,898.70
Manchester City Council,Childrens & Education Services,Electricity,15-Dec-22,1907963821,Total Gas & Power,502.70
Manchester City Council,Manchester Leisure,Electricity,15-Dec-22,1907963110,Scottish & Southern Energy Plc,"8,051.51"
Manchester City Council,Manchester Leisure,Electricity,15-Dec-22,1907963324,Scottish & Southern Energy Plc,"4,514.42"
Manchester City Council,Manchester Leisure,Electricity,15-Dec-22,1907963225,Scottish & Southern Energy Plc,"3,871.33"
Manchester City Council,Childrens & Education Services,Electricity,15-Dec-22,1907963179,Scottish & Southern Energy Plc,"3,578.94"
Manchester City Council,Manchester Leisure,Electricity,15-Dec-22,1907963183,Scottish & Southern Energy Plc,"3,434.78"
Manchester City Council,Regeneration Finance,Electricity,15-Dec-22,1907963299,Scottish & Southern Energy Plc,"3,380.49"
Manchester City Council,Regeneration Finance,Electricity,15-Dec-22,1907963395,Scottish & Southern Energy Plc,"3,351.31"
Manchester City Council,Manchester Leisure,Electricity,15-Dec-22,1907963182,Scottish & Southern Energy Plc,"3,069.26"
Manchester City Council,Regeneration Finance,Electricity,15-Dec-22,1907963329,Scottish & Southern Energy Plc,"3,066.34"
Manchester City Council,Highways Services,Electricity,15-Dec-22,1907963418,Scottish & Southern Energy Plc,"2,567.65"
Manchester City Council,Regeneration Finance,Electricity,15-Dec-22,1907963515,Scottish & Southern Energy Plc,"2,490.20"
Manchester City Council,Manchester Leisure,Electricity,15-Dec-22,1907963135,Scottish & Southern Energy Plc,"2,253.36"
Manchester City Council,Highways Services,Electricity,15-Dec-22,1907963378,Scottish & Southern Energy Plc,"2,237.08"
Manchester City Council,Manchester Leisure,Electricity,15-Dec-22,1907963317,Scottish & Southern Energy Plc,"2,201.81"
Manchester City Council,Manchester Leisure,Electricity,15-Dec-22,1907963111,Scottish & Southern Energy Plc,"2,197.03"
Manchester City Council,Regeneration Finance,Electricity,15-Dec-22,1907963205,Scottish & Southern Energy Plc,"2,139.59"
Manchester City Council,Regeneration Finance,Electricity,15-Dec-22,1907963117,Scottish & Southern Energy Plc,"2,095.25"
Manchester City Council,Regeneration Finance,Electricity,15-Dec-22,1907963518,Scottish & Southern Energy Plc,"2,079.89"
Manchester City Council,Manchester Leisure,Electricity,15-Dec-22,1907963184,Scottish & Southern Energy Plc,"2,063.89"
Manchester City Council,Regeneration Finance,Electricity,15-Dec-22,1907963254,Scottish & Southern Energy Plc,"2,028.70"
Manchester City Council,Regeneration Finance,Electricity,15-Dec-22,1907963153,Scottish & Southern Energy Plc,"1,971.14"
Manchester City Council,Regeneration Finance,Electricity,15-Dec-22,1907963401,Scottish & Southern Energy Plc,"1,919.89"
Manchester City Council,Manchester Leisure,Electricity,15-Dec-22,1907963122,Scottish & Southern Energy Plc,"1,893.66"
Manchester City Council,Adult Social Care,Electricity,15-Dec-22,1907963177,Scottish & Southern Energy Plc,"1,875.76"
Manchester City Council,Manchester Leisure,Electricity,15-Dec-22,1907963180,Scottish & Southern Energy Plc,"1,822.22"
Manchester City Council,Adult Social Care,Electricity,15-Dec-22,1907963002,Scottish & Southern Energy Plc,"1,749.92"
Manchester City Council,Manchester Leisure,Electricity,15-Dec-22,1907963041,Scottish & Southern Energy Plc,"1,745.12"
Manchester City Council,Regeneration Finance,Electricity,15-Dec-22,1907963520,Scottish & Southern Energy Plc,"1,743.72"
Manchester City Council,Manchester Leisure,Electricity,15-Dec-22,1907963318,Scottish & Southern Energy Plc,"1,716.65"
Manchester City Council,Manchester Leisure,Electricity,15-Dec-22,1907963093,Scottish & Southern Energy Plc,"1,676.98"
Manchester City Council,Regeneration Finance,Electricity,15-Dec-22,1907963255,Scottish & Southern Energy Plc,"1,593.49"
Manchester City Council,Regeneration Finance,Electricity,15-Dec-22,1907963168,Scottish & Southern Energy Plc,"1,569.12"
Manchester City Council,Regeneration Finance,Electricity,15-Dec-22,1907963136,Scottish & Southern Energy Plc,"1,477.97"
Manchester City Council,Regeneration Finance,Electricity,15-Dec-22,1907963517,Scottish & Southern Energy Plc,"1,472.29"
Manchester City Council,Regeneration Finance,Electricity,15-Dec-22,1907963284,Scottish & Southern Energy Plc,"1,460.97"
Manchester City Council,Manchester Leisure,Electricity,15-Dec-22,1907963129,Scottish & Southern Energy Plc,"1,452.99"
Manchester City Council,Adult Social Care,Electricity,15-Dec-22,1907963065,Scottish & Southern Energy Plc,"1,443.99"
Manchester City Council,Manchester Leisure,Electricity,15-Dec-22,1907963181,Scottish & Southern Energy Plc,"1,435.05"
Manchester City Council,Adult Social Care,Electricity,15-Dec-22,1907963282,Scottish & Southern Energy Plc,"1,427.73"
Manchester City Council,Manchester Leisure,Electricity,15-Dec-22,1907963336,Scottish & Southern Energy Plc,"1,420.53"
Manchester City Council,Hospitality + Trading Services,Electricity,15-Dec-22,1907963204,Scottish & Southern Energy Plc,"1,417.09"
Manchester City Council,Regeneration Finance,Electricity,15-Dec-22,1907963114,Scottish & Southern Energy Plc,"1,405.73"
Manchester City Council,Manchester Leisure,Electricity,15-Dec-22,1907962822,Scottish & Southern Energy Plc,"1,380.70"
Manchester City Council,Adult Social Care,Electricity,15-Dec-22,1907962829,Scottish & Southern Energy Plc,"1,334.37"
Manchester City Council,Regeneration Finance,Electricity,15-Dec-22,1907963267,Scottish & Southern Energy Plc,"1,326.99"
Manchester City Council,Regeneration Finance,Electricity,15-Dec-22,1907963277,Scottish & Southern Energy Plc,"1,283.32"
Manchester City Council,Regeneration Finance,Electricity,15-Dec-22,1907963322,Scottish & Southern Energy Plc,"1,268.45"
Manchester City Council,Highways Services,Electricity,15-Dec-22,1907963377,Scottish & Southern Energy Plc,"1,250.03"
Manchester City Council,Manchester Leisure,Electricity,15-Dec-22,1907962809,Scottish & Southern Energy Plc,"1,232.95"
Manchester City Council,Manchester Leisure,Electricity,15-Dec-22,1907962884,Scottish & Southern Energy Plc,"1,194.98"
Manchester City Council,Regeneration Finance,Electricity,15-Dec-22,1907963516,Scottish & Southern Energy Plc,"1,177.39"
Manchester City Council,Regeneration Finance,Electricity,15-Dec-22,1907963193,Scottish & Southern Energy Plc,"1,165.36"
Manchester City Council,Regeneration Finance,Electricity,15-Dec-22,1907963220,Scottish & Southern Energy Plc,"1,164.25"
Manchester City Council,Regeneration Finance,Electricity,15-Dec-22,1907963285,Scottish & Southern Energy Plc,"1,158.09"
Manchester City Council,Adult Social Care,Electricity,15-Dec-22,1907963243,Scottish & Southern Energy Plc,"1,149.01"
Manchester City Council,Regeneration Finance,Electricity,15-Dec-22,1907963125,Scottish & Southern Energy Plc,"1,146.43"
Manchester City Council,Manchester Leisure,Electricity,15-Dec-22,1907963275,Scottish & Southern Energy Plc,"1,143.47"
Manchester City Council,Regeneration Finance,Electricity,15-Dec-22,1907963444,Scottish & Southern Energy Plc,"1,092.37"
Manchester City Council,Adult Social Care,Electricity,15-Dec-22,1907962764,Scottish & Southern Energy Plc,"1,067.59"
Manchester City Council,Manchester Leisure,Electricity,15-Dec-22,1907963047,Scottish & Southern Energy Plc,"1,063.32"
Manchester City Council,Manchester Leisure,Electricity,15-Dec-22,1907962763,Scottish & Southern Energy Plc,"1,058.71"
Manchester City Council,Adult Social Care,Electricity,15-Dec-22,1907963283,Scottish & Southern Energy Plc,"1,056.49"
Manchester City Council,Regeneration Finance,Electricity,15-Dec-22,1907963268,Scottish & Southern Energy Plc,"1,054.96"
Manchester City Council,Regeneration Finance,Electricity,15-Dec-22,1907963192,Scottish & Southern Energy Plc,"1,045.50"
Manchester City Council,Manchester Leisure,Electricity,15-Dec-22,1907963076,Scottish & Southern Energy Plc,"1,031.34"
Manchester City Council,Highways Services,Electricity,15-Dec-22,1907963387,Scottish & Southern Energy Plc,"1,027.68"
Manchester City Council,Regeneration Finance,Electricity,15-Dec-22,1907963278,Scottish & Southern Energy Plc,"1,021.21"
Manchester City Council,Adult Social Care,Electricity,15-Dec-22,1907963189,Scottish & Southern Energy Plc,"1,000.24"
Manchester City Council,Adult Social Care,Electricity,15-Dec-22,1907963083,Scottish & Southern Energy Plc,981.52
Manchester City Council,Manchester Leisure,Electricity,15-Dec-22,1907963213,Scottish & Southern Energy Plc,972.72
Manchester City Council,Regeneration Finance,Electricity,15-Dec-22,1907963219,Scottish & Southern Energy Plc,963.45
Manchester City Council,Manchester Leisure,Electricity,15-Dec-22,1907963434,Scottish & Southern Energy Plc,958.01
Manchester City Council,Regeneration Finance,Electricity,15-Dec-22,1907963244,Scottish & Southern Energy Plc,955.56
Manchester City Council,Regeneration Finance,Electricity,15-Dec-22,1907963306,Scottish & Southern Energy Plc,937.11
Manchester City Council,Manchester Leisure,Electricity,15-Dec-22,1907962841,Scottish & Southern Energy Plc,928.25
Manchester City Council,Manchester Leisure,Electricity,15-Dec-22,1907963236,Scottish & Southern Energy Plc,923.89
Manchester City Council,Manchester Leisure,Electricity,15-Dec-22,1907963264,Scottish & Southern Energy Plc,916.22
Manchester City Council,Manchester Leisure,Electricity,15-Dec-22,1907963276,Scottish & Southern Energy Plc,914.05
Manchester City Council,Adult Social Care,Electricity,15-Dec-22,1907963101,Scottish & Southern Energy Plc,903.79
Manchester City Council,Regeneration Finance,Electricity,15-Dec-22,1907963300,Scottish & Southern Energy Plc,890.95
Manchester City Council,Regeneration Finance,Electricity,15-Dec-22,1907963430,Scottish & Southern Energy Plc,882.89
Manchester City Council,Regeneration Finance,Electricity,15-Dec-22,1907963126,Scottish & Southern Energy Plc,878.11
Manchester City Council,Regeneration Finance,Electricity,15-Dec-22,1907963221,Scottish & Southern Energy Plc,877.23
Manchester City Council,Regeneration Finance,Electricity,15-Dec-22,1907963445,Scottish & Southern Energy Plc,874.89
Manchester City Council,Manchester Leisure,Electricity,15-Dec-22,1907962908,Scottish & Southern Energy Plc,844.38
Manchester City Council,Adult Social Care,Electricity,15-Dec-22,1907963084,Scottish & Southern Energy Plc,839.66
Manchester City Council,Adult Social Care,Electricity,15-Dec-22,1907963000,Scottish & Southern Energy Plc,834.03
Manchester City Council,Regeneration Finance,Electricity,15-Dec-22,1907963350,Scottish & Southern Energy Plc,833.52
Manchester City Council,Highways Services,Electricity,15-Dec-22,1907963388,Scottish & Southern Energy Plc,824.90
Manchester City Council,Regeneration Finance,Electricity,15-Dec-22,1907963446,Scottish & Southern Energy Plc,824.55
Manchester City Council,Adult Social Care,Electricity,15-Dec-22,1907963437,Scottish & Southern Energy Plc,797.52
Manchester City Council,Manchester Leisure,Electricity,15-Dec-22,1907963214,Scottish & Southern Energy Plc,783.09
Manchester City Council,Manchester Leisure,Electricity,15-Dec-22,1907963077,Scottish & Southern Energy Plc,776.39
Manchester City Council,Manchester Leisure,Electricity,15-Dec-22,1907963435,Scottish & Southern Energy Plc,771.63
Manchester City Council,Manchester Leisure,Electricity,15-Dec-22,1907963089,Scottish & Southern Energy Plc,757.79
Manchester City Council,Adult Social Care,Electricity,15-Dec-22,1907963079,Scottish & Southern Energy Plc,756.91
Manchester City Council,Manchester Leisure,Electricity,15-Dec-22,1907962821,Scottish & Southern Energy Plc,753.75
Manchester City Council,Manchester Leisure,Electricity,15-Dec-22,1907963265,Scottish & Southern Energy Plc,739.58
Manchester City Council,Regeneration Finance,Electricity,15-Dec-22,1907963397,Scottish & Southern Energy Plc,734.82
Manchester City Council,Manchester Leisure,Electricity,15-Dec-22,1907963048,Scottish & Southern Energy Plc,728.83
Manchester City Council,Manchester Leisure,Electricity,15-Dec-22,1907963040,Scottish & Southern Energy Plc,716.82
Manchester City Council,Adult Social Care,Electricity,15-Dec-22,1907963073,Scottish & Southern Energy Plc,710.82
Manchester City Council,Adult Social Care,Electricity,15-Dec-22,1907963060,Scottish & Southern Energy Plc,702.43
Manchester City Council,Adult Social Care,Electricity,15-Dec-22,1907963286,Scottish & Southern Energy Plc,698.42
Manchester City Council,Manchester Leisure,Electricity,15-Dec-22,1907963237,Scottish & Southern Energy Plc,698.11
Manchester City Council,Regeneration Finance,Electricity,15-Dec-22,1907963301,Scottish & Southern Energy Plc,696.03
Manchester City Council,Hospitality + Trading Services,Electricity,15-Dec-22,1907963344,Scottish & Southern Energy Plc,692.69
Manchester City Council,Regeneration Finance,Electricity,15-Dec-22,1907963431,Scottish & Southern Energy Plc,689.88
Manchester City Council,Regeneration Finance,Electricity,15-Dec-22,1907963222,Scottish & Southern Energy Plc,685.54
Manchester City Council,Manchester Leisure,Electricity,15-Dec-22,1907963164,Scottish & Southern Energy Plc,683.14
Manchester City Council,Adult Social Care,Electricity,15-Dec-22,1907963085,Scottish & Southern Energy Plc,680.38
Manchester City Council,Manchester Leisure,Electricity,15-Dec-22,1907963432,Scottish & Southern Energy Plc,673.00
Manchester City Council,Regeneration Finance,Electricity,15-Dec-22,1907963197,Scottish & Southern Energy Plc,664.71
Manchester City Council,Regeneration Finance,Electricity,15-Dec-22,1907963196,Scottish & Southern Energy Plc,664.04
Manchester City Council,Childrens & Education Services,Electricity,15-Dec-22,1907963206,Scottish & Southern Energy Plc,653.49
Manchester City Council,Adult Social Care,Electricity,15-Dec-22,1907963001,Scottish & Southern Energy Plc,652.15
Manchester City Council,Regeneration Finance,Electricity,15-Dec-22,1907963353,Scottish & Southern Energy Plc,650.66
Manchester City Council,Manchester Leisure,Electricity,15-Dec-22,1907963112,Scottish & Southern Energy Plc,650.15
Manchester City Council,Adult Social Care,Electricity,15-Dec-22,1907963440,Scottish & Southern Energy Plc,649.24
Manchester City Council,Adult Social Care,Electricity,15-Dec-22,1907963438,Scottish & Southern Energy Plc,648.42
Manchester City Council,Regeneration Finance,Electricity,15-Dec-22,1907963447,Scottish & Southern Energy Plc,644.93
Manchester City Council,Regeneration Finance,Electricity,15-Dec-22,1907963307,Scottish & Southern Energy Plc,641.72
Manchester City Council,Regeneration Finance,Electricity,15-Dec-22,1907962743,Scottish & Southern Energy Plc,638.07
Manchester City Council,Adult Social Care,Electricity,15-Dec-22,1907962901,Scottish & Southern Energy Plc,637.42
Manchester City Council,Adult Social Care,Electricity,15-Dec-22,1907962796,Scottish & Southern Energy Plc,637.14
Manchester City Council,Adult Social Care,Electricity,15-Dec-22,1907963325,Scottish & Southern Energy Plc,636.24
Manchester City Council,Chief Executives,Electricity,15-Dec-22,1907963113,Scottish & Southern Energy Plc,633.51
Manchester City Council,Regeneration Finance,Electricity,15-Dec-22,1907963132,Scottish & Southern Energy Plc,633.03
Manchester City Council,Manchester Leisure,Electricity,15-Dec-22,1907963269,Scottish & Southern Energy Plc,625.17
Manchester City Council,Manchester Leisure,Electricity,15-Dec-22,1907962888,Scottish & Southern Energy Plc,622.34
Manchester City Council,Adult Social Care,Electricity,15-Dec-22,1907963090,Scottish & Southern Energy Plc,616.63
Manchester City Council,Manchester Leisure,Electricity,15-Dec-22,1907963200,Scottish & Southern Energy Plc,615.02
Manchester City Council,Regeneration Finance,Electricity,15-Dec-22,1907963160,Scottish & Southern Energy Plc,613.99
Manchester City Council,Housing Revenue Account,Electricity,15-Dec-22,1907963262,Scottish & Southern Energy Plc,613.54
Manchester City Council,Regeneration Finance,Electricity,15-Dec-22,1907963238,Scottish & Southern Energy Plc,610.37
Manchester City Council,Regeneration Finance,Electricity,15-Dec-22,1907963373,Scottish & Southern Energy Plc,604.79
Manchester City Council,Regeneration Finance,Electricity,15-Dec-22,1907963231,Scottish & Southern Energy Plc,598.65
Manchester City Council,Adult Social Care,Electricity,15-Dec-22,1907963094,Scottish & Southern Energy Plc,597.17
Manchester City Council,Manchester Leisure,Electricity,15-Dec-22,1907963022,Scottish & Southern Energy Plc,595.05
Manchester City Council,Regeneration Finance,Electricity,15-Dec-22,1907963358,Scottish & Southern Energy Plc,593.42
Manchester City Council,Childrens & Education Services,Electricity,15-Dec-22,1907963038,Scottish & Southern Energy Plc,593.34
Manchester City Council,Adult Social Care,Electricity,15-Dec-22,1907963080,Scottish & Southern Energy Plc,592.96
Manchester City Council,Regeneration Finance,Electricity,15-Dec-22,1907963367,Scottish & Southern Energy Plc,590.59
Manchester City Council,Manchester Leisure,Electricity,15-Dec-22,1907963389,Scottish & Southern Energy Plc,585.25
Manchester City Council,Regeneration Finance,Electricity,15-Dec-22,1907963217,Scottish & Southern Energy Plc,576.95
Manchester City Council,Hospitality + Trading Services,Electricity,15-Dec-22,1907963340,Scottish & Southern Energy Plc,576.26
Manchester City Council,Childrens & Education Services,Electricity,15-Dec-22,1907963310,Scottish & Southern Energy Plc,564.83
Manchester City Council,Regeneration Finance,Electricity,15-Dec-22,1907963360,Scottish & Southern Energy Plc,563.23
Manchester City Council,Manchester Leisure,Electricity,15-Dec-22,1907962906,Scottish & Southern Energy Plc,556.42
Manchester City Council,Regeneration Finance,Electricity,15-Dec-22,1907963398,Scottish & Southern Energy Plc,552.83
Manchester City Council,Regeneration Finance,Electricity,15-Dec-22,1907963368,Scottish & Southern Energy Plc,550.81
Manchester City Council,Adult Social Care,Electricity,15-Dec-22,1907963287,Scottish & Southern Energy Plc,547.86
Manchester City Council,Regeneration Finance,Electricity,15-Dec-22,1907963227,Scottish & Southern Energy Plc,544.94
Manchester City Council,Adult Social Care,Electricity,15-Dec-22,1907963058,Scottish & Southern Energy Plc,544.29
Manchester City Council,Childrens & Education Services,Electricity,15-Dec-22,1907963258,Scottish & Southern Energy Plc,544.01
Manchester City Council,Regeneration Finance,Electricity,15-Dec-22,1907963096,Scottish & Southern Energy Plc,540.08
Manchester City Council,Manchester Leisure,Electricity,15-Dec-22,1907963165,Scottish & Southern Energy Plc,536.71
Manchester City Council,Manchester Leisure,Electricity,15-Dec-22,1907963309,Scottish & Southern Energy Plc,533.14
Manchester City Council,Manchester Leisure,Electricity,15-Dec-22,1907962983,Scottish & Southern Energy Plc,531.88
Manchester City Council,Regeneration Finance,Electricity,15-Dec-22,1907963308,Scottish & Southern Energy Plc,529.02
Manchester City Council,Childrens & Education Services,Electricity,15-Dec-22,1907963211,Scottish & Southern Energy Plc,524.31
Manchester City Council,Manchester Leisure,Electricity,15-Dec-22,1907962980,Scottish & Southern Energy Plc,517.88
Manchester City Council,Childrens & Education Services,Electricity,15-Dec-22,1907963207,Scottish & Southern Energy Plc,513.45
Manchester City Council,Manchester Leisure,Electricity,15-Dec-22,1907963201,Scottish & Southern Energy Plc,511.60
Manchester City Council,Regeneration Finance,Electricity,15-Dec-22,1907963334,Scottish & Southern Energy Plc,511.20
Manchester City Council,Adult Social Care,Electricity,15-Dec-22,1907963441,Scottish & Southern Energy Plc,510.40
Manchester City Council,Highways Services,Electricity,15-Dec-22,1907963115,Scottish & Southern Energy Plc,508.19
Manchester City Council,Adult Social Care,Electricity,15-Dec-22,1907963326,Scottish & Southern Energy Plc,504.40
Manchester City Council,Manchester Leisure,Electricity,15-Dec-22,1907963149,Scottish & Southern Energy Plc,503.58
Manchester City Council,Manchester Leisure,Electricity,15-Dec-22,1907963123,Scottish & Southern Energy Plc,502.95
Manchester City Council,Manchester Leisure,Electricity,15-Dec-22,1907962898,Scottish & Southern Energy Plc,502.79
Manchester City Council,Manchester Leisure,Electricity,15-Dec-22,1907962982,Scottish & Southern Energy Plc,502.79
Manchester City Council,Adult Social Care,Electricity,15-Dec-22,1907963005,Scottish & Southern Energy Plc,502.37
Manchester City Council,Regeneration Finance,Electricity,15-Dec-22,1907963323,Scottish & Southern Energy Plc,501.93
Manchester City Council,Adult Social Care,Electricity,15-Dec-22,1907962902,Scottish & Southern Energy Plc,501.57
Manchester City Council,Adult Social Care,Electricity,15-Dec-22,1907962797,Scottish & Southern Energy Plc,500.92
Manchester City Council,Manchester Leisure,Electricity,15-Dec-22,1907962883,Scottish & Southern Energy Plc,500.03
Manchester City Council,Adult Social Care,Electricity,15-Dec-22,1700142673,Scottish & Southern Energy Plc,-540.90
Manchester City Council,Adult Social Care,Electricity,15-Dec-22,1700142671,Scottish & Southern Energy Plc,-541.27
Manchester City Council,Manchester Leisure,Electricity,15-Dec-22,1700142532,Scottish & Southern Energy Plc,-570.82
Manchester City Council,Manchester Leisure,Electricity,15-Dec-22,1700142533,Scottish & Southern Energy Plc,-570.82
Manchester City Council,Manchester Leisure,Electricity,15-Dec-22,1700142534,Scottish & Southern Energy Plc,-570.82
Manchester City Council,Regeneration Finance,Electricity,15-Dec-22,1700142610,Scottish & Southern Energy Plc,-595.42
Manchester City Council,Manchester Leisure,Electricity,15-Dec-22,1700142562,Scottish & Southern Energy Plc,-598.01
Manchester City Council,Regeneration Finance,Electricity,15-Dec-22,1700142754,Scottish & Southern Energy Plc,-603.51
Manchester City Council,Manchester Leisure,Electricity,15-Dec-22,1700142700,Scottish & Southern Energy Plc,-610.37
Manchester City Council,Regeneration Finance,Electricity,15-Dec-22,1700142743,Scottish & Southern Energy Plc,-621.34
Manchester City Council,Adult Social Care,Electricity,15-Dec-22,1700142670,Scottish & Southern Energy Plc,-621.85
Manchester City Council,Manchester Leisure,Electricity,15-Dec-22,1700142750,Scottish & Southern Energy Plc,-628.47
Manchester City Council,Regeneration Finance,Electricity,15-Dec-22,1700142768,Scottish & Southern Energy Plc,-628.57
Manchester City Council,Regeneration Finance,Electricity,15-Dec-22,1700142696,Scottish & Southern Energy Plc,-628.60
Manchester City Council,Regeneration Finance,Electricity,15-Dec-22,1700142720,Scottish & Southern Energy Plc,-628.63
Manchester City Council,Manchester Leisure,Electricity,15-Dec-22,1700142579,Scottish & Southern Energy Plc,-628.66
Manchester City Council,Manchester Leisure,Electricity,15-Dec-22,1700142735,Scottish & Southern Energy Plc,-628.66
Manchester City Council,Regeneration Finance,Electricity,15-Dec-22,1700142762,Scottish & Southern Energy Plc,-628.66
Manchester City Council,Regeneration Finance,Electricity,15-Dec-22,1700142767,Scottish & Southern Energy Plc,-628.66
Manchester City Council,Manchester Leisure,Electricity,15-Dec-22,1700142757,Scottish & Southern Energy Plc,-638.82
Manchester City Council,Manchester Leisure,Electricity,15-Dec-22,1700142713,Scottish & Southern Energy Plc,-649.78
Manchester City Council,Regeneration Finance,Electricity,15-Dec-22,1700142627,Scottish & Southern Energy Plc,-680.13
Manchester City Council,Manchester Leisure,Electricity,15-Dec-22,1700142774,Scottish & Southern Energy Plc,-689.03
Manchester City Council,Regeneration Finance,Electricity,15-Dec-22,1700142590,Scottish & Southern Energy Plc,-699.11
Manchester City Council,Manchester Leisure,Electricity,15-Dec-22,1700142587,Scottish & Southern Energy Plc,-719.69
Manchester City Council,Regeneration Finance,Electricity,15-Dec-22,1700142560,Scottish & Southern Energy Plc,-745.46
Manchester City Council,Manchester Leisure,Electricity,15-Dec-22,1700142793,Scottish & Southern Energy Plc,-757.82
Manchester City Council,Adult Social Care,Electricity,15-Dec-22,1700142685,Scottish & Southern Energy Plc,-770.15
Manchester City Council,Adult Social Care,Electricity,15-Dec-22,1700142672,Scottish & Southern Energy Plc,-804.81
Manchester City Council,Regeneration Finance,Electricity,15-Dec-22,1700142730,Scottish & Southern Energy Plc,-839.72
Manchester City Council,Hospitality + Trading Services,Electricity,15-Dec-22,1700142786,Scottish & Southern Energy Plc,-847.81
Manchester City Council,Adult Social Care,Electricity,15-Dec-22,1700142529,Scottish & Southern Energy Plc,"-1,036.49"
Manchester City Council,Regeneration Finance,Electricity,15-Dec-22,1700142783,Scottish & Southern Energy Plc,"-1,036.49"
Manchester City Council,Regeneration Finance,Electricity,15-Dec-22,1700142745,Scottish & Southern Energy Plc,"-1,036.52"
Manchester City Council,Childrens & Education Services,Electricity,15-Dec-22,1700142736,Scottish & Southern Energy Plc,"-1,036.56"
Manchester City Council,Manchester Leisure,Electricity,15-Dec-22,1700142718,Scottish & Southern Energy Plc,"-1,036.66"
Manchester City Council,Childrens & Education Services,Electricity,15-Dec-22,1700142659,Scottish & Southern Energy Plc,"-1,036.66"
Manchester City Council,Childrens & Education Services,Electricity,15-Dec-22,1700142753,Scottish & Southern Energy Plc,"-1,036.66"
Manchester City Council,Regeneration Finance,Electricity,15-Dec-22,1700142790,Scottish & Southern Energy Plc,"-1,036.66"
Manchester City Council,Childrens & Education Services,Electricity,15-Dec-22,1700142734,Scottish & Southern Energy Plc,"-1,036.72"
Manchester City Council,Manchester Leisure,Electricity,15-Dec-22,1700142551,Scottish & Southern Energy Plc,"-1,065.53"
Manchester City Council,Adult Social Care,Electricity,15-Dec-22,1700142728,Scottish & Southern Energy Plc,"-1,076.25"
Manchester City Council,Regeneration Finance,Electricity,15-Dec-22,1700142781,Scottish & Southern Energy Plc,"-1,387.56"
Manchester City Council,Adult Social Care,Electricity,15-Dec-22,1700142782,Scottish & Southern Energy Plc,"-1,409.53"
Manchester City Council,Manchester Leisure,Electricity,15-Dec-22,1700142732,Scottish & Southern Energy Plc,"-1,409.59"
Manchester City Council,Adult Social Care,Electricity,15-Dec-22,1700142637,Scottish & Southern Energy Plc,"-1,444.33"
Manchester City Council,Adult Social Care,Electricity,15-Dec-22,1700142689,Scottish & Southern Energy Plc,"-1,444.33"
Manchester City Council,Adult Social Care,Electricity,15-Dec-22,1700142585,Scottish & Southern Energy Plc,"-1,444.36"
Manchester City Council,Adult Social Care,Electricity,15-Dec-22,1700142807,Scottish & Southern Energy Plc,"-1,444.45"
Manchester City Council,Adult Social Care,Electricity,15-Dec-22,1700142808,Scottish & Southern Energy Plc,"-1,444.49"
Manchester City Council,Regeneration Finance,Electricity,15-Dec-22,1700142789,Scottish & Southern Energy Plc,"-1,444.49"
Manchester City Council,Regeneration Finance,Electricity,15-Dec-22,1700142773,Scottish & Southern Energy Plc,"-1,444.56"
Manchester City Council,Manchester Leisure,Electricity,15-Dec-22,1700142756,Scottish & Southern Energy Plc,"-1,444.59"
Manchester City Council,Adult Social Care,Electricity,15-Dec-22,1700142695,Scottish & Southern Energy Plc,"-1,444.59"
Manchester City Council,Adult Social Care,Electricity,15-Dec-22,1700142636,Scottish & Southern Energy Plc,"-1,444.62"
Manchester City Council,Regeneration Finance,Electricity,15-Dec-22,1700142811,Scottish & Southern Energy Plc,"-1,444.62"
Manchester City Council,Manchester Leisure,Electricity,15-Dec-22,1700142660,Scottish & Southern Energy Plc,"-1,526.49"
Manchester City Council,Adult Social Care,Electricity,15-Dec-22,1700142677,Scottish & Southern Energy Plc,"-1,731.74"
Manchester City Council,Adult Social Care,Electricity,15-Dec-22,1700142693,Scottish & Southern Energy Plc,"-1,779.59"
Manchester City Council,Regeneration Finance,Electricity,15-Dec-22,1700142740,Scottish & Southern Energy Plc,"-1,852.39"
Manchester City Council,Regeneration Finance,Electricity,15-Dec-22,1700142744,Scottish & Southern Energy Plc,"-1,852.39"
Manchester City Council,Regeneration Finance,Electricity,15-Dec-22,1700142810,Scottish & Southern Energy Plc,"-1,852.51"
Manchester City Council,Childrens & Education Services,Electricity,15-Dec-22,1700142725,Scottish & Southern Energy Plc,"-1,852.55"
Manchester City Council,Regeneration Finance,Electricity,15-Dec-22,1700142701,Scottish & Southern Energy Plc,"-2,171.90"
Manchester City Council,Manchester Leisure,Electricity,15-Dec-22,1700142694,Scottish & Southern Energy Plc,"-2,175.30"
Manchester City Council,Regeneration Finance,Electricity,15-Dec-22,1700142769,Scottish & Southern Energy Plc,"-2,260.41"
Manchester City Council,Regeneration Finance,Electricity,15-Dec-22,1700142805,Scottish & Southern Energy Plc,"-2,260.57"
Manchester City Council,Regeneration Finance,Electricity,15-Dec-22,1700142765,Scottish & Southern Energy Plc,"-2,260.64"
Manchester City Council,Adult Social Care,Electricity,15-Dec-22,1700142691,Scottish & Southern Energy Plc,"-2,260.67"
Manchester City Council,Manchester Leisure,Electricity,15-Dec-22,1700142688,Scottish & Southern Energy Plc,"-2,498.47"
Manchester City Council,Manchester Leisure,Electricity,15-Dec-22,1700142703,Scottish & Southern Energy Plc,"-2,585.70"
Manchester City Council,Highways Services,Electricity,15-Dec-22,1700142792,Scottish & Southern Energy Plc,"-2,668.43"
Manchester City Council,Regeneration Finance,Electricity,15-Dec-22,1700142817,Scottish & Southern Energy Plc,"-2,668.46"
Manchester City Council,Manchester Leisure,Electricity,15-Dec-22,1700142760,Scottish & Southern Energy Plc,"-2,668.50"
Manchester City Council,Regeneration Finance,Electricity,15-Dec-22,1700142761,Scottish & Southern Energy Plc,"-2,668.60"
Manchester City Council,Regeneration Finance,Electricity,15-Dec-22,1700142758,Scottish & Southern Energy Plc,"-2,668.63"
Manchester City Council,Adult Social Care,Electricity,15-Dec-22,1700142766,Scottish & Southern Energy Plc,"-2,668.66"
Manchester City Council,Adult Social Care,Electricity,15-Dec-22,1700142764,Scottish & Southern Energy Plc,"-2,867.39"
Manchester City Council,Manchester Leisure,Electricity,15-Dec-22,1700142746,Scottish & Southern Energy Plc,"-2,879.84"
Manchester City Council,Manchester Leisure,Electricity,15-Dec-22,1700142778,Scottish & Southern Energy Plc,"-3,001.65"
Manchester City Council,Manchester Leisure,Electricity,15-Dec-22,1700142737,Scottish & Southern Energy Plc,"-3,076.71"
Manchester City Council,Manchester Leisure,Electricity,15-Dec-22,1700142697,Scottish & Southern Energy Plc,"-3,399.37"
Manchester City Council,Manchester Leisure,Electricity,15-Dec-22,1700142806,Scottish & Southern Energy Plc,"-3,484.45"
Manchester City Council,Regeneration Finance,Electricity,15-Dec-22,1700142784,Scottish & Southern Energy Plc,"-3,519.29"
Manchester City Council,Regeneration Finance,Electricity,15-Dec-22,1700142816,Scottish & Southern Energy Plc,"-3,736.26"
Manchester City Council,Manchester Leisure,Electricity,15-Dec-22,1700142724,Scottish & Southern Energy Plc,"-3,892.38"
Manchester City Council,Regeneration Finance,Electricity,15-Dec-22,1700142751,Scottish & Southern Energy Plc,"-3,892.38"
Manchester City Council,Manchester Leisure,Electricity,15-Dec-22,1700142742,Scottish & Southern Energy Plc,"-5,034.34"
Manchester City Council,Manchester Leisure,Gas,22-Dec-22,1907969317,Scottish & Southern Energy Plc,"4,639.93"
Manchester City Council,Manchester Leisure,Gas,22-Dec-22,1907969333,Scottish & Southern Energy Plc,"4,577.54"
Manchester City Council,Manchester Leisure,Gas,22-Dec-22,1907969367,Scottish & Southern Energy Plc,"4,198.19"
Manchester City Council,Manchester Leisure,Gas,22-Dec-22,1907969372,Scottish & Southern Energy Plc,"3,744.84"
Manchester City Council,Manchester Leisure,Gas,22-Dec-22,1907969302,Scottish & Southern Energy Plc,"3,689.35"
Manchester City Council,Manchester Leisure,Gas,22-Dec-22,1907969369,Scottish & Southern Energy Plc,"3,483.18"
Manchester City Council,Manchester Leisure,Gas,22-Dec-22,1907969321,Scottish & Southern Energy Plc,"3,090.11"
Manchester City Council,Manchester Leisure,Gas,22-Dec-22,1907969326,Scottish & Southern Energy Plc,"2,896.06"
Manchester City Council,Manchester Leisure,Gas,22-Dec-22,1907969360,Scottish & Southern Energy Plc,"2,482.78"
Manchester City Council,Manchester Leisure,Gas,22-Dec-22,1907969361,Scottish & Southern Energy Plc,"2,358.23"
Manchester City Council,Manchester Leisure,Gas,22-Dec-22,1907969343,Scottish & Southern Energy Plc,"2,231.33"
Manchester City Council,Adult Social Care,Gas,22-Dec-22,1907969325,Scottish & Southern Energy Plc,"2,076.51"
Manchester City Council,Manchester Leisure,Gas,22-Dec-22,1907969349,Scottish & Southern Energy Plc,"1,985.39"
Manchester City Council,Manchester Leisure,Gas,22-Dec-22,1907969362,Scottish & Southern Energy Plc,"1,928.73"
Manchester City Council,Manchester Leisure,Gas,22-Dec-22,1907969324,Scottish & Southern Energy Plc,"1,613.55"
Manchester City Council,Manchester Leisure,Gas,22-Dec-22,1907969344,Scottish & Southern Energy Plc,"1,560.57"
Manchester City Council,Manchester Leisure,Gas,22-Dec-22,1907969305,Scottish & Southern Energy Plc,"1,558.39"
Manchester City Council,Manchester Leisure,Gas,22-Dec-22,1907969347,Scottish & Southern Energy Plc,"1,408.07"
Manchester City Council,Adult Social Care,Gas,22-Dec-22,1907969366,Scottish & Southern Energy Plc,"1,397.69"
Manchester City Council,Manchester Leisure,Gas,22-Dec-22,1907969337,Scottish & Southern Energy Plc,"1,396.76"
Manchester City Council,Adult Social Care,Gas,22-Dec-22,1907969345,Scottish & Southern Energy Plc,"1,261.78"
Manchester City Council,Manchester Leisure,Gas,22-Dec-22,1907969320,Scottish & Southern Energy Plc,"1,229.57"
Manchester City Council,Manchester Leisure,Gas,22-Dec-22,1907969316,Scottish & Southern Energy Plc,"1,221.69"
Manchester City Council,Manchester Leisure,Gas,22-Dec-22,1907969348,Scottish & Southern Energy Plc,"1,212.48"
Manchester City Council,Manchester Leisure,Gas,22-Dec-22,1907969312,Scottish & Southern Energy Plc,"1,153.57"
Manchester City Council,Manchester Leisure,Gas,22-Dec-22,1907969368,Scottish & Southern Energy Plc,"1,147.39"
Manchester City Council,Manchester Leisure,Gas,22-Dec-22,1907969365,Scottish & Southern Energy Plc,"1,094.33"
Manchester City Council,Manchester Leisure,Gas,22-Dec-22,1907969309,Scottish & Southern Energy Plc,"1,080.71"
Manchester City Council,Manchester Leisure,Gas,22-Dec-22,1907969327,Scottish & Southern Energy Plc,973.03
Manchester City Council,Manchester Leisure,Gas,22-Dec-22,1907969354,Scottish & Southern Energy Plc,957.71
Manchester City Council,Manchester Leisure,Gas,22-Dec-22,1907969323,Scottish & Southern Energy Plc,954.00
Manchester City Council,Manchester Leisure,Gas,22-Dec-22,1907969299,Scottish & Southern Energy Plc,890.68
Manchester City Council,Manchester Leisure,Gas,22-Dec-22,1907969358,Scottish & Southern Energy Plc,883.69
Manchester City Council,Manchester Leisure,Gas,22-Dec-22,1907969356,Scottish & Southern Energy Plc,849.31
Manchester City Council,Manchester Leisure,Gas,22-Dec-22,1907969364,Scottish & Southern Energy Plc,838.87
Manchester City Council,Manchester Leisure,Gas,22-Dec-22,1907969351,Scottish & Southern Energy Plc,785.09
Manchester City Council,Manchester Leisure,Gas,22-Dec-22,1907969363,Scottish & Southern Energy Plc,758.19
Manchester City Council,Manchester Leisure,Gas,22-Dec-22,1907969359,Scottish & Southern Energy Plc,741.79
Manchester City Council,Manchester Leisure,Gas,22-Dec-22,1907969300,Scottish & Southern Energy Plc,721.45
Manchester City Council,Adult Social Care,Gas,22-Dec-22,1907969322,Scottish & Southern Energy Plc,681.38
Manchester City Council,Manchester Leisure,Gas,22-Dec-22,1907969371,Scottish & Southern Energy Plc,673.04
Manchester City Council,Manchester Leisure,Gas,22-Dec-22,1907969318,Scottish & Southern Energy Plc,648.37
Manchester City Council,Manchester Leisure,Gas,22-Dec-22,1907969342,Scottish & Southern Energy Plc,641.21
Manchester City Council,Manchester Leisure,Gas,22-Dec-22,1907969346,Scottish & Southern Energy Plc,596.84
Manchester City Council,Adult Social Care,Gas,22-Dec-22,1907969310,Scottish & Southern Energy Plc,584.67
Manchester City Council,Manchester Leisure,Gas,22-Dec-22,1907969355,Scottish & Southern Energy Plc,552.03
Manchester City Council,Manchester Leisure,Gas,22-Dec-22,1907969332,Scottish & Southern Energy Plc,543.05
Manchester City Council,Manchester Leisure,Gas,22-Dec-22,1907969353,Scottish & Southern Energy Plc,535.93
Manchester City Council,Adult Social Care,Gas,22-Dec-22,1907969298,Scottish & Southern Energy Plc,517.03
Manchester City Council,Manchester Leisure,Gas,22-Dec-22,1907969311,Scottish & Southern Energy Plc,516.18
Manchester City Council,Manchester Leisure,Gas,22-Dec-22,1907969330,Scottish & Southern Energy Plc,504.25
Manchester City Council,Manchester Leisure,Gas,22-Dec-22,1700143290,Scottish & Southern Energy Plc,-568.63
Manchester City Council,Manchester Leisure,Gas,22-Dec-22,1700143280,Scottish & Southern Energy Plc,-580.85
Manchester City Council,Manchester Leisure,Gas,22-Dec-22,1700143267,Scottish & Southern Energy Plc,-595.08
Manchester City Council,Manchester Leisure,Gas,22-Dec-22,1700143297,Scottish & Southern Energy Plc,-618.65
Manchester City Council,Manchester Leisure,Gas,22-Dec-22,1700143282,Scottish & Southern Energy Plc,-627.21
Manchester City Council,Manchester Leisure,Gas,22-Dec-22,1700143299,Scottish & Southern Energy Plc,-637.90
Manchester City Council,Manchester Leisure,Gas,22-Dec-22,1700143272,Scottish & Southern Energy Plc,-647.39
Manchester City Council,Adult Social Care,Gas,22-Dec-22,1700143256,Scottish & Southern Energy Plc,-680.56
Manchester City Council,Manchester Leisure,Gas,22-Dec-22,1700143292,Scottish & Southern Energy Plc,-691.41
Manchester City Council,Manchester Leisure,Gas,22-Dec-22,1700143273,Scottish & Southern Energy Plc,-752.87
Manchester City Council,Manchester Leisure,Gas,22-Dec-22,1700143313,Scottish & Southern Energy Plc,-782.32
Manchester City Council,Manchester Leisure,Gas,22-Dec-22,1700143269,Scottish & Southern Energy Plc,-804.82
Manchester City Council,Manchester Leisure,Gas,22-Dec-22,1700143258,Scottish & Southern Energy Plc,-817.26
Manchester City Council,Manchester Leisure,Gas,22-Dec-22,1700143279,Scottish & Southern Energy Plc,-847.51
Manchester City Council,Manchester Leisure,Gas,22-Dec-22,1700143303,Scottish & Southern Energy Plc,-864.44
Manchester City Council,Manchester Leisure,Gas,22-Dec-22,1700143306,Scottish & Southern Energy Plc,-884.00
Manchester City Council,Manchester Leisure,Gas,22-Dec-22,1700143295,Scottish & Southern Energy Plc,-916.05
Manchester City Council,Manchester Leisure,Gas,22-Dec-22,1700143300,Scottish & Southern Energy Plc,-965.10
Manchester City Council,Manchester Leisure,Gas,22-Dec-22,1700143307,Scottish & Southern Energy Plc,-980.25
Manchester City Council,Manchester Leisure,Gas,22-Dec-22,1700143302,Scottish & Southern Energy Plc,"-1,033.76"
Manchester City Council,Manchester Leisure,Gas,22-Dec-22,1700143257,Scottish & Southern Energy Plc,"-1,042.07"
Manchester City Council,Manchester Leisure,Gas,22-Dec-22,1700143298,Scottish & Southern Energy Plc,"-1,090.42"
Manchester City Council,Manchester Leisure,Gas,22-Dec-22,1700143275,Scottish & Southern Energy Plc,"-1,117.74"
Manchester City Council,Manchester Leisure,Gas,22-Dec-22,1700143278,Scottish & Southern Energy Plc,"-1,140.38"
Manchester City Council,Manchester Leisure,Gas,22-Dec-22,1700143266,Scottish & Southern Energy Plc,"-1,268.97"
Manchester City Council,Manchester Leisure,Gas,22-Dec-22,1700143308,Scottish & Southern Energy Plc,"-1,285.19"
Manchester City Council,Manchester Leisure,Gas,22-Dec-22,1700143310,Scottish & Southern Energy Plc,"-1,309.79"
Manchester City Council,Manchester Leisure,Gas,22-Dec-22,1700143268,Scottish & Southern Energy Plc,"-1,355.89"
Manchester City Council,Manchester Leisure,Gas,22-Dec-22,1700143274,Scottish & Southern Energy Plc,"-1,446.65"
Manchester City Council,Manchester Leisure,Gas,22-Dec-22,1700143293,Scottish & Southern Energy Plc,"-1,659.69"
Manchester City Council,Manchester Leisure,Gas,22-Dec-22,1700143263,Scottish & Southern Energy Plc,"-1,784.99"
Manchester City Council,Manchester Leisure,Gas,22-Dec-22,1700143276,Scottish & Southern Energy Plc,"-1,848.78"
Manchester City Council,Manchester Leisure,Gas,22-Dec-22,1700143305,Scottish & Southern Energy Plc,"-2,213.28"
Manchester City Council,Manchester Leisure,Gas,22-Dec-22,1700143294,Scottish & Southern Energy Plc,"-2,278.82"
Manchester City Council,Manchester Leisure,Gas,22-Dec-22,1700143291,Scottish & Southern Energy Plc,"-2,563.16"
Manchester City Council,Manchester Leisure,Gas,22-Dec-22,1700143304,Scottish & Southern Energy Plc,"-2,793.82"
Manchester City Council,Manchester Leisure,Gas,22-Dec-22,1700143296,Scottish & Southern Energy Plc,"-3,205.78"
Manchester City Council,Manchester Leisure,Gas,22-Dec-22,1700143277,Scottish & Southern Energy Plc,"-3,435.78"
Manchester City Council,Manchester Leisure,Gas,22-Dec-22,1700143311,Scottish & Southern Energy Plc,"-4,136.58"
Manchester City Council,Manchester Leisure,Gas,22-Dec-22,1700143260,Scottish & Southern Energy Plc,"-4,382.68"
Manchester City Council,Manchester Leisure,Gas,22-Dec-22,1700143309,Scottish & Southern Energy Plc,"-5,000.15"
Manchester City Council,Manchester Leisure,Gas,22-Dec-22,1700143283,Scottish & Southern Energy Plc,"-5,442.86"
Manchester City Council,Manchester Leisure,Library Materials Acquisition,12-Dec-22,1907954044,Martin-Lavell Limited,"3,914.10"
Manchester City Council,Environment and Operations,Construction Works,12-Dec-22,5105847887,Townscape Ltd,"4,750.00"
Manchester City Council,Manchester Leisure,Special Event,21-Dec-22,5105849737,Fools Paradise,"3,135.00"
Manchester City Council,Manchester Leisure,Furniture,05-Dec-22,5105846950,Marshalls Mono Ltd,"2,985.00"
Manchester City Council,Highways Services,Purchase of stores for re-distribution,05-Dec-22,5105846949,Marshalls Mono Ltd,"4,626.96"
Manchester City Council,Regeneration Finance,Professional fees,31-Dec-22,5105850176,Mott Macdonald Uk Limited,"11,628.00"
Manchester City Council,Regeneration Finance,Professional fees,31-Dec-22,5105850153,Local Partnerships LLP,"26,200.00"
Manchester City Council,Regeneration Finance,Rents,21-Dec-22,1907961166,Knight Frank LLP,"220,382.00"
Manchester City Council,Regeneration Finance,Rents,21-Dec-22,1907961167,Knight Frank LLP,"1,523.74"
Manchester City Council,Childrens & Education Services,Professional fees,31-Dec-22,5105849302,Cushman & Wakefield,"11,687.50"
Manchester City Council,Adult Social Care,Payments for services,05-Dec-22,5105847182,ADFERIAD RECOVERY,"2,362.50"
Manchester City Council,Adult Social Care,Payments for services,20-Dec-22,5105849857,ADFERIAD RECOVERY,"1,012.50"
Manchester City Council,Corporate Services,Hire of Equipment,09-Dec-22,5105848251,Flowbird Smart City Uk Ltd,-898.90
Manchester City Council,Manchester Leisure,Payments to Sub-Contractors,09-Dec-22,5105848252,Flowbird Smart City Uk Ltd,898.90
Manchester City Council,Corporate Services,Hire of Equipment,13-Dec-22,5105848752,Flowbird Smart City Uk Ltd,"-12,230.30"
Manchester City Council,Corporate Services,Hire of Equipment,19-Dec-22,5105848813,Flowbird Smart City Uk Ltd,"12,528.90"
Manchester City Council,Corporate Services,Hire of Equipment,19-Dec-22,5105848812,Flowbird Smart City Uk Ltd,"11,824.13"
Manchester City Council,Corporate Services,Hire of Equipment,19-Dec-22,5105848779,Flowbird Smart City Uk Ltd,-639.53
Manchester City Council,Corporate Services,Hire of Equipment,19-Dec-22,5105848778,Flowbird Smart City Uk Ltd,"-10,879.60"
Manchester City Council,Corporate Services,Hire of Equipment,19-Dec-22,5105848777,Flowbird Smart City Uk Ltd,"-10,917.40"
Manchester City Council,Manchester Leisure,Payments to Sub-Contractors,19-Dec-22,5105848814,Flowbird Smart City Uk Ltd,515.40
Manchester City Council,Corporate Services,Hire of Equipment,31-Dec-22,5105850818,Flowbird Smart City Uk Ltd,"3,824.00"
Manchester City Council,Corporate Services,Hire of Equipment,31-Dec-22,5105850273,Flowbird Smart City Uk Ltd,"12,528.90"
Manchester City Council,Manchester Leisure,Payments to Sub-Contractors,31-Dec-22,5105848780,Flowbird Smart City Uk Ltd,"1,532.77"
Manchester City Council,Manchester Leisure,Payments to Sub-Contractors,31-Dec-22,5105848811,Flowbird Smart City Uk Ltd,684.93
Manchester City Council,Adult Social Care,Equipment,16-Dec-22,5105849506,Safe Partnership Ltd,"2,195.00"
Manchester City Council,Adult Social Care,Equipment,16-Dec-22,5105849527,Safe Partnership Ltd,540.00
Manchester City Council,Manchester Leisure,Equipment,15-Dec-22,5105849346,Kompan Ltd,"8,901.50"
Manchester City Council,Chief Executives,Paper & Envelopes,14-Dec-22,5105847321,Antalis Ltd,759.90
Manchester City Council,Highways Services,Training-Day Release,31-Dec-22,5105850064,Veritas Safety Management Ltd,"4,360.00"
Manchester City Council,Manchester Leisure,Payments to Sub-Contractors,31-Dec-22,5105847977,Veritas Safety Management Ltd,"1,250.00"
Manchester City Council,Adult Social Care,Equipment,23-Dec-22,5105850484,Etac Ltd,825.00
Manchester City Council,Manchester Leisure,Library Materials Acquisition,23-Dec-22,1907969662,Manchester Guanghwa Company,"3,008.00"
Manchester City Council,Corporate Services,Professional fees,08-Dec-22,5105847143,Trojan Consultants Ltd (CASPAR),"2,500.00"
Manchester City Council,Corporate Services,Licences Purchase,31-Dec-22,5105848668,Trojan Consultants Ltd (CASPAR),"14,654.00"
Manchester City Council,Childrens & Education Services,Payments for services,22-Dec-22,5105850442,Music Stuff,"58,920.96"
Manchester City Council,Housing General Fund,Works and associated costs for Land and Buildings,14-Dec-22,5105848917,Wates Construction Ltd,"33,288.03"
Manchester City Council,Childrens & Education Services,Transport Coach Hire,31-Dec-22,5105850774,Connect Cars Ltd,816.00
Manchester City Council,Chief Executives,Works and associated costs for Land and Buildings,16-Dec-22,5105847861,Building Design Partnership Limited,"21,016.72"
Manchester City Council,Adult Social Care,Rents,06-Dec-22,5105847398,B & A Properties,"41,181.71"
Manchester City Council,Adult Social Care,Rents,20-Dec-22,5105849978,B & A Properties,"42,067.43"
Manchester City Council,Childrens & Education Services,Hire of Premises,12-Dec-22,5105847642,British Cycling Federation,"1,120.00"
Manchester City Council,Manchester Leisure,Works and associated costs for Land and Buildings,15-Dec-22,5105848881,British Cycling Federation,"150,000.00"
Manchester City Council,Manchester Leisure,Grant and subscriptions awarded,21-Dec-22,5105850006,Christ Church Harpurhey PCC,"2,000.00"
Manchester City Council,Adult Social Care,Works and associated costs for Land and Buildings,01-Dec-22,5105846938,H Jenkinson & Co Ltd.,"18,670.00"
Manchester City Council,Adult Social Care,Vehicle Plant Furniture and Equipment,06-Dec-22,5105846936,H Jenkinson & Co Ltd.,"8,759.04"
Manchester City Council,Adult Social Care,Equipment,13-Dec-22,5105848712,H Jenkinson & Co Ltd.,"1,324.20"
Manchester City Council,Adult Social Care,Equipment,13-Dec-22,5105848766,H Jenkinson & Co Ltd.,552.66
Manchester City Council,Chief Executives,Furniture,13-Dec-22,5105848761,H Jenkinson & Co Ltd.,"6,487.01"
Manchester City Council,Regeneration Finance,Furniture,13-Dec-22,5105848765,H Jenkinson & Co Ltd.,"3,611.00"
Manchester City Council,Chief Executives,Furniture,13-Dec-22,5105848713,H Jenkinson & Co Ltd.,"1,187.38"
Manchester City Council,Adult Social Care,Works and associated costs for Land and Buildings,13-Dec-22,5105848718,H Jenkinson & Co Ltd.,"75,000.00"
Manchester City Council,Adult Social Care,Works and associated costs for Land and Buildings,13-Dec-22,5105848720,H Jenkinson & Co Ltd.,"62,673.53"
Manchester City Council,Adult Social Care,Works and associated costs for Land and Buildings,13-Dec-22,5105848719,H Jenkinson & Co Ltd.,"50,000.00"
Manchester City Council,Adult Social Care,Works and associated costs for Land and Buildings,13-Dec-22,5105848716,H Jenkinson & Co Ltd.,"-75,000.00"
Manchester City Council,Adult Social Care,Works and associated costs for Land and Buildings,13-Dec-22,5105848763,H Jenkinson & Co Ltd.,"3,033.50"
Manchester City Council,Adult Social Care,Works and associated costs for Land and Buildings,13-Dec-22,5105848762,H Jenkinson & Co Ltd.,969.50
Manchester City Council,Chief Executives,Works and associated costs for Land and Buildings,13-Dec-22,5105848741,H Jenkinson & Co Ltd.,"50,000.00"
Manchester City Council,Chief Executives,Works and associated costs for Land and Buildings,13-Dec-22,5105848743,H Jenkinson & Co Ltd.,"50,000.00"
Manchester City Council,Chief Executives,Works and associated costs for Land and Buildings,13-Dec-22,5105848742,H Jenkinson & Co Ltd.,"33,785.74"
Manchester City Council,Chief Executives,Furniture,16-Dec-22,5105849474,H Jenkinson & Co Ltd.,759.00
Manchester City Council,Adult Social Care,Works and associated costs for Land and Buildings,16-Dec-22,5105848747,H Jenkinson & Co Ltd.,809.30
Manchester City Council,Adult Social Care,Works and associated costs for Land and Buildings,16-Dec-22,5105849491,H Jenkinson & Co Ltd.,-809.30
Manchester City Council,Childrens & Education Services,Furniture,31-Dec-22,5105849886,H Jenkinson & Co Ltd.,"1,370.14"
Manchester City Council,Adult Social Care,Furniture,12-Dec-22,5105848525,Arco Group Ltd,599.70
Manchester City Council,Adult Social Care,Professional fees,12-Dec-22,5105848281,Arco Group Ltd,948.85
Manchester City Council,Manchester Leisure,Equipment,08-Dec-22,5105847808,Solon Security Ltd,"1,225.00"
Manchester City Council,Chief Executives,Training and Development,02-Dec-22,5105846990,Arc People Development Ltd,"9,720.00"
Manchester City Council,Regeneration Finance,Stationery,31-Dec-22,5105849057,Digital ID Ltd,"1,334.85"
Manchester City Council,Chief Executives,Professional fees,31-Dec-22,5105850676,Acuma Solutions Ltd,"11,925.00"
Manchester City Council,Adult Social Care,Gas,23-Dec-22,5105850457,British Gas Plc,"1,199.41"
Manchester City Council,Regeneration Finance,General Office expenses,12-Dec-22,5105848378,Ove Arup & Partners Ltd,"1,176.47"
Manchester City Council,Corporate Services,Works and associated costs for Land and Buildings,12-Dec-22,5105848359,Ove Arup & Partners Ltd,"15,129.60"
Manchester City Council,Corporate Services,Works and associated costs for Land and Buildings,12-Dec-22,5105848381,Ove Arup & Partners Ltd,"5,760.00"
Manchester City Council,Corporate Services,Works and associated costs for Land and Buildings,12-Dec-22,5105848377,Ove Arup & Partners Ltd,"1,712.88"
Manchester City Council,Corporate Services,Works and associated costs for Land and Buildings,12-Dec-22,5105848380,Ove Arup & Partners Ltd,"1,123.88"
Manchester City Council,Manchester Leisure,Professional fees,21-Dec-22,5105850062,Ove Arup & Partners Ltd,"4,372.50"
Manchester City Council,Highways Services,Professional fees,23-Dec-22,5105849803,Ove Arup & Partners Ltd,"11,936.00"
Manchester City Council,Manchester Leisure,Equipment,14-Dec-22,5105848990,Orbis Protect Ltd,"3,524.31"
Manchester City Council,Manchester Leisure,Payments to Sub-Contractors,05-Dec-22,5105847201,Osborne Richardson,709.00
Manchester City Council,Manchester Leisure,Payments to Sub-Contractors,05-Dec-22,5105847259,Osborne Richardson,703.00
Manchester City Council,Manchester Leisure,Payments to Sub-Contractors,09-Dec-22,5105848008,Osborne Richardson,889.00
Manchester City Council,Manchester Leisure,Payments to Sub-Contractors,09-Dec-22,5105848007,Osborne Richardson,843.00
Manchester City Council,Manchester Leisure,Payments to Sub-Contractors,13-Dec-22,5105848588,Osborne Richardson,573.00
Manchester City Council,Manchester Leisure,Payments to Sub-Contractors,31-Dec-22,5105850751,Osborne Richardson,915.00
Manchester City Council,Manchester Leisure,Payments to Sub-Contractors,31-Dec-22,5105850749,Osborne Richardson,688.00
Manchester City Council,Manchester Leisure,I T Provision,12-Dec-22,5105847373,BT PLC,"3,281.59"
Manchester City Council,Regeneration Finance,Legal Fees,22-Dec-22,5105850306,CBRE Ltd (Glasgow),"14,000.00"
Manchester City Council,Regeneration Finance,Legal Fees,22-Dec-22,5105850305,CBRE Ltd (Glasgow),"5,000.00"
Manchester City Council,Chief Executives,Equipment,01-Dec-22,5105846823,Xerox (Uk) Ltd,"1,793.97"
Manchester City Council,Corporate Services,Agency staff provision,07-Dec-22,5105847654,Michael Page International,"1,005.20"
Manchester City Council,Corporate Services,Agency staff provision,09-Dec-22,5105848184,Michael Page International,"1,218.00"
Manchester City Council,Corporate Services,Agency staff provision,09-Dec-22,5105848168,Michael Page International,812.00
Manchester City Council,Corporate Services,Agency staff provision,16-Dec-22,5105849455,Michael Page International,"1,005.20"
Manchester City Council,Corporate Services,Agency staff provision,23-Dec-22,5105850165,Michael Page International,"1,005.20"
Manchester City Council,Chief Executives,Agency staff provision,07-Dec-22,5105847567,Venn Group Ltd,"9,406.44"
Manchester City Council,Adult Social Care,Supporting People Payments,08-Dec-22,5105847870,Making Space,"8,099.05"
Manchester City Council,Manchester Leisure,Stationery,07-Dec-22,5105847698,Back Care Solutions Ltd,"1,734.95"
Manchester City Council,Adult Social Care,Furniture,08-Dec-22,5105847544,Back Care Solutions Ltd,"1,174.95"
Manchester City Council,Adult Social Care,Furniture,14-Dec-22,5105848785,Back Care Solutions Ltd,510.00
Manchester City Council,Adult Social Care,Furniture,16-Dec-22,5105848786,Back Care Solutions Ltd,595.00
Manchester City Council,Adult Social Care,Furniture,16-Dec-22,5105849372,Back Care Solutions Ltd,-595.00
Manchester City Council,Adult Social Care,Supporting People Payments,15-Dec-22,5105849342,Anchor Trust,"12,500.00"
Manchester City Council,Adult Social Care,Supporting People Payments,15-Dec-22,5105849343,Anchor Trust,"12,500.00"
Manchester City Council,Manchester Leisure,Contract Cleaning External,16-Dec-22,5105849153,Clearview Event Services Limited,"20,605.98"
Manchester City Council,Manchester Leisure,Contract Cleaning External,16-Dec-22,5105849154,Clearview Event Services Limited,"10,935.60"
Manchester City Council,Manchester Leisure,Refuse Collection,23-Dec-22,5105850196,GTS Steam Cleaners,908.40
Manchester City Council,Manchester Leisure,Refuse Collection,23-Dec-22,5105849668,GTS Steam Cleaners,554.92
Manchester City Council,Adult Social Care,Personal needs of client,07-Dec-22,5105847606,G & S Smirthwaite Limited,"2,601.00"
Manchester City Council,Corporate Services,Fees,20-Dec-22,1907957261,Marston Group Limited,"36,927.55"
Manchester City Council,Corporate Services,Fees,20-Dec-22,1907956577,Marston Group Limited,"13,865.80"
Manchester City Council,Corporate Services,Fees,20-Dec-22,1907956577,Marston Group Limited,"-13,865.80"
Manchester City Council,Corporate Services,Fees,20-Dec-22,1907957261,Marston Group Limited,"-36,927.55"
Manchester City Council,Childrens & Education Services,Transport Coach Hire,20-Dec-22,5105849954,Street Cars,"11,012.00"
Manchester City Council,Corporate Services,Transport Taxis,20-Dec-22,1907966090,Street Cars,"12,381.20"
Manchester City Council,Chief Executives,Training and Development,06-Dec-22,5105847452,The Manchester College,"3,500.00"
Manchester City Council,Corporate Services,Training and Development,15-Dec-22,5105849303,The Manchester College,960.00
Manchester City Council,Chief Executives,Training and Development,31-Dec-22,5105850682,The Manchester College,650.00
Manchester City Council,Chief Executives,Training and Development,31-Dec-22,5105850683,The Manchester College,650.00
Manchester City Council,Chief Executives,Training and Development,31-Dec-22,5105850684,The Manchester College,650.00
Manchester City Council,Environment and Operations,Construction Works,08-Dec-22,5105847784,Bethell Construction Ltd,"167,758.47"
Manchester City Council,Environment and Operations,Construction Works,08-Dec-22,5105847781,Bethell Construction Ltd,"47,369.08"
Manchester City Council,Environment and Operations,Construction Works,08-Dec-22,5105847780,Bethell Construction Ltd,"2,736.53"
Manchester City Council,Environment and Operations,Construction Works,12-Dec-22,5105847777,Bethell Construction Ltd,"177,263.98"
Manchester City Council,Corporate Services,Works and associated costs for Land and Buildings,14-Dec-22,5105848509,Apex Self Storage Ltd,"1,331.02"
Manchester City Council,Adult Social Care,Payments for services,16-Dec-22,5105849447,Age Concern Manchester,"13,055.70"
Manchester City Council,Adult Social Care,Payments for services,16-Dec-22,5105849477,Age Concern Manchester,"13,055.70"
Manchester City Council,Adult Social Care,Payments for services,16-Dec-22,5105849448,Age Concern Manchester,"10,000.00"
Manchester City Council,Adult Social Care,Payments for services,16-Dec-22,5105849447,Age Concern Manchester,"9,696.31"
Manchester City Council,Adult Social Care,Payments for services,16-Dec-22,5105849477,Age Concern Manchester,"9,696.31"
Manchester City Council,Adult Social Care,Payments for services,16-Dec-22,5105849476,Age Concern Manchester,"-9,696.31"
Manchester City Council,Adult Social Care,Payments for services,16-Dec-22,5105849476,Age Concern Manchester,"-13,055.70"
Manchester City Council,Adult Social Care,Payments for services,22-Dec-22,5105850449,Age Concern Manchester,"30,000.00"
Manchester City Council,Adult Social Care,Payments for services,22-Dec-22,5105850188,Age Concern Manchester,"22,752.01"
Manchester City Council,Adult Social Care,Payments for services,22-Dec-22,5105850462,Age Concern Manchester,"13,055.70"
Manchester City Council,Adult Social Care,Payments for services,22-Dec-22,5105850462,Age Concern Manchester,"9,696.31"
Manchester City Council,Adult Social Care,Payments for services,22-Dec-22,5105850450,Age Concern Manchester,"-22,752.01"
Manchester City Council,Childrens & Education Services,Personal needs of client,19-Dec-22,5105849732,Connevans Ltd,"6,613.60"
Manchester City Council,Childrens & Education Services,Personal needs of client,22-Dec-22,5105849950,Connevans Ltd,"1,080.00"
Manchester City Council,Manchester Leisure,Equipment,19-Dec-22,5105849449,Whaleys (Bradford) Ltd,852.50
Manchester City Council,Adult Social Care,Equipment,09-Dec-22,5105847436,Care Shop,"5,552.64"
Manchester City Council,Regeneration Finance,Training and Development,16-Dec-22,5105849391,Ncfe,"2,563.00"
Manchester City Council,Childrens & Education Services,Third party payments to other Local Authorities,21-Dec-22,5105850117,Blessed Thomas Holford School,"8,143.67"
Manchester City Council,Childrens & Education Services,Third party payments to other Local Authorities,20-Dec-22,5105849969,Sale High School,"12,709.00"
Manchester City Council,Housing General Fund,Building Works,12-Dec-22,1907956450,Handicare Accessibility Ltd,"5,348.00"
Manchester City Council,Housing General Fund,Building Works,21-Dec-22,1907968653,Handicare Accessibility Ltd,"5,678.00"
Manchester City Council,Manchester Leisure,Refuse Collection,19-Dec-22,5105849741,Ramora Ltd,995.00
Manchester City Council,Manchester Leisure,Cleaning Equipment,31-Dec-22,5105850717,Ramora Ltd,"1,800.00"
Manchester City Council,Manchester Leisure,Cleaning Equipment,31-Dec-22,5105850717,Ramora Ltd,900.00
Manchester City Council,Corporate Services,Professional fees,12-Dec-22,5105848000,S.I.Sealy Associates Ltd,"8,352.00"
Manchester City Council,Manchester Leisure,Works and associated costs for Land and Buildings,07-Dec-22,5105847711,Wicksteed Leisure Ltd,"6,674.20"
Manchester City Council,Manchester Leisure,Works and associated costs for Land and Buildings,07-Dec-22,5105847711,Wicksteed Leisure Ltd,616.00
Manchester City Council,Manchester Leisure,Equipment,20-Dec-22,5105849569,Wicksteed Leisure Ltd,"2,063.30"
Manchester City Council,Housing Revenue Account,Council Dwelling Adaptations,14-Dec-22,5105848899,PPG Architectural Coatings UK Ltd,"1,283.29"
Manchester City Council,Housing Revenue Account,Council Dwelling Adaptations,22-Dec-22,5105850179,PPG Architectural Coatings UK Ltd,"1,007.99"
Manchester City Council,Manchester Leisure,Electricity,31-Dec-22,5105848865,Switch2 Energey Limited,"4,087.98"
Manchester City Council,Manchester Leisure,Electricity,31-Dec-22,5105847885,Switch2 Energey Limited,"1,186.48"
Manchester City Council,Manchester Leisure,Electricity,31-Dec-22,5105850688,Switch2 Energey Limited,818.74
Manchester City Council,Manchester Leisure,Electricity,31-Dec-22,5105849265,Switch2 Energey Limited,536.45
Manchester City Council,Corporate Services,Works and associated costs for Land and Buildings,16-Dec-22,5105849401,J.A.Jones & Sons,562.00
Manchester City Council,Regeneration Finance,Gas,05-Dec-22,5105847244,Calor Gas Ltd,540.00
Manchester City Council,Regeneration Finance,Gas,20-Dec-22,5105849860,Calor Gas Ltd,594.00
Manchester City Council,Highways Services,Payments to Sub-Contractors,31-Dec-22,5105848355,Utilities Design & Planning Ltd,"38,602.12"
Manchester City Council,Highways Services,Payments to Sub-Contractors,31-Dec-22,5105847918,Utilities Design & Planning Ltd,"29,645.63"
Manchester City Council,Housing General Fund,Works and associated costs for Land and Buildings,31-Dec-22,5105850615,Utilities Design & Planning Ltd,"1,636.43"
Manchester City Council,Hospitality + Trading Services,Hire of Machinery,06-Dec-22,5105847352,R & M Developments Ltd,"1,073.50"
Manchester City Council,Hospitality + Trading Services,Hire of Machinery,14-Dec-22,5105848875,R & M Developments Ltd,"1,073.50"
Manchester City Council,Hospitality + Trading Services,Hire of Machinery,14-Dec-22,5105848876,R & M Developments Ltd,"1,073.50"
Manchester City Council,Hospitality + Trading Services,Hire of Machinery,14-Dec-22,5105848888,R & M Developments Ltd,"1,073.50"
Manchester City Council,Hospitality + Trading Services,Hire of Machinery,22-Dec-22,5105850192,R & M Developments Ltd,"1,073.50"
Manchester City Council,Hospitality + Trading Services,Hire of Machinery,22-Dec-22,5105850197,R & M Developments Ltd,"1,073.50"
Manchester City Council,Housing Revenue Account,Council Dwelling Adaptations,05-Dec-22,5105847198,Moores Furniture Group Limited,"2,944.62"
Manchester City Council,Housing Revenue Account,Council Dwelling Adaptations,21-Dec-22,5105850164,Moores Furniture Group Limited,"1,820.73"
Manchester City Council,Housing Revenue Account,Council Dwelling Adaptations,21-Dec-22,5105850161,Moores Furniture Group Limited,783.16
Manchester City Council,Regeneration Finance,Security,09-Dec-22,5105847971,Showsec International Ltd,"14,333.58"
Manchester City Council,Hospitality + Trading Services,Security,19-Dec-22,5105848676,Showsec International Ltd,"233,789.86"
Manchester City Council,Hospitality + Trading Services,Security,22-Dec-22,5105849859,Showsec International Ltd,"13,142.00"
Manchester City Council,Manchester Leisure,Security,22-Dec-22,5105849961,Showsec International Ltd,"2,521.42"
Manchester City Council,Corporate Services,Professional fees,22-Dec-22,5105850446,Stockport Removals & Storage Ltd,"1,650.00"
Manchester City Council,Regeneration Finance,Professional fees,13-Dec-22,5105848649,Mpulse Ltd,"3,250.00"
Manchester City Council,Corporate Services,Works and associated costs for Land and Buildings,12-Dec-22,5105848396,Mace Ltd,"32,698.00"
Manchester City Council,Corporate Services,Works and associated costs for Land and Buildings,12-Dec-22,5105848396,Mace Ltd,680.00
Manchester City Council,Corporate Services,Works and associated costs for Land and Buildings,12-Dec-22,5105848396,Mace Ltd,"5,585.25"
Manchester City Council,Manchester Leisure,Training and Development,09-Dec-22,5105847788,Public Sector Software Ltd,"1,200.00"
Manchester City Council,Manchester Leisure,I T Provision,31-Dec-22,5105850505,Public Sector Software Ltd,"6,382.00"
Manchester City Council,Manchester Leisure,I T Provision,31-Dec-22,5105850507,Public Sector Software Ltd,"5,742.00"
Manchester City Council,Hospitality + Trading Services,Goods purchased for resale in Council outlets,31-Dec-22,5105847664,Barcham Trees Plc,671.00
Manchester City Council,Highways Services,Professional fees,15-Dec-22,5105848143,AECOM Limited,"15,769.74"
Manchester City Council,Adult Social Care,Contract Cleaning External,13-Dec-22,5105848563,Fishers Cleaning Services Ltd,540.00
Manchester City Council,Adult Social Care,Contract Cleaning External,13-Dec-22,5105848560,Fishers Cleaning Services Ltd,-540.00
Manchester City Council,Childrens & Education Services,Payments for services,02-Dec-22,5105847024,Reed Employment Plc,"3,692.54"
Manchester City Council,Childrens & Education Services,Payments for services,05-Dec-22,5105847183,Reed Employment Plc,"4,371.54"
Manchester City Council,Childrens & Education Services,Payments for services,16-Dec-22,5105849544,Reed Employment Plc,"14,739.51"
Manchester City Council,Childrens & Education Services,Payments for services,23-Dec-22,5105850488,Reed Employment Plc,"11,781.18"
Manchester City Council,Manchester Leisure,Publications,05-Dec-22,5105846908,Askews and Holts,"1,070.35"
Manchester City Council,Manchester Leisure,Library Materials Acquisition,07-Dec-22,1907954059,Askews and Holts,831.64
Manchester City Council,Manchester Leisure,Library Materials Acquisition,15-Dec-22,1907957590,Askews and Holts,533.03
Manchester City Council,Corporate Services,Bank Charges,16-Dec-22,1907960746,Capita Business Services Ltd,"10,086.30"
Manchester City Council,Manchester Leisure,Works and associated costs for Land and Buildings,02-Dec-22,5105846884,Laing O'Rourke Construction Ltd,"78,446.29"
Manchester City Council,Manchester Leisure,Works and associated costs for Land and Buildings,02-Dec-22,5105846999,Laing O'Rourke Construction Ltd,"-78,446.29"
Manchester City Council,Manchester Leisure,External repairs and maintenance for buildings,09-Dec-22,5105846882,Laing O'Rourke Construction Ltd,"16,199.03"
Manchester City Council,Manchester Leisure,Works and associated costs for Land and Buildings,09-Dec-22,5105846882,Laing O'Rourke Construction Ltd,"1,518,931.72"
Manchester City Council,Chief Executives,Works and associated costs for Land and Buildings,15-Dec-22,5105847792,Laing O'Rourke Construction Ltd,"3,923,763.00"
Manchester City Council,Chief Executives,Works and associated costs for Land and Buildings,15-Dec-22,5105847791,Laing O'Rourke Construction Ltd,"216,906.00"
Manchester City Council,Manchester Leisure,External repairs and maintenance for buildings,31-Dec-22,5105850585,Laing O'Rourke Construction Ltd,"16,199.03"
Manchester City Council,Manchester Leisure,Works and associated costs for Land and Buildings,31-Dec-22,5105850585,Laing O'Rourke Construction Ltd,"862,607.85"
Manchester City Council,Chief Executives,Agency staff provision,08-Dec-22,5105847860,Adecco Uk Ltd,"2,000.00"
Manchester City Council,Chief Executives,Agency staff provision,16-Dec-22,5105849009,Adecco Uk Ltd,"1,600.00"
Manchester City Council,Chief Executives,Agency staff provision,31-Dec-22,5105850730,Adecco Uk Ltd,"2,000.00"
Manchester City Council,Manchester Leisure,Grant and subscriptions awarded,14-Dec-22,5105848910,Harpurhey Neighbourhood Project,"3,000.00"
Manchester City Council,Childrens Services,Works and associated costs for Land and Buildings,08-Dec-22,5105847611,J Greenwood (Builders) Limited,"22,678.13"
Manchester City Council,Manchester Leisure,Works and associated costs for Land and Buildings,14-Dec-22,5105848852,J Greenwood (Builders) Limited,"85,784.52"
Manchester City Council,Childrens Services,Works and associated costs for Land and Buildings,23-Dec-22,5105849793,J Greenwood (Builders) Limited,"13,391.24"
Manchester City Council,Adult Social Care,Professional fees,09-Dec-22,5105847666,Master Moves Ltd,530.60
Manchester City Council,Adult Social Care,Third party payments relating to Voluntary Organisations,05-Dec-22,5105847190,Barnardo's,"74,943.19"
Manchester City Council,Regeneration Finance,Window Cleaning,05-Dec-22,5105847041,Associated Cleaning Contractors,"2,149.00"
Manchester City Council,Adult Social Care,Legal Fees,05-Dec-22,5105847268,Kings Chambers,600.00
Manchester City Council,Manchester Leisure,Counsel Costs,19-Dec-22,1907955789,Redacted Personal Information,650.00
Manchester City Council,Chief Executives,Paper & Envelopes,05-Dec-22,5105847109,Premier Paper Group Ltd,710.14
Manchester City Council,Chief Executives,Paper & Envelopes,15-Dec-22,5105849064,Premier Paper Group Ltd,"2,225.21"
Manchester City Council,Adult Social Care,Rents,05-Dec-22,5105847155,Mosscare Housing Ltd,703.64
Manchester City Council,Adult Social Care,Supported Accommodation,05-Dec-22,5105847214,Mosscare Housing Ltd,"19,773.72"
Manchester City Council,Childrens & Education Services,Carer Support Payments ,09-Dec-22,5105847990,Mosscare Housing Ltd,"60,700.09"
Manchester City Council,Adult Social Care,Supported Accommodation,20-Dec-22,5105849759,Mosscare Housing Ltd,"19,773.72"
Manchester City Council,Adult Social Care,Supported Accommodation,20-Dec-22,5105849760,Mosscare Housing Ltd,"3,685.40"
Manchester City Council,Adult Social Care,Supported Accommodation,20-Dec-22,5105849761,Mosscare Housing Ltd,"3,685.40"
Manchester City Council,Adult Social Care,Supported Accommodation,20-Dec-22,5105849758,Mosscare Housing Ltd,"1,737.84"
Manchester City Council,Environment and Operations,Construction Works,05-Dec-22,5105847091,University Of Salford,700.00
Manchester City Council,GMIST (Greater Mcr Integrated),Professional fees,31-Dec-22,5105849780,University Of Salford,"80,718.75"
Manchester City Council,Regeneration Finance,External repairs and maintenance for buildings,12-Dec-22,5105847376,M & M Cleaning Services Ltd,"1,127.00"
Manchester City Council,Housing Revenue Account,Council Dwelling Adaptations,02-Dec-22,5105846918,Rexel UK Ltd,"2,553.66"
Manchester City Council,Housing Revenue Account,Council Dwelling Adaptations,15-Dec-22,5105849130,Rexel UK Ltd,"32,733.50"
Manchester City Council,Housing Revenue Account,Council Dwelling Adaptations,31-Dec-22,5105850222,Rexel UK Ltd,"3,304.34"
Manchester City Council,Adult Social Care,Legal Fees,14-Dec-22,1907957341,Redacted Personal Information,"4,532.00"
Manchester City Council,Adult Social Care,Legal Fees,14-Dec-22,1907957340,Redacted Personal Information,522.00
Manchester City Council,Adult Social Care,Compensation Payments,19-Dec-22,1907963930,Redacted Personal Information,"3,336.00"
Manchester City Council,Chief Executives,Grant Payments,02-Dec-22,5105846877,Angel Solutions Ltd,"8,436.00"
Manchester City Council,Manchester Leisure,Payments to Sub-Contractors,06-Dec-22,5105847587,Clean-Up UK Limited,920.00
Manchester City Council,Corporate Services,Fees,20-Dec-22,1907949865,Jacobs,"106,607.90"
Manchester City Council,Corporate Services,Fees,20-Dec-22,1907941101,Jacobs,"80,367.09"
Manchester City Council,Corporate Services,Fees,20-Dec-22,1907961835,Jacobs,"15,647.25"
Manchester City Council,Corporate Services,Fees,20-Dec-22,1907961835,Jacobs,"-15,647.25"
Manchester City Council,Corporate Services,Fees,20-Dec-22,1907941101,Jacobs,"-80,367.09"
Manchester City Council,Corporate Services,Fees,20-Dec-22,1907949865,Jacobs,"-106,607.90"
Manchester City Council,Childrens & Education Services,Payments for services,12-Dec-22,5105847933,Myerscough College,"1,926.66"
Manchester City Council,Manchester Leisure,Building Materials for direct delivery,05-Dec-22,5105847221,Rigby Taylor Ltd,620.00
Manchester City Council,Manchester Leisure,Building Materials for direct delivery,06-Dec-22,5105847487,Rigby Taylor Ltd,771.60
Manchester City Council,Manchester Leisure,Building Materials for direct delivery,22-Dec-22,5105849172,Rigby Taylor Ltd,"1,625.44"
Manchester City Council,Manchester Leisure,Building Materials for direct delivery,22-Dec-22,5105850157,Rigby Taylor Ltd,"-1,625.44"
Manchester City Council,Adult Social Care,Third party payments relating to Voluntary Organisations,09-Dec-22,5105848018,Riverside ECHG,"27,000.00"
Manchester City Council,Adult Social Care,Professional fees,16-Dec-22,5105849383,Riverside ECHG,"5,299.50"
Manchester City Council,Adult Social Care,Professional fees,16-Dec-22,5105849381,Riverside ECHG,"2,902.02"
Manchester City Council,Adult Social Care,Third party payments relating to Voluntary Organisations,31-Dec-22,5105848384,Riverside ECHG,"24,708.00"
Manchester City Council,Manchester Leisure,Professional fees,08-Dec-22,5105847778,Experian Limited,"1,969.55"
Manchester City Council,Manchester Leisure,Library Materials Acquisition,15-Dec-22,1907957596,Experian Limited,609.96
Manchester City Council,Corporate Services,Tracing fees,16-Dec-22,5105849442,Experian Limited,"1,762.14"
Manchester City Council,Chief Executives,Vehicle Plant Furniture and Equipment,31-Dec-22,5105848098,XMA Limited,"120,054.35"
Manchester City Council,Chief Executives,Vehicle Plant Furniture and Equipment,31-Dec-22,5105848097,XMA Limited,"47,277.20"
Manchester City Council,Chief Executives,Vehicle Plant Furniture and Equipment,31-Dec-22,5105848011,XMA Limited,"35,972.88"
Manchester City Council,Chief Executives,Vehicle Plant Furniture and Equipment,31-Dec-22,5105847782,XMA Limited,"12,623.32"
Manchester City Council,Chief Executives,Vehicle Plant Furniture and Equipment,31-Dec-22,5105850553,XMA Limited,"34,348.85"
Manchester City Council,Chief Executives,Vehicle Plant Furniture and Equipment,31-Dec-22,5105850466,XMA Limited,"34,284.60"
Manchester City Council,Chief Executives,Vehicle Plant Furniture and Equipment,31-Dec-22,5105848095,XMA Limited,-642.30
Manchester City Council,Chief Executives,Vehicle Plant Furniture and Equipment,31-Dec-22,5105847969,XMA Limited,"-99,064.20"
Manchester City Council,Childrens & Education Services,Transport Coach Hire,22-Dec-22,5105849917,M Travel,"62,175.00"
Manchester City Council,Manchester Leisure,Professional fees,21-Dec-22,5105850148,Daly Drains Ltd,"7,398.02"
Manchester City Council,Manchester Leisure,Professional fees,21-Dec-22,5105850150,Daly Drains Ltd,"2,087.00"
Manchester City Council,Manchester Leisure,Professional fees,21-Dec-22,5105850149,Daly Drains Ltd,"1,154.00"
Manchester City Council,Manchester Leisure,Professional fees,22-Dec-22,5105850456,Daly Drains Ltd,"4,454.36"
Manchester City Council,Manchester Leisure,Library Materials Acquisition,01-Dec-22,1907949161,Azhar Enterprises Ltd,"1,003.50"
Manchester City Council,Manchester Leisure,Library Materials Acquisition,23-Dec-22,1907969680,Azhar Enterprises Ltd,"1,005.00"
Manchester City Council,Manchester Leisure,Grant and subscriptions awarded,07-Dec-22,5105847512,Moss Side Millennium Powerhouse Ltd,"1,440.00"
Manchester City Council,Manchester Leisure,Professional fees,08-Dec-22,5105847691,Floreeda Fabrications Ltd,531.00
Manchester City Council,Adult Social Care,Third party payments relating to Voluntary Organisations,08-Dec-22,5105847875,LGBT Foundation,"8,333.32"
Manchester City Council,Adult Social Care,Grant and subscriptions awarded,14-Dec-22,5105848688,LGBT Foundation,"10,484.33"
Manchester City Council,Adult Social Care,Third party payments relating to Voluntary Organisations,31-Dec-22,5105850346,LGBT Foundation,"8,333.32"
Manchester City Council,Highways Services,Building Materials for direct delivery,31-Dec-22,5105847921,William Smith Sons (Barnard Castle),625.32
Manchester City Council,Adult Social Care,Payments for services,08-Dec-22,5105847915,Standwalk Ltd,"167,252.10"
Manchester City Council,Adult Social Care,Payments for services,23-Dec-22,5105850485,Standwalk Ltd,"322,000.18"
Manchester City Council,Adult Social Care,Payments for services,23-Dec-22,5105850486,Standwalk Ltd,"322,000.18"
Manchester City Council,Manchester Leisure,Works and associated costs for Land and Buildings,05-Dec-22,5105847150,Earth Anchors Ltd,"1,437.00"
Manchester City Council,Manchester Leisure,Equipment,06-Dec-22,5105847247,Earth Anchors Ltd,909.00
Manchester City Council,Manchester Leisure,Equipment,08-Dec-22,5105847774,Earth Anchors Ltd,932.00
Manchester City Council,Manchester Leisure,Equipment,09-Dec-22,5105848124,Earth Anchors Ltd,909.00
Manchester City Council,Manchester Leisure,Equipment,09-Dec-22,5105848224,Earth Anchors Ltd,746.00
Manchester City Council,Manchester Leisure,Equipment,15-Dec-22,5105849348,Earth Anchors Ltd,825.00
Manchester City Council,Manchester Leisure,Equipment,15-Dec-22,5105849337,Earth Anchors Ltd,805.00
Manchester City Council,Manchester Leisure,Equipment,15-Dec-22,5105849131,Earth Anchors Ltd,620.00
Manchester City Council,Manchester Leisure,Equipment,16-Dec-22,5105849371,Earth Anchors Ltd,909.00
Manchester City Council,Manchester Leisure,External repairs and maintenance for buildings,08-Dec-22,5105847135,Groundwork Landscapes Ltd,"2,000.00"
Manchester City Council,Manchester Leisure,External repairs and maintenance for buildings,08-Dec-22,5105847154,Groundwork Landscapes Ltd,"2,000.00"
Manchester City Council,Manchester Leisure,Equipment,08-Dec-22,5105847152,Groundwork Landscapes Ltd,"2,000.00"
Manchester City Council,Manchester Leisure,Works and associated costs for Land and Buildings,19-Dec-22,5105849482,Groundwork Landscapes Ltd,"1,950.00"
Manchester City Council,Manchester Leisure,Works and associated costs for Land and Buildings,19-Dec-22,5105849540,Groundwork Landscapes Ltd,"1,912.50"
Manchester City Council,Manchester Leisure,Equipment,31-Dec-22,5105848174,Groundwork Landscapes Ltd,625.00
Manchester City Council,Manchester Leisure,Equipment,31-Dec-22,5105848176,Groundwork Landscapes Ltd,575.00
Manchester City Council,Manchester Leisure,Payments to Sub-Contractors,31-Dec-22,5105847940,Groundwork Landscapes Ltd,"2,900.00"
Manchester City Council,Environment and Operations,Construction Works,07-Dec-22,5105847722,Dowhigh Ltd,"56,950.00"
Manchester City Council,Environment and Operations,Construction Works,07-Dec-22,5105847724,Dowhigh Ltd,"3,401.65"
Manchester City Council,Environment and Operations,Construction Works,02-Dec-22,5105846902,J.Hopkins (Contractors) Ltd.,"7,449.55"
Manchester City Council,Environment and Operations,Construction Works,08-Dec-22,5105847843,J.Hopkins (Contractors) Ltd.,"46,831.33"
Manchester City Council,Environment and Operations,Construction Works,12-Dec-22,5105847142,J.Hopkins (Contractors) Ltd.,"35,213.74"
Manchester City Council,Environment and Operations,Construction Works,12-Dec-22,5105847145,J.Hopkins (Contractors) Ltd.,"17,970.00"
Manchester City Council,Environment and Operations,Construction Works,12-Dec-22,5105847129,J.Hopkins (Contractors) Ltd.,"13,200.00"
Manchester City Council,Environment and Operations,Construction Works,12-Dec-22,5105847130,J.Hopkins (Contractors) Ltd.,"2,244.81"
Manchester City Council,Environment and Operations,Construction Works,14-Dec-22,5105848995,J.Hopkins (Contractors) Ltd.,"38,500.00"
Manchester City Council,Environment and Operations,Construction Works,14-Dec-22,5105849052,J.Hopkins (Contractors) Ltd.,"34,374.47"
Manchester City Council,Environment and Operations,Construction Works,14-Dec-22,5105849059,J.Hopkins (Contractors) Ltd.,"33,900.00"
Manchester City Council,Environment and Operations,Construction Works,14-Dec-22,5105849084,J.Hopkins (Contractors) Ltd.,"31,300.00"
Manchester City Council,Environment and Operations,Construction Works,14-Dec-22,5105849073,J.Hopkins (Contractors) Ltd.,"24,341.79"
Manchester City Council,Environment and Operations,Construction Works,14-Dec-22,5105849035,J.Hopkins (Contractors) Ltd.,"24,000.00"
Manchester City Council,Environment and Operations,Construction Works,14-Dec-22,5105849055,J.Hopkins (Contractors) Ltd.,"16,100.00"
Manchester City Council,Environment and Operations,Construction Works,14-Dec-22,5105849017,J.Hopkins (Contractors) Ltd.,"14,250.00"
Manchester City Council,Environment and Operations,Construction Works,14-Dec-22,5105849012,J.Hopkins (Contractors) Ltd.,"9,500.00"
Manchester City Council,Environment and Operations,Construction Works,14-Dec-22,5105849044,J.Hopkins (Contractors) Ltd.,"9,490.66"
Manchester City Council,Environment and Operations,Construction Works,14-Dec-22,5105849088,J.Hopkins (Contractors) Ltd.,"9,432.61"
Manchester City Council,Environment and Operations,Construction Works,14-Dec-22,5105849054,J.Hopkins (Contractors) Ltd.,"9,361.60"
Manchester City Council,Environment and Operations,Construction Works,14-Dec-22,5105849072,J.Hopkins (Contractors) Ltd.,"9,354.39"
Manchester City Council,Environment and Operations,Construction Works,14-Dec-22,5105849058,J.Hopkins (Contractors) Ltd.,"9,129.65"
Manchester City Council,Environment and Operations,Construction Works,14-Dec-22,5105849082,J.Hopkins (Contractors) Ltd.,"8,941.07"
Manchester City Council,Environment and Operations,Construction Works,14-Dec-22,5105849026,J.Hopkins (Contractors) Ltd.,"8,189.28"
Manchester City Council,Environment and Operations,Construction Works,14-Dec-22,5105849000,J.Hopkins (Contractors) Ltd.,"5,711.58"
Manchester City Council,Environment and Operations,Construction Works,14-Dec-22,5105849086,J.Hopkins (Contractors) Ltd.,"5,422.42"
Manchester City Council,Environment and Operations,Construction Works,14-Dec-22,5105848994,J.Hopkins (Contractors) Ltd.,"2,962.10"
Manchester City Council,Environment and Operations,Construction Works,14-Dec-22,5105849023,J.Hopkins (Contractors) Ltd.,"2,127.82"
Manchester City Council,Environment and Operations,Construction Works,14-Dec-22,5105849041,J.Hopkins (Contractors) Ltd.,"1,947.59"
Manchester City Council,Environment and Operations,Construction Works,14-Dec-22,5105849056,J.Hopkins (Contractors) Ltd.,"1,555.15"
Manchester City Council,Environment and Operations,Construction Works,19-Dec-22,5105848185,J.Hopkins (Contractors) Ltd.,"193,974.95"
Manchester City Council,Environment and Operations,Construction Works,19-Dec-22,5105848183,J.Hopkins (Contractors) Ltd.,"57,780.87"
Manchester City Council,Environment and Operations,Construction Works,19-Dec-22,5105848187,J.Hopkins (Contractors) Ltd.,"48,282.29"
Manchester City Council,Environment and Operations,Construction Works,22-Dec-22,5105848835,J.Hopkins (Contractors) Ltd.,"46,412.80"
Manchester City Council,Environment and Operations,Construction Works,22-Dec-22,5105850324,J.Hopkins (Contractors) Ltd.,"19,850.00"
Manchester City Council,Environment and Operations,Construction Works,22-Dec-22,5105850321,J.Hopkins (Contractors) Ltd.,"19,027.03"
Manchester City Council,Environment and Operations,Construction Works,22-Dec-22,5105850335,J.Hopkins (Contractors) Ltd.,"15,050.00"
Manchester City Council,Environment and Operations,Construction Works,22-Dec-22,5105850326,J.Hopkins (Contractors) Ltd.,"9,724.98"
Manchester City Council,Environment and Operations,Construction Works,22-Dec-22,5105850331,J.Hopkins (Contractors) Ltd.,"7,589.59"
Manchester City Council,Environment and Operations,Construction Works,22-Dec-22,5105850332,J.Hopkins (Contractors) Ltd.,"6,526.75"
Manchester City Council,Environment and Operations,Construction Works,22-Dec-22,5105850322,J.Hopkins (Contractors) Ltd.,"6,400.00"
Manchester City Council,Environment and Operations,Construction Works,22-Dec-22,5105850325,J.Hopkins (Contractors) Ltd.,602.70
Manchester City Council,Environment and Operations,Construction Works,22-Dec-22,5105850327,J.Hopkins (Contractors) Ltd.,"156,000.00"
Manchester City Council,Environment and Operations,Construction Works,22-Dec-22,5105850328,J.Hopkins (Contractors) Ltd.,"41,801.75"
Manchester City Council,Environment and Operations,Construction Works,22-Dec-22,5105850309,J.Hopkins (Contractors) Ltd.,"33,900.00"
Manchester City Council,Environment and Operations,Construction Works,22-Dec-22,5105850329,J.Hopkins (Contractors) Ltd.,"25,963.72"
Manchester City Council,Environment and Operations,Construction Works,22-Dec-22,5105850307,J.Hopkins (Contractors) Ltd.,"16,700.00"
Manchester City Council,Environment and Operations,Construction Works,22-Dec-22,5105850330,J.Hopkins (Contractors) Ltd.,"16,463.46"
Manchester City Council,Environment and Operations,Construction Works,22-Dec-22,5105850333,J.Hopkins (Contractors) Ltd.,"13,850.00"
Manchester City Council,Environment and Operations,Construction Works,22-Dec-22,5105850334,J.Hopkins (Contractors) Ltd.,"8,758.81"
Manchester City Council,Environment and Operations,Construction Works,31-Dec-22,5105850336,J.Hopkins (Contractors) Ltd.,"1,223.78"
Manchester City Council,Chief Executives,Counsel Costs,23-Dec-22,1907963925,Redacted Personal Information,737.50
Manchester City Council,Childrens & Education Services,Professional fees,15-Dec-22,5105848674,Protec Fire Detection Plc,631.80
Manchester City Council,Childrens & Education Services,Professional fees,31-Dec-22,5105850259,Protec Fire Detection Plc,631.43
Manchester City Council,Corporate Services,Works and associated costs for Land and Buildings,02-Dec-22,5105846955,F Parkinson Limited,"68,223.64"
Manchester City Council,Corporate Services,Works and associated costs for Land and Buildings,16-Dec-22,5105849502,F Parkinson Limited,"6,104.66"
Manchester City Council,Adult Social Care,Equipment,22-Dec-22,5105850124,NRS Healthcare,"3,380.40"
Manchester City Council,Chief Executives,Works and associated costs for Land and Buildings,15-Dec-22,5105848916,Deloitte & Touche Llp,"5,000.00"
Manchester City Council,Adult Social Care,Catering Provisions,12-Dec-22,1907956609,Brake Bros Foodservice Ltd,560.62
Manchester City Council,Adult Social Care,Catering Provisions,20-Dec-22,1907965538,Brake Bros Foodservice Ltd,573.81
Manchester City Council,Childrens & Education Services,Payments for services,09-Dec-22,5105847936,Trafford College,"77,579.40"
Manchester City Council,Childrens & Education Services,Payments for services,09-Dec-22,5105847937,Trafford College,"6,771.79"
Manchester City Council,Manchester Leisure,Equipment,05-Dec-22,5105847107,Sts Touring Productions Ltd,"4,430.00"
Manchester City Council,Manchester Leisure,Equipment,05-Dec-22,5105847106,Sts Touring Productions Ltd,"1,858.08"
Manchester City Council,Chief Executives,Landline Telephone,31-Dec-22,1700141907,Vodafone (Ex C&W),-726.00
Manchester City Council,Highways Services,Purchase of stores for re-distribution,08-Dec-22,5105847672,Kloeckner Metals UK,756.00
Manchester City Council,Highways Services,Building Materials for direct delivery,15-Dec-22,5105848836,Kloeckner Metals UK,"1,415.00"
Manchester City Council,Manchester Leisure,Professional fees,23-Dec-22,5105850536,Metrolink Limited,990.00
Manchester City Council,Regeneration Finance,Professional fees,12-Dec-22,5105848403,Savills (UK) Ltd,"7,500.00"
Manchester City Council,Regeneration Finance,Professional fees,12-Dec-22,5105848387,Savills (UK) Ltd,"5,500.00"
Manchester City Council,Regeneration Finance,Professional fees,15-Dec-22,5105847211,Savills (UK) Ltd,"3,000.00"
Manchester City Council,Corporate Services,Professional fees,23-Dec-22,5105850619,Savills (UK) Ltd,650.00
Manchester City Council,Highways Services,Building Materials for direct delivery,05-Dec-22,5105847170,TARMAC,"1,426.44"
Manchester City Council,Highways Services,Building Materials for direct delivery,05-Dec-22,5105847172,TARMAC,"1,363.41"
Manchester City Council,Highways Services,Building Materials for direct delivery,05-Dec-22,5105847156,TARMAC,"1,197.65"
Manchester City Council,Highways Services,Building Materials for direct delivery,05-Dec-22,5105847168,TARMAC,"1,197.65"
Manchester City Council,Highways Services,Building Materials for direct delivery,05-Dec-22,5105847175,TARMAC,"1,162.63"
Manchester City Council,Highways Services,Building Materials for direct delivery,05-Dec-22,5105847158,TARMAC,"1,155.63"
Manchester City Council,Highways Services,Building Materials for direct delivery,05-Dec-22,5105847173,TARMAC,"1,143.95"
Manchester City Council,Highways Services,Building Materials for direct delivery,05-Dec-22,5105847160,TARMAC,"1,141.62"
Manchester City Council,Highways Services,Building Materials for direct delivery,05-Dec-22,5105847167,TARMAC,961.86
Manchester City Council,Highways Services,Building Materials for direct delivery,05-Dec-22,5105847161,TARMAC,945.51
Manchester City Council,Highways Services,Building Materials for direct delivery,05-Dec-22,5105847164,TARMAC,700.38
Manchester City Council,Highways Services,Building Materials for direct delivery,06-Dec-22,5105847358,TARMAC,"1,244.34"
Manchester City Council,Highways Services,Building Materials for direct delivery,06-Dec-22,5105847360,TARMAC,740.07
Manchester City Council,Highways Services,Building Materials for direct delivery,12-Dec-22,5105848465,TARMAC,"1,059.68"
Manchester City Council,Highways Services,Building Materials for direct delivery,19-Dec-22,5105849665,TARMAC,"1,428.78"
Manchester City Council,Highways Services,Building Materials for direct delivery,19-Dec-22,5105849662,TARMAC,"1,396.09"
Manchester City Council,Highways Services,Building Materials for direct delivery,19-Dec-22,5105849628,TARMAC,"1,164.97"
Manchester City Council,Highways Services,Building Materials for direct delivery,19-Dec-22,5105849663,TARMAC,973.53
Manchester City Council,Highways Services,Building Materials for direct delivery,19-Dec-22,5105849630,TARMAC,910.49
Manchester City Council,Highways Services,Building Materials for direct delivery,19-Dec-22,5105849707,TARMAC,826.45
Manchester City Council,Highways Services,Building Materials for direct delivery,19-Dec-22,5105849625,TARMAC,691.04
Manchester City Council,Highways Services,Building Materials for direct delivery,20-Dec-22,5105849801,TARMAC,"3,420.19"
Manchester City Council,Highways Services,Building Materials for direct delivery,20-Dec-22,5105849861,TARMAC,"1,405.43"
Manchester City Council,Highways Services,Building Materials for direct delivery,20-Dec-22,5105849840,TARMAC,740.07
Manchester City Council,Highways Services,Building Materials for direct delivery,20-Dec-22,5105849802,TARMAC,614.00
Manchester City Council,Highways Services,Building Materials for direct delivery,21-Dec-22,5105850051,TARMAC,"2,311.25"
Manchester City Council,Highways Services,Building Materials for direct delivery,31-Dec-22,5105850708,TARMAC,"2,374.28"
Manchester City Council,Highways Services,Building Materials for direct delivery,31-Dec-22,5105850835,TARMAC,"1,204.65"
Manchester City Council,Highways Services,Building Materials for direct delivery,31-Dec-22,5105850706,TARMAC,"1,174.30"
Manchester City Council,Childrens & Education Services,Legal Fees,19-Dec-22,5105849716,Redacted Personal Information,"1,200.00"
Manchester City Council,Regeneration Finance,Third party payments relating to Voluntary Organisations,06-Dec-22,5105847482,Manchester Young Lives,"26,764.00"
Manchester City Council,Hospitality + Trading Services,Hire of Machinery,09-Dec-22,5105848348,H & C Plant Hire Ltd,"2,486.00"
Manchester City Council,Adult Social Care,Equipment,15-Dec-22,5105849047,The Care Team,"3,720.00"
Manchester City Council,Hospitality + Trading Services,Hire of Equipment,06-Dec-22,5105847596,Mastacab LLP,510.40
Manchester City Council,Manchester Leisure,Payments to Sub-Contractors,05-Dec-22,5105846894,Arboricultural Services Treework,"1,000.00"
Manchester City Council,Childrens & Education Services,Grounds Maintenance,19-Dec-22,5105849619,Arboricultural Services Treework,600.00
Manchester City Council,Regeneration Finance,Grounds Maintenance,20-Dec-22,5105849620,Arboricultural Services Treework,800.00
Manchester City Council,Manchester Leisure,Payments to Sub-Contractors,22-Dec-22,5105850297,Arboricultural Services Treework,"18,600.00"
Manchester City Council,Manchester Leisure,Payments to Sub-Contractors,22-Dec-22,5105850303,Arboricultural Services Treework,"2,500.00"
Manchester City Council,Manchester Leisure,Payments to Sub-Contractors,22-Dec-22,5105850300,Arboricultural Services Treework,"2,300.00"
Manchester City Council,Manchester Leisure,Payments to Sub-Contractors,22-Dec-22,5105850302,Arboricultural Services Treework,"1,700.00"
Manchester City Council,Manchester Leisure,Payments to Sub-Contractors,22-Dec-22,5105850295,Arboricultural Services Treework,500.00
Manchester City Council,Childrens & Education Services,Grounds Maintenance,31-Dec-22,5105848434,Arboricultural Services Treework,800.00
Manchester City Council,Manchester Leisure,Payments to Sub-Contractors,31-Dec-22,5105850298,Arboricultural Services Treework,"11,800.00"
Manchester City Council,Manchester Leisure,Payments to Sub-Contractors,31-Dec-22,5105850299,Arboricultural Services Treework,"2,800.00"
Manchester City Council,Manchester Leisure,Payments to Sub-Contractors,31-Dec-22,5105850301,Arboricultural Services Treework,"1,250.00"
Manchester City Council,Manchester Leisure,Payments to Sub-Contractors,31-Dec-22,5105850304,Arboricultural Services Treework,500.00
Manchester City Council,Adult Social Care,Third party payments relating to Voluntary Organisations,21-Dec-22,5105849722,Afro Carribean Care Group,"29,167.00"
Manchester City Council,Corporate Services,Compensation Payments,05-Dec-22,1907950179,Peasegoods,"6,000.00"
Manchester City Council,Corporate Services,Legal Fees,06-Dec-22,1907952273,Peasegoods,"5,000.00"
Manchester City Council,Corporate Services,Legal Fees,12-Dec-22,1907957325,Peasegoods,"16,125.00"
Manchester City Council,Corporate Services,Compensation Payments,21-Dec-22,1907968842,Peasegoods,"1,900.00"
Manchester City Council,Corporate Services,Legal Fees,21-Dec-22,1907968842,Peasegoods,"5,325.00"
Manchester City Council,Highways Services,Grounds Maintenance,14-Dec-22,5105849179,Central Locksmiths,717.50
Manchester City Council,Childrens & Education Services,Payments for services,01-Dec-22,5105846860,Manchester High School For Girls,"10,500.00"
Manchester City Council,Manchester Leisure,Special Event,16-Dec-22,5105848871,Libraries Connected,"1,000.00"
Manchester City Council,Adult Social Care,Supporting People Payments,05-Dec-22,5105847110,Arawak Walton Housing Association,"7,929.12"
Manchester City Council,Adult Social Care,"Consumable items eg Toilet rolls, soap etc",31-Dec-22,5105850694,Redacted Personal Information,"2,586.00"
Manchester City Council,Childrens & Education Services,Transport Coach Hire,13-Dec-22,5105848175,Redacted Personal Information,"2,860.00"
Manchester City Council,Chief Executives,Agency staff provision,12-Dec-22,5105848244,Deekay Technical Recruitment Ltd,"12,092.60"
Manchester City Council,Manchester Leisure,Building Materials for direct delivery,21-Dec-22,5105850047,Britain in Bloom North West,820.00
Manchester City Council,Adult Social Care,Payments for services,09-Dec-22,5105848155,Care Concepts Ltd,"8,239.68"
Manchester City Council,Adult Social Care,Payments for services,09-Dec-22,5105848156,Care Concepts Ltd,655.05
Manchester City Council,Childrens & Education Services,Transport Coach Hire,06-Dec-22,5105847402,Redacted Personal Information,"3,630.88"
Manchester City Council,Adult Social Care,Payments for services,02-Dec-22,5105846975,Mosscare St Vincent's Housing,517.37
Manchester City Council,Adult Social Care,Payments for services,02-Dec-22,5105846972,Mosscare St Vincent's Housing,517.36
Manchester City Council,Adult Social Care,Payments for services,02-Dec-22,5105846973,Mosscare St Vincent's Housing,517.36
Manchester City Council,Adult Social Care,Payments for services,02-Dec-22,5105846974,Mosscare St Vincent's Housing,517.36
Manchester City Council,Adult Social Care,Payments for services,02-Dec-22,5105846977,Mosscare St Vincent's Housing,517.36
Manchester City Council,Adult Social Care,Payments for services,02-Dec-22,5105846978,Mosscare St Vincent's Housing,517.36
Manchester City Council,Adult Social Care,Payments for services,02-Dec-22,5105846979,Mosscare St Vincent's Housing,517.36
Manchester City Council,Adult Social Care,Payments for services,02-Dec-22,5105846980,Mosscare St Vincent's Housing,517.36
Manchester City Council,Adult Social Care,Payments for services,02-Dec-22,5105846991,Mosscare St Vincent's Housing,517.36
Manchester City Council,Adult Social Care,Payments for services,02-Dec-22,5105846976,Mosscare St Vincent's Housing,-517.37
Manchester City Council,Adult Social Care,Payments for services,09-Dec-22,5105848242,Mosscare St Vincent's Housing,517.36
Manchester City Council,Childrens & Education Services,Supported Accommodation,12-Dec-22,5105848503,Mosscare St Vincent's Housing,847.12
Manchester City Council,Childrens & Education Services,Supported Accommodation,12-Dec-22,5105848504,Mosscare St Vincent's Housing,847.12
Manchester City Council,Childrens & Education Services,Supported Accommodation,12-Dec-22,5105848505,Mosscare St Vincent's Housing,828.28
Manchester City Council,Adult Social Care,Supported Accommodation,23-Dec-22,5105850480,Mosscare St Vincent's Housing,517.36
Manchester City Council,Adult Social Care,Supported Accommodation,23-Dec-22,5105850481,Mosscare St Vincent's Housing,517.36
Manchester City Council,Adult Social Care,Supported Accommodation,23-Dec-22,5105850483,Mosscare St Vincent's Housing,517.36
Manchester City Council,Highways Services,Building Materials for direct delivery,06-Dec-22,5105847594,Glasdon U.K. Limited,"10,234.24"
Manchester City Council,Regeneration Finance,Legal Fees,02-Dec-22,5105847099,No 5 Chambers Ltd,"2,000.00"
Manchester City Council,Corporate Services,I T Provision,08-Dec-22,5105847830,Civica UK Ltd,"2,787.73"
Manchester City Council,Corporate Services,ICT Sup & Maintnance,19-Dec-22,1907965475,Civica UK Ltd,"21,917.50"
Manchester City Council,Corporate Services,ICT Sup & Maintnance,20-Dec-22,1907966107,Civica UK Ltd,"4,383.50"
Manchester City Council,Adult Social Care,Supporting People Payments,14-Dec-22,5105849013,Turning Point Services,"7,631.60"
Manchester City Council,Adult Social Care,Supporting People Payments,14-Dec-22,5105849016,Turning Point Services,"7,631.60"
Manchester City Council,Adult Social Care,Supporting People Payments,14-Dec-22,5105849022,Turning Point Services,"5,500.47"
Manchester City Council,Adult Social Care,Supporting People Payments,14-Dec-22,5105849062,Turning Point Services,"5,500.47"
Manchester City Council,Childrens & Education Services,Payments for services,19-Dec-22,5105849644,Seashell trust,"1,588.14"
Manchester City Council,Adult Social Care,Third party payments to Health Authority,06-Dec-22,5105847399,Manchester Bangladeshi Womens Organ,"36,000.00"
Manchester City Council,Adult Social Care,Third party payments to Health Authority,09-Dec-22,5105848058,Manchester Bangladeshi Womens Organ,"18,124.50"
Manchester City Council,Adult Social Care,Grant and subscriptions awarded,08-Dec-22,5105847710,Caritas Diocese of Salford,"21,041.18"
Manchester City Council,Adult Social Care,Grant and subscriptions awarded,08-Dec-22,5105847712,Caritas Diocese of Salford,"21,041.18"
Manchester City Council,Manchester Leisure,Grant and subscriptions awarded,08-Dec-22,5105847919,Zion Arts Centre Ltd,560.00
Manchester City Council,Chief Executives,Grant and subscriptions awarded,22-Dec-22,5105850461,Zion Arts Centre Ltd,"46,122.00"
Manchester City Council,Chief Executives,Professional fees,12-Dec-22,5105847729,George House Trust,"3,000.00"
Manchester City Council,Chief Executives,Printing,31-Dec-22,5105848948,Astra Signs,"13,370.00"
Manchester City Council,Chief Executives,Printing,31-Dec-22,5105848950,Astra Signs,650.00
Manchester City Council,Childrens & Education Services,Payments for services,16-Dec-22,5105848457,Xaverian College,"15,300.00"
Manchester City Council,Chief Executives,Funeral and coroner related services,21-Dec-22,5105850078,Uni Hospital of South Mcr,"3,178.00"
Manchester City Council,Chief Executives,Examination Fees,21-Dec-22,5105850079,Uni Hospital of South Mcr,"1,680.00"
Manchester City Council,Corporate Services,Legal Fees,08-Dec-22,1907955739,Antony Hodari Holding Ltd,"5,750.00"
Manchester City Council,Corporate Services,Signers/Interpreters,16-Dec-22,1907964032,Antony Hodari Holding Ltd,"1,000.00"
Manchester City Council,Chief Executives,Third party payments relating to Voluntary Organisations,12-Dec-22,5105847009,HOME,"105,699.50"
Manchester City Council,Manchester Leisure,Professional fees,19-Dec-22,5105849711,HOME,"5,000.00"
Manchester City Council,Chief Executives,Legal Fees,09-Dec-22,5105847957,DWF LLP,"24,373.00"
Manchester City Council,Adult Social Care,Payments for services,08-Dec-22,5105847675,Creative Support Ltd,"46,830.16"
Manchester City Council,Adult Social Care,Payments for services,08-Dec-22,5105847679,Creative Support Ltd,"46,830.16"
Manchester City Council,Adult Social Care,Third party payments to Health Authority,09-Dec-22,5105848026,Creative Support Ltd,"46,830.16"
Manchester City Council,Adult Social Care,Third party payments to Health Authority,09-Dec-22,5105848054,Creative Support Ltd,"46,830.16"
Manchester City Council,Adult Social Care,Third party payments to Health Authority,09-Dec-22,5105848023,Creative Support Ltd,"43,355.77"
Manchester City Council,Adult Social Care,Third party payments to Health Authority,09-Dec-22,5105848055,Creative Support Ltd,"43,355.77"
Manchester City Council,Adult Social Care,Third party payments to Health Authority,09-Dec-22,5105848025,Creative Support Ltd,"3,474.39"
Manchester City Council,Adult Social Care,Third party payments to Health Authority,21-Dec-22,5105850008,Creative Support Ltd,"3,474.39"
Manchester City Council,Adult Social Care,Signers/Interpreters,06-Dec-22,5105847410,Language Line Ltd,"9,200.64"
Manchester City Council,Adult Social Care,Signers/Interpreters,06-Dec-22,5105847406,Language Line Ltd,"7,050.24"
Manchester City Council,Corporate Services,Signers/Interpreters,06-Dec-22,5105847410,Language Line Ltd,"1,334.20"
Manchester City Council,Corporate Services,Signers/Interpreters,06-Dec-22,5105847406,Language Line Ltd,"1,208.60"
Manchester City Council,Adult Social Care,Signers/Interpreters,08-Dec-22,5105847789,Language Line Ltd,551.20
Manchester City Council,Adult Social Care,Signers/Interpreters,13-Dec-22,5105848646,Language Line Ltd,981.60
Manchester City Council,Childrens & Education Services,Signers/Interpreters,14-Dec-22,5105849003,Language Line Ltd,752.00
Manchester City Council,Adult Social Care,Signers/Interpreters,15-Dec-22,5105849259,Language Line Ltd,924.00
Manchester City Council,Childrens & Education Services,Expenditure re Internal Trading Ordered Externally,31-Dec-22,5105850187,Language Line Ltd,953.60
Manchester City Council,Corporate Services,Grant and subscriptions awarded,31-Dec-22,5105850786,I.R.R.V. Services Ltd,"1,800.00"
Manchester City Council,Highways Services,Payments to Sub-Contractors,09-Dec-22,5105847955,Amey Highways Lighting (Manchester),"9,109.29"
Manchester City Council,Highways Services,Private Finance and Public Private partnership initiatives,09-Dec-22,5105848017,Amey Highways Lighting (Manchester),"716,284.93"
Manchester City Council,Highways Services,Payments to Sub-Contractors,12-Dec-22,5105848464,Amey Highways Lighting (Manchester),"12,589.72"
Manchester City Council,Highways Services,Payments to Sub-Contractors,14-Dec-22,5105848746,Amey Highways Lighting (Manchester),"5,482.03"
Manchester City Council,Highways Services,Payments to Sub-Contractors,14-Dec-22,5105848745,Amey Highways Lighting (Manchester),"-5,207.93"
Manchester City Council,Adult Social Care,"Consumable items eg Toilet rolls, soap etc",16-Dec-22,5105848642,All 4 Pets Limited,924.00
Manchester City Council,Adult Social Care,"Consumable items eg Toilet rolls, soap etc",16-Dec-22,5105848598,All 4 Pets Limited,697.50
Manchester City Council,Adult Social Care,"Consumable items eg Toilet rolls, soap etc",16-Dec-22,5105848626,All 4 Pets Limited,697.50
Manchester City Council,Adult Social Care,"Consumable items eg Toilet rolls, soap etc",16-Dec-22,5105848643,All 4 Pets Limited,697.50
Manchester City Council,Adult Social Care,Payments for services,13-Dec-22,5105848725,Independent Living Alliance,"3,360.80"
Manchester City Council,Regeneration Finance,Professional fees,06-Dec-22,5105847435,Lambert Smith Hampton,"1,200.00"
Manchester City Council,Housing General Fund,Building Works,05-Dec-22,1907950787,Stannah Lift Services Ltd,"6,244.00"
Manchester City Council,Housing General Fund,Building Works,05-Dec-22,1907950782,Stannah Lift Services Ltd,"3,871.00"
Manchester City Council,Housing General Fund,Building Works,05-Dec-22,1907950781,Stannah Lift Services Ltd,"3,269.00"
Manchester City Council,Housing General Fund,Building Works,05-Dec-22,1907950776,Stannah Lift Services Ltd,"3,062.00"
Manchester City Council,Housing General Fund,Building Works,05-Dec-22,1907950785,Stannah Lift Services Ltd,"2,590.00"
Manchester City Council,Housing General Fund,Building Works,05-Dec-22,1907950775,Stannah Lift Services Ltd,"6,720.00"
Manchester City Council,Housing General Fund,Building Works,05-Dec-22,1907950777,Stannah Lift Services Ltd,"6,460.00"
Manchester City Council,Housing General Fund,Building Works,05-Dec-22,1907950790,Stannah Lift Services Ltd,"6,208.00"
Manchester City Council,Housing General Fund,Building Works,05-Dec-22,1907950773,Stannah Lift Services Ltd,"5,473.00"
Manchester City Council,Housing General Fund,Building Works,05-Dec-22,1907950772,Stannah Lift Services Ltd,"4,322.00"
Manchester City Council,Housing General Fund,Building Works,05-Dec-22,1907950774,Stannah Lift Services Ltd,"4,201.00"
Manchester City Council,Housing General Fund,Building Works,05-Dec-22,1907950771,Stannah Lift Services Ltd,"3,779.00"
Manchester City Council,Housing General Fund,Building Works,05-Dec-22,1907950788,Stannah Lift Services Ltd,"3,399.00"
Manchester City Council,Housing General Fund,Building Works,05-Dec-22,1907950780,Stannah Lift Services Ltd,"2,967.00"
Manchester City Council,Housing General Fund,Building Works,05-Dec-22,1907950779,Stannah Lift Services Ltd,"2,912.00"
Manchester City Council,Housing Revenue Account,Council Dwelling Adaptations,06-Dec-22,5105847240,Stannah Lift Services Ltd,"3,124.00"
Manchester City Council,Housing Revenue Account,Council Dwelling Adaptations,09-Dec-22,5105848115,Stannah Lift Services Ltd,"5,137.00"
Manchester City Council,Housing Revenue Account,Council Dwelling Adaptations,09-Dec-22,5105848200,Stannah Lift Services Ltd,"5,524.00"
Manchester City Council,Housing General Fund,Building Works,12-Dec-22,1907956452,Stannah Lift Services Ltd,"7,480.00"
Manchester City Council,Housing General Fund,Building Works,12-Dec-22,1907956446,Stannah Lift Services Ltd,"7,220.00"
Manchester City Council,Housing General Fund,Building Works,12-Dec-22,1907956453,Stannah Lift Services Ltd,"6,138.00"
Manchester City Council,Housing General Fund,Building Works,12-Dec-22,1907956447,Stannah Lift Services Ltd,"1,717.68"
Manchester City Council,Housing General Fund,Building Works,12-Dec-22,1907956451,Stannah Lift Services Ltd,"6,841.00"
Manchester City Council,Housing General Fund,Building Works,12-Dec-22,1907956448,Stannah Lift Services Ltd,"6,623.00"
Manchester City Council,Housing General Fund,Building Works,12-Dec-22,1907956449,Stannah Lift Services Ltd,"5,911.00"
Manchester City Council,Housing General Fund,Building Works,12-Dec-22,1907956445,Stannah Lift Services Ltd,"7,013.00"
Manchester City Council,Housing General Fund,Building Works,21-Dec-22,1907968655,Stannah Lift Services Ltd,"6,163.00"
Manchester City Council,Housing General Fund,Building Works,21-Dec-22,1907968646,Stannah Lift Services Ltd,"5,842.00"
Manchester City Council,Housing General Fund,Building Works,21-Dec-22,1907968645,Stannah Lift Services Ltd,"3,843.00"
Manchester City Council,Housing General Fund,Building Works,21-Dec-22,1907968656,Stannah Lift Services Ltd,"3,729.00"
Manchester City Council,Housing General Fund,Building Works,21-Dec-22,1907968648,Stannah Lift Services Ltd,"6,756.00"
Manchester City Council,Housing General Fund,Building Works,22-Dec-22,1907968647,Stannah Lift Services Ltd,"4,322.00"
Manchester City Council,Housing General Fund,Building Works,23-Dec-22,1907968654,Stannah Lift Services Ltd,"6,626.00"
Manchester City Council,Housing Revenue Account,Council Dwelling Adaptations,23-Dec-22,5105850482,Stannah Lift Services Ltd,"6,867.50"
Manchester City Council,Childrens & Education Services,Personal needs of client,21-Dec-22,5105850066,Hemingways Marketing Services Ltd,500.00
Manchester City Council,Childrens & Education Services,Private Finance and Public Private partnership initiatives,15-Dec-22,5105847008,NU3PS,"84,160.50"
Manchester City Council,Adult Social Care,Carer Support Payments ,09-Dec-22,5105848333,Greater Manchester Mental Health,"4,459.50"
Manchester City Council,Adult Social Care,Carer Support Payments ,14-Dec-22,5105848790,Greater Manchester Mental Health,"13,378.50"
Manchester City Council,Adult Social Care,Carer Support Payments ,14-Dec-22,5105848847,Greater Manchester Mental Health,"4,459.50"
Manchester City Council,Adult Social Care,Carer Support Payments ,14-Dec-22,5105848849,Greater Manchester Mental Health,"4,459.50"
Manchester City Council,Adult Social Care,Carer Support Payments ,14-Dec-22,5105848902,Greater Manchester Mental Health,"4,459.50"
Manchester City Council,Adult Social Care,Carer Support Payments ,14-Dec-22,5105848906,Greater Manchester Mental Health,"4,459.50"
Manchester City Council,Adult Social Care,Supporting People Payments,31-Dec-22,5105850617,Greater Manchester Mental Health,"401,023.00"
Manchester City Council,Adult Social Care,Third party payments to Health Authority,06-Dec-22,5105847464,Central Mcr Uni Hospital t/a,"889,666.67"
Manchester City Council,Adult Social Care,Third party payments to Health Authority,06-Dec-22,5105847446,Central Mcr Uni Hospital t/a,"523,401.17"
Manchester City Council,Adult Social Care,Third party payments to Health Authority,06-Dec-22,5105847442,Central Mcr Uni Hospital t/a,"332,844.50"
Manchester City Council,Adult Social Care,Third party payments to Health Authority,06-Dec-22,5105847419,Central Mcr Uni Hospital t/a,"83,166.67"
Manchester City Council,Adult Social Care,Third party payments to Health Authority,06-Dec-22,5105847444,Central Mcr Uni Hospital t/a,"46,262.83"
Manchester City Council,Adult Social Care,Third party payments to Health Authority,06-Dec-22,5105847461,Central Mcr Uni Hospital t/a,"40,833.33"
Manchester City Council,Adult Social Care,Third party payments to Health Authority,06-Dec-22,5105847442,Central Mcr Uni Hospital t/a,"15,371.75"
Manchester City Council,Adult Social Care,Third party payments to Health Authority,06-Dec-22,5105847442,Central Mcr Uni Hospital t/a,"5,045.16"
Manchester City Council,Childrens & Education Services,Third party payments relating to Voluntary Organisations,08-Dec-22,5105847863,Central Mcr Uni Hospital t/a,"20,833.33"
Manchester City Council,Adult Social Care,Third party payments to Health Authority,15-Dec-22,5105849122,Central Mcr Uni Hospital t/a,"2,500.00"
Manchester City Council,Regeneration Finance,Grant and subscriptions awarded,31-Dec-22,5105849135,Central Mcr Uni Hospital t/a,"75,000.00"
Manchester City Council,Childrens & Education Services,Payments for services,31-Dec-22,5105847853,Central Mcr Uni Hospital t/a,"7,652.40"
Manchester City Council,Adult Social Care,Personal needs of client,31-Dec-22,5105847866,Central Mcr Uni Hospital t/a,"1,363.45"
Manchester City Council,Manchester Leisure,Grant and subscriptions awarded,13-Dec-22,5105848357,M13 Youth Project,"47,108.00"
Manchester City Council,Adult Social Care,Third party payments relating to Voluntary Organisations,05-Dec-22,5105847123,Manchester Carers Centre,"29,165.00"
Manchester City Council,Regeneration Finance,GRIR,06-Dec-22,5105847552,Victoria Baths Trust,"-1,032.86"
Manchester City Council,Adult Social Care,Professional fees,02-Dec-22,5105847074,Tameside Metropolitan Bouough,"15,000.00"
Manchester City Council,Adult Social Care,Payments for services,31-Dec-22,5105850363,Wigan Metropolitan Borough Council,"178,240.00"
Manchester City Council,Childrens & Education Services,Payments for services,12-Dec-22,5105848456,Chaigeley Education Foundation,"4,518.18"
Manchester City Council,Childrens & Education Services,Third party payments to other Local Authorities,31-Dec-22,5105850793,Rochdale Mbc,"2,435.28"
Manchester City Council,Regeneration Finance,Third party payments relating to Voluntary Organisations,23-Dec-22,5105850561,Pure Innovations Ltd,"41,808.00"
Manchester City Council,Regeneration Finance,Third party payments to other Local Authorities,06-Dec-22,5105847431,Wolverhampton City Council,"3,600.00"
Manchester City Council,Regeneration Finance,Contract Cleaning External,02-Dec-22,5105846923,Wythenshawe Forum Trust Ltd,"4,934.74"
Manchester City Council,Manchester Leisure,Gas,14-Dec-22,5105848173,Wythenshawe Forum Trust Ltd,"5,673.44"
Manchester City Council,Manchester Leisure,Electricity,14-Dec-22,5105848173,Wythenshawe Forum Trust Ltd,"20,547.85"
Manchester City Council,Regeneration Finance,Contract Cleaning External,21-Dec-22,5105850009,Wythenshawe Forum Trust Ltd,"4,681.92"
Manchester City Council,Regeneration Finance,Professional fees,31-Dec-22,5105850628,Wythenshawe Forum Trust Ltd,"1,500.00"
Manchester City Council,Adult Social Care,Hire of Premises,09-Dec-22,5105847785,Quaker Trading Ltd,518.88
Manchester City Council,Manchester Leisure,Professional fees,14-Dec-22,5105848864,Quaker Trading Ltd,503.50
Manchester City Council,Manchester Leisure,Hire of Premises,15-Dec-22,5105849093,Quaker Trading Ltd,503.33
Manchester City Council,Childrens & Education Services,Hire of Premises,20-Dec-22,5105848547,Quaker Trading Ltd,"1,220.84"
Manchester City Council,Childrens & Education Services,Subsistence and Conference Expenses,22-Dec-22,1907955684,Quaker Trading Ltd,550.00
Manchester City Council,Adult Social Care,Third party payments relating to Voluntary Organisations,15-Dec-22,5105849358,Greater Manchester Immigration Aid,"8,158.00"
Manchester City Council,Chief Executives,Advertising,05-Dec-22,5105847136,Transport for Greater Manchester,"8,817.00"
Manchester City Council,Corporate Services,Travel Season TLS,12-Dec-22,5105848010,Transport for Greater Manchester,"1,038.60"
Manchester City Council,Highways Services,GRIR,15-Dec-22,5105849134,Transport for Greater Manchester,"1,562.40"
Manchester City Council,Highways Services,GRIR,15-Dec-22,5105849136,Transport for Greater Manchester,"-1,562.40"
Manchester City Council,Environment and Operations,Construction Works,31-Dec-22,5105849854,Transport for Greater Manchester,"6,332.75"
Manchester City Council,Environment and Operations,Construction Works,31-Dec-22,5105850842,Transport for Greater Manchester,"1,750.00"
Manchester City Council,Highways Services,Professional fees,31-Dec-22,5105850584,Transport for Greater Manchester,"305,027.01"
Manchester City Council,Adult Social Care,Third party payments relating to Voluntary Organisations,15-Dec-22,5105846912,Manchester Care & Repair Ltd,"30,000.00"
Manchester City Council,Housing General Fund,Building Works,16-Dec-22,5105849547,Manchester Care & Repair Ltd,"89,139.00"
Manchester City Council,Adult Social Care,Third party payments relating to Voluntary Organisations,08-Dec-22,5105847619,Citizens Advice Manchester,"80,000.00"
Manchester City Council,Regeneration Finance,Hire of Premises,31-Dec-22,5105848188,Manchester Settlement,792.00
Manchester City Council,Environment and Operations,Construction Works,31-Dec-22,5105850347,Salford City Council,"1,864.32"
Manchester City Council,Adult Social Care,Third party payments relating to Voluntary Organisations,15-Dec-22,5105848845,Independent Choices Gtr Manchester,"4,390.00"
Manchester City Council,Adult Social Care,Third party payments relating to Voluntary Organisations,06-Dec-22,5105847441,Albert Kennedy Trust,758.33
Manchester City Council,Adult Social Care,Payments for services,12-Dec-22,5105846914,Brook,"42,891.49"
Manchester City Council,Adult Social Care,Training and Development,14-Dec-22,5105848639,Disabled Living,750.00
Manchester City Council,Adult Social Care,Training and Development,19-Dec-22,5105849171,Disabled Living,750.00
Manchester City Council,Adult Social Care,Training and Development,23-Dec-22,5105850552,Disabled Living,750.00
Manchester City Council,Adult Social Care,Training and Development,31-Dec-22,5105850734,Disabled Living,750.00
Manchester City Council,Adult Social Care,Training and Development,31-Dec-22,5105850735,Disabled Living,750.00
Manchester City Council,Adult Social Care,Training and Development,31-Dec-22,5105850737,Disabled Living,750.00
Manchester City Council,Manchester Leisure,External repairs and maintenance for buildings,31-Dec-22,5105850712,Ashlea Ltd,"1,343.85"
Manchester City Council,Adult Social Care,External repairs and maintenance for buildings,15-Dec-22,5105849296,Ashbury Meadow Primary School,675.00
Manchester City Council,Adult Social Care,Gas,16-Dec-22,5105849487,Ashbury Meadow Primary School,539.62
Manchester City Council,Adult Social Care,Electricity,16-Dec-22,5105849486,Ashbury Meadow Primary School,"1,939.88"
Manchester City Council,Regeneration Finance,Electricity,05-Dec-22,5105847117,St Clements Ce Primary School,"1,093.12"
Manchester City Council,Manchester Leisure,Grant and subscriptions awarded,09-Dec-22,5105848365,Holy Trinity Ce Primary School,"1,280.72"
Manchester City Council,Manchester Leisure,Building Materials for direct delivery,21-Dec-22,5105850159,Wythenshawe Community Farm,700.00
Manchester City Council,Manchester Leisure,Building Materials for direct delivery,22-Dec-22,5105850182,Wythenshawe Community Farm,520.00
Manchester City Council,Manchester Leisure,Professional fees,07-Dec-22,5105847709,Whalley Range Forum,560.00
Manchester City Council,Childrens & Education Services,Grant Payments,09-Dec-22,5105848134,The Fostering Network,"56,000.00"
Manchester City Council,Childrens & Education Services,Gas,06-Dec-22,5105847503,Manchester School Services Limited,"81,813.37"
Manchester City Council,Childrens & Education Services,Private Finance and Public Private partnership initiatives,06-Dec-22,5105847465,Manchester School Services Limited,"434,605.06"
Manchester City Council,Housing Revenue Account,Private Finance and Public Private partnership initiatives,23-Dec-22,5105850511,Grove Village Ltd,"606,872.35"
Manchester City Council,Manchester Leisure,Equipment,08-Dec-22,5105847867,Massey & Harris (Engrg) Ltd,"7,628.00"
Manchester City Council,Manchester Leisure,Equipment,14-Dec-22,5105848909,Massey & Harris (Engrg) Ltd,"7,095.00"
Manchester City Council,Manchester Leisure,Equipment,31-Dec-22,5105850720,Massey & Harris (Engrg) Ltd,"2,838.00"
Manchester City Council,Corporate Services,Grant Payments,06-Dec-22,5105846872,Transoft Solutions (UK) Ltd,590.00
Manchester City Council,Corporate Services,Professional fees,08-Dec-22,5105847199,Turner & Townsend Cost,"7,308.00"
Manchester City Council,Corporate Services,Professional fees,08-Dec-22,5105847200,Turner & Townsend Cost,"6,612.00"
Manchester City Council,Chief Executives,Works and associated costs for Land and Buildings,22-Dec-22,5105848839,Turner & Townsend Cost,"53,644.78"
Manchester City Council,Childrens & Education Services,Payments for services,09-Dec-22,5105846859,Bolton College,"1,369.50"
Manchester City Council,Manchester Leisure,Refuse Collection,22-Dec-22,5105850357,Redgate Holdings Ltd,"9,630.60"
Manchester City Council,Manchester Leisure,Refuse Collection,31-Dec-22,5105850283,Redgate Holdings Ltd,"5,398.72"
Manchester City Council,Adult Social Care,Third party payments relating to Voluntary Organisations,02-Dec-22,5105846997,Talbot House Support Centre,"6,469.08"
Manchester City Council,Adult Social Care,Third party payments relating to Voluntary Organisations,20-Dec-22,5105849789,Talbot House Support Centre,"7,178.51"
Manchester City Council,Adult Social Care,Third party payments relating to Voluntary Organisations,20-Dec-22,5105849790,Talbot House Support Centre,"7,178.51"
Manchester City Council,Adult Social Care,Third party payments relating to Voluntary Organisations,20-Dec-22,5105849812,Talbot House Support Centre,"7,178.51"
Manchester City Council,Adult Social Care,Third party payments relating to Voluntary Organisations,20-Dec-22,5105849811,Talbot House Support Centre,"-6,469.08"
Manchester City Council,Chief Executives,Professional fees,22-Dec-22,5105847002,Marketing Manchester,"27,189.00"
Manchester City Council,Adult Social Care,"Consumable items eg Toilet rolls, soap etc",15-Dec-22,5105849036,Camilla Carpets Ltd,650.00
Manchester City Council,Adult Social Care,"Consumable items eg Toilet rolls, soap etc",16-Dec-22,5105849196,Camilla Carpets Ltd,"1,010.00"
Manchester City Council,Hospitality + Trading Services,Funeral and coroner related services,20-Dec-22,5105849845,G E Robinson & Co Ltd,"4,682.20"
Manchester City Council,Chief Executives,Professional fees,16-Dec-22,5105849137,Greater Manchester Police,"32,250.00"
Manchester City Council,Adult Social Care,Rents,31-Dec-22,5105850816,Jigsaw Homes North,"13,375.00"
Manchester City Council,Adult Social Care,Supporting People Payments,31-Dec-22,5105850816,Jigsaw Homes North,"2,875.00"
Manchester City Council,Manchester Leisure,Grant and subscriptions awarded,13-Dec-22,5105848392,Hideaway Youth Project,"54,586.60"
Manchester City Council,Adult Social Care,Extra Care Sheltd HP,15-Dec-22,5105847645,Premier Care  Ltd,"47,743.03"
Manchester City Council,Adult Social Care,Extra Care Sheltd HP,15-Dec-22,5105847643,Premier Care  Ltd,"29,047.54"
Manchester City Council,Adult Social Care,Extra Care Sheltd HP,15-Dec-22,5105847652,Premier Care  Ltd,"22,635.45"
Manchester City Council,Adult Social Care,Extra Care Sheltd HP,15-Dec-22,5105847641,Premier Care  Ltd,"21,090.37"
Manchester City Council,Adult Social Care,Extra Care Sheltd HP,15-Dec-22,5105847645,Premier Care  Ltd,"1,154.64"
Manchester City Council,Adult Social Care,Extra Care Sheltd HP,15-Dec-22,5105847643,Premier Care  Ltd,702.50
Manchester City Council,Adult Social Care,Extra Care Sheltd HP,15-Dec-22,5105847652,Premier Care  Ltd,547.43
Manchester City Council,Adult Social Care,Extra Care Sheltd HP,15-Dec-22,5105847641,Premier Care  Ltd,510.06
Manchester City Council,Manchester Leisure,Grant and subscriptions awarded,19-Dec-22,5105848067,Trinity House Community Resource Ce,"1,620.00"
Manchester City Council,Childrens & Education Services,Hire of Premises,05-Dec-22,5105847274,Greater Manchester Police Sports &,612.50
Manchester City Council,Childrens & Education Services,Hire of Premises,22-Dec-22,5105850407,Greater Manchester Police Sports &,"1,081.55"
Manchester City Council,Childrens & Education Services,Hire of Premises,22-Dec-22,5105850410,Greater Manchester Police Sports &,987.80
Manchester City Council,Chief Executives,Printing,08-Dec-22,5105847941,Chapel Press Ltd,901.00
Manchester City Council,Chief Executives,Printing,31-Dec-22,5105849556,Chapel Press Ltd,"6,119.00"
Manchester City Council,Chief Executives,Printing,31-Dec-22,5105849557,Chapel Press Ltd,"1,913.00"
Manchester City Council,Chief Executives,Advertising,07-Dec-22,5105847262,Best Asian Media Ltd,"1,200.00"
Manchester City Council,Adult Social Care,Rents,07-Dec-22,5105847626,Amco Management,"32,966.29"
Manchester City Council,Chief Executives,Grant and subscriptions awarded,19-Dec-22,5105847734,Venture Arts Ltd,"3,687.50"
Manchester City Council,Adult Social Care,Third party payments relating to Voluntary Organisations,12-Dec-22,5105848132,Manchester Action On Street Health,"16,520.83"
Manchester City Council,Adult Social Care,Grant and subscriptions awarded,14-Dec-22,5105848753,Manchester Action On Street Health,"6,717.00"
Manchester City Council,Adult Social Care,Professional fees,20-Dec-22,5105849957,Manchester Action On Street Health,"5,845.00"
Manchester City Council,Chief Executives,Works and associated costs for Land and Buildings,23-Dec-22,5105850532,Roger Hannah & Co,"1,408.00"
Manchester City Council,Adult Social Care,Training and Development,15-Dec-22,5105848872,University Of Manchester,"4,000.00"
Manchester City Council,Highways Services,Building Materials for direct delivery,13-Dec-22,5105848571,Viewprint,770.00
Manchester City Council,Manchester Leisure,Vehicle contract hire and leases,09-Dec-22,5105848351,T.H. Horn Ltd,625.00
Manchester City Council,Manchester Leisure,Hire of Equipment,08-Dec-22,5105847836,The Manchester Light & Stage,"1,135.00"
Manchester City Council,Manchester Leisure,Hire of Equipment,22-Dec-22,5105850143,The Manchester Light & Stage,"3,673.40"
Manchester City Council,Manchester Leisure,Hire of Equipment,22-Dec-22,5105850142,The Manchester Light & Stage,"2,611.00"
Manchester City Council,Chief Executives,ICT Sup & Maintnance,22-Dec-22,5105850048,Tharstern Limited,995.00
Manchester City Council,Chief Executives,ICT Sup & Maintnance,22-Dec-22,5105850338,Tharstern Limited,950.00
Manchester City Council,Chief Executives,ICT Sup & Maintnance,22-Dec-22,5105850337,Tharstern Limited,-995.00
Manchester City Council,Highways Services,Grounds Maintenance,02-Dec-22,5105847095,Event Technical Support,986.00
Manchester City Council,Manchester Leisure,Special Event,08-Dec-22,5105847524,Event Technical Support,"10,314.78"
Manchester City Council,Manchester Leisure,Special Event,19-Dec-22,5105849454,Event Technical Support,"1,993.00"
Manchester City Council,Manchester Leisure,Internal Repairs and Maintenance for buildings,20-Dec-22,5105849788,Event Technical Support,"1,294.75"
Manchester City Council,Regeneration Finance,Licences Purchase,22-Dec-22,5105849923,Rushton Electronic Solutions Ltd,692.95
Manchester City Council,Highways Services,Building Materials for direct delivery,05-Dec-22,5105847252,Rosgal Ltd,"1,500.00"
Manchester City Council,Environment and Operations,Construction Works,06-Dec-22,5105847016,Rosgal Ltd,"5,760.92"
Manchester City Council,Environment and Operations,Construction Works,06-Dec-22,5105847434,Rosgal Ltd,"-5,760.92"
Manchester City Council,Highways Services,Payments to Sub-Contractors,07-Dec-22,5105847561,Rosgal Ltd,"4,216.91"
Manchester City Council,Highways Services,Payments to Sub-Contractors,07-Dec-22,5105847565,Rosgal Ltd,"-4,216.91"
Manchester City Council,Environment and Operations,Construction Works,09-Dec-22,5105847849,Rosgal Ltd,"-6,874.11"
Manchester City Council,Highways Services,Payments to Sub-Contractors,09-Dec-22,5105847753,Rosgal Ltd,"-1,817.04"
Manchester City Council,Highways Services,Payments to Sub-Contractors,09-Dec-22,5105847757,Rosgal Ltd,"-16,164.96"
Manchester City Council,Highways Services,Payments to Sub-Contractors,12-Dec-22,5105846942,Rosgal Ltd,"47,979.74"
Manchester City Council,Highways Services,Payments to Sub-Contractors,16-Dec-22,5105847521,Rosgal Ltd,"11,590.09"
Manchester City Council,Highways Services,Payments to Sub-Contractors,16-Dec-22,5105847566,Rosgal Ltd,"4,216.91"
Manchester City Council,Highways Services,Payments to Sub-Contractors,16-Dec-22,5105847563,Rosgal Ltd,"3,341.82"
Manchester City Council,Highways Services,Payments to Sub-Contractors,16-Dec-22,5105847526,Rosgal Ltd,"2,879.32"
Manchester City Council,Highways Services,Payments to Sub-Contractors,16-Dec-22,5105847528,Rosgal Ltd,"1,690.49"
Manchester City Council,Environment and Operations,Construction Works,19-Dec-22,5105848087,Rosgal Ltd,"49,917.61"
Manchester City Council,Highways Services,Payments to Sub-Contractors,19-Dec-22,5105848074,Rosgal Ltd,"7,800.00"
Manchester City Council,Highways Services,Payments to Sub-Contractors,19-Dec-22,5105848076,Rosgal Ltd,"7,800.00"
Manchester City Council,Highways Services,Payments to Sub-Contractors,19-Dec-22,5105848089,Rosgal Ltd,"7,800.00"
Manchester City Council,Highways Services,Payments to Sub-Contractors,19-Dec-22,5105848092,Rosgal Ltd,"7,800.00"
Manchester City Council,Highways Services,Payments to Sub-Contractors,19-Dec-22,5105848101,Rosgal Ltd,"1,329.00"
Manchester City Council,Highways Services,Payments to Sub-Contractors,19-Dec-22,5105848079,Rosgal Ltd,"1,147.50"
Manchester City Council,Highways Services,Payments to Sub-Contractors,19-Dec-22,5105848080,Rosgal Ltd,"1,147.50"
Manchester City Council,Highways Services,Payments to Sub-Contractors,19-Dec-22,5105848077,Rosgal Ltd,500.00
Manchester City Council,Highways Services,Payments to Sub-Contractors,19-Dec-22,5105848078,Rosgal Ltd,500.00
Manchester City Council,Regeneration Finance,Professional fees,19-Dec-22,5105848094,Rosgal Ltd,"2,960.00"
Manchester City Council,Highways Services,Payments to Sub-Contractors,20-Dec-22,5105847800,Rosgal Ltd,"105,575.32"
Manchester City Council,Highways Services,Building Materials for direct delivery,22-Dec-22,5105848805,Rosgal Ltd,"3,375.00"
Manchester City Council,Highways Services,Payments to Sub-Contractors,22-Dec-22,5105847841,Rosgal Ltd,"41,037.86"
Manchester City Council,Highways Services,Payments to Sub-Contractors,22-Dec-22,5105847796,Rosgal Ltd,"36,147.52"
Manchester City Council,Highways Services,Payments to Sub-Contractors,22-Dec-22,5105847794,Rosgal Ltd,"5,206.36"
Manchester City Council,Highways Services,Payments to Sub-Contractors,22-Dec-22,5105847547,Rosgal Ltd,"3,647.49"
Manchester City Council,Highways Services,Payments to Sub-Contractors,22-Dec-22,5105847798,Rosgal Ltd,"3,291.40"
Manchester City Council,Highways Services,Payments to Sub-Contractors,22-Dec-22,5105847797,Rosgal Ltd,"2,525.25"
Manchester City Council,Highways Services,Payments to Sub-Contractors,22-Dec-22,5105847795,Rosgal Ltd,"1,637.89"
Manchester City Council,Highways Services,Payments to Sub-Contractors,22-Dec-22,5105848086,Rosgal Ltd,"-23,162.40"
Manchester City Council,Environment and Operations,Construction Works,23-Dec-22,5105850570,Rosgal Ltd,"-150,000.00"
Manchester City Council,Highways Services,Payments to Sub-Contractors,23-Dec-22,5105849864,Rosgal Ltd,"7,800.00"
Manchester City Council,Environment and Operations,Construction Works,31-Dec-22,5105850568,Rosgal Ltd,"36,000.00"
Manchester City Council,Environment and Operations,Construction Works,31-Dec-22,5105850569,Rosgal Ltd,"35,216.31"
Manchester City Council,Environment and Operations,Construction Works,31-Dec-22,5105848900,Rosgal Ltd,"147,339.60"
Manchester City Council,Environment and Operations,Construction Works,31-Dec-22,5105847148,Rosgal Ltd,"12,690.00"
Manchester City Council,Environment and Operations,Construction Works,31-Dec-22,5105850122,Rosgal Ltd,"2,660.40"
Manchester City Council,Environment and Operations,Construction Works,31-Dec-22,5105850121,Rosgal Ltd,"22,168.78"
Manchester City Council,Environment and Operations,Construction Works,31-Dec-22,5105849128,Rosgal Ltd,"91,452.45"
Manchester City Council,Environment and Operations,Construction Works,31-Dec-22,5105848897,Rosgal Ltd,"27,000.00"
Manchester City Council,Environment and Operations,Construction Works,31-Dec-22,5105847032,Rosgal Ltd,"21,901.40"
Manchester City Council,Environment and Operations,Construction Works,31-Dec-22,5105850110,Rosgal Ltd,"19,740.00"
Manchester City Council,Environment and Operations,Construction Works,31-Dec-22,5105847015,Rosgal Ltd,"13,593.28"
Manchester City Council,Environment and Operations,Construction Works,31-Dec-22,5105850069,Rosgal Ltd,"5,861.19"
Manchester City Council,Environment and Operations,Construction Works,31-Dec-22,5105847479,Rosgal Ltd,"5,760.92"
Manchester City Council,Environment and Operations,Construction Works,31-Dec-22,5105850235,Rosgal Ltd,"3,177.42"
Manchester City Council,Environment and Operations,Construction Works,31-Dec-22,5105847018,Rosgal Ltd,"1,833.00"
Manchester City Council,Environment and Operations,Construction Works,31-Dec-22,5105847033,Rosgal Ltd,"1,058.25"
Manchester City Council,Highways Services,Payments to Sub-Contractors,31-Dec-22,5105850566,Rosgal Ltd,500.00
Manchester City Council,Highways Services,Payments to Sub-Contractors,31-Dec-22,5105846939,Rosgal Ltd,"80,000.00"
Manchester City Council,Highways Services,Payments to Sub-Contractors,31-Dec-22,5105849461,Rosgal Ltd,"37,366.38"
Manchester City Council,Highways Services,Payments to Sub-Contractors,31-Dec-22,5105848810,Rosgal Ltd,"18,661.69"
Manchester City Council,Highways Services,Payments to Sub-Contractors,31-Dec-22,5105847394,Rosgal Ltd,"4,735.00"
Manchester City Council,Highways Services,Payments to Sub-Contractors,31-Dec-22,5105847569,Rosgal Ltd,"4,279.25"
Manchester City Council,Regeneration Finance,Professional fees,06-Dec-22,5105847480,"Knight, Kavanagh & Page","13,947.50"
Manchester City Council,Highways Services,Purchase of stores for re-distribution,22-Dec-22,5105850292,Manchester Safety Services Ltd,"2,083.65"
Manchester City Council,Childrens & Education Services,Supporting People Payments,02-Dec-22,5105847071,Child Action Northwest,"1,049.63"
Manchester City Council,Adult Social Care,Supporting People Payments,09-Dec-22,5105847987,Child Action Northwest,"3,788.22"
Manchester City Council,Childrens & Education Services,Supporting People Payments,09-Dec-22,5105847987,Child Action Northwest,"2,543.16"
Manchester City Council,Childrens & Education Services,Supporting People Payments,31-Dec-22,5105850658,Child Action Northwest,"2,918.44"
Manchester City Council,Adult Social Care,Supporting People Payments,31-Dec-22,5105850658,Child Action Northwest,"2,463.67"
Manchester City Council,Childrens & Education Services,Third party payments relating to Voluntary Organisations,19-Dec-22,5105849570,TiPP Centre,"4,500.00"
Manchester City Council,Chief Executives,Equipment,23-Dec-22,5105850232,Quadient UK Ltd (Consumables),"4,064.93"
Manchester City Council,Hospitality + Trading Services,Electricity,01-Dec-22,1907949262,Npower,"2,121.01"
Manchester City Council,Adult Social Care,Professional fees,09-Dec-22,5105848136,The Depaul Trust,"100,000.00"
Manchester City Council,Manchester Leisure,General Office expenses,20-Dec-22,5105849939,Community Security (North West),950.00
Manchester City Council,Manchester Leisure,Security,20-Dec-22,5105849935,Community Security (North West),"14,150.00"
Manchester City Council,Manchester Leisure,Security,20-Dec-22,5105849317,Community Security (North West),"4,044.71"
Manchester City Council,Manchester Leisure,Security,20-Dec-22,5105849324,Community Security (North West),"4,044.71"
Manchester City Council,Regeneration Finance,Security,20-Dec-22,5105849937,Community Security (North West),"1,850.00"
Manchester City Council,Regeneration Finance,Security,20-Dec-22,5105849951,Community Security (North West),610.00
Manchester City Council,Manchester Leisure,Payments to Sub-Contractors,31-Dec-22,5105849936,Community Security (North West),"4,107.72"
Manchester City Council,Adult Social Care,Professional fees,09-Dec-22,5105847959,Bury M.B.C.,945.00
Manchester City Council,Chief Executives,Court Fees,20-Dec-22,1907966094,Liberata,"15,722.00"
Manchester City Council,Childrens & Education Services,Court Fees,20-Dec-22,1907966099,Liberata,"10,590.00"
Manchester City Council,Childrens & Education Services,Court Fees,20-Dec-22,1907966098,Liberata,"9,485.00"
Manchester City Council,Childrens & Education Services,Court Fees,20-Dec-22,1907966093,Liberata,"6,995.00"
Manchester City Council,Childrens & Education Services,Court Fees,20-Dec-22,1907966095,Liberata,"5,560.00"
Manchester City Council,Chief Executives,Court Fees,20-Dec-22,1907966100,Liberata,"2,140.00"
Manchester City Council,Chief Executives,Printing,22-Dec-22,5105847249,Browns CTP Ltd,"6,143.00"
Manchester City Council,Chief Executives,Printing,22-Dec-22,5105847248,Browns CTP Ltd,713.00
Manchester City Council,Chief Executives,Printing,23-Dec-22,5105850107,Browns CTP Ltd,"1,448.21"
Manchester City Council,Chief Executives,Printing,23-Dec-22,5105850108,Browns CTP Ltd,785.00
Manchester City Council,Regeneration Finance,Third party payments relating to Voluntary Organisations,31-Dec-22,5105850716,Back On Track,"25,716.00"
Manchester City Council,Hospitality + Trading Services,Vehicle Costs,16-Dec-22,5105849400,Verizon Connect UK Ltd,"1,398.60"
Manchester City Council,Highways Services,Legal Fees,13-Dec-22,1907957623,JMW Solicitors,"3,324.00"
Manchester City Council,Highways Services,Professional fees,13-Dec-22,1907957623,JMW Solicitors,"9,000.00"
Manchester City Council,Chief Executives,Advertising,16-Dec-22,5105849542,Ilex Tutorial College,735.00
Manchester City Council,Childrens & Education Services,Transport Coach Hire,31-Dec-22,5105848769,David'S Handy Rider,"4,070.00"
Manchester City Council,Childrens & Education Services,Transport Coach Hire,31-Dec-22,5105849243,David'S Handy Rider,"2,220.00"
Manchester City Council,Manchester Leisure,Works and associated costs for Land and Buildings,07-Dec-22,5105847627,Kier Construction North and,"2,295,880.29"
Manchester City Council,Manchester Leisure,Works and associated costs for Land and Buildings,19-Dec-22,5105849488,Kier Construction North and,"1,755,288.72"
Manchester City Council,Regeneration Finance,Training and Development,02-Dec-22,5105847089,Trinity College London,696.00
Manchester City Council,Regeneration Finance,Training and Development,09-Dec-22,5105847980,Trinity College London,"3,015.00"
Manchester City Council,Manchester Leisure,Goods purchased for resale in Council outlets,14-Dec-22,5105848855,Cornflower Ltd,654.00
Manchester City Council,General Fund,BRP Top Up Payments,15-Dec-22,1907606852,DCLG,"2,802,619.00"
Manchester City Council,Manchester Leisure,Equipment,14-Dec-22,5105849075,Victoria & Albert Museum,"1,722.50"
Manchester City Council,Chief Executives,Works and associated costs for Land and Buildings,07-Dec-22,5105847713,Bt Repayments And Claims Group,"2,788.02"
Manchester City Council,Environment and Operations,Construction Works,20-Dec-22,5105849756,Bt Repayments And Claims Group,"16,661.14"
Manchester City Council,Chief Executives,Counsel Costs,07-Dec-22,1907952036,Redacted Personal Information,850.00
Manchester City Council,Adult Social Care,Grant and subscriptions awarded,22-Dec-22,5105850375,The Booth Centre,"22,500.00"
Manchester City Council,Adult Social Care,Grant and subscriptions awarded,22-Dec-22,5105850377,The Booth Centre,"10,121.00"
Manchester City Council,Adult Social Care,Third party payments relating to Voluntary Organisations,23-Dec-22,5105850560,The Booth Centre,"2,853.00"
Manchester City Council,Housing Revenue Account,Works and associated costs for Land and Buildings,12-Dec-22,5105848364,Rowlinson Constructions Ltd,"809,216.71"
Manchester City Council,Regeneration Finance,"Consumable items eg Toilet rolls, soap etc",09-Dec-22,5105847226,Wilkinson Bros,"1,180.00"
Manchester City Council,Regeneration Finance,"Consumable items eg Toilet rolls, soap etc",09-Dec-22,5105847227,Wilkinson Bros,860.00
Manchester City Council,Highways Services,Legal Fees,02-Dec-22,1907949124,Department For Work & Pensions,743.00
Manchester City Council,Regeneration Finance,Compensation Payments,09-Dec-22,1907955534,Department For Work & Pensions,"1,782.00"
Manchester City Council,Hospitality + Trading Services,Compensation Payments,14-Dec-22,1907955786,Department For Work & Pensions,"3,136.82"
Manchester City Council,Manchester Leisure,Responsive Repairs Work,15-Dec-22,1907949134,Department For Work & Pensions,744.00
Manchester City Council,Highways Services,Compensation Payments,19-Dec-22,1907964164,Department For Work & Pensions,744.00
Manchester City Council,Highways Services,Professional fees,21-Dec-22,1907968680,Department For Work & Pensions,725.00
Manchester City Council,Manchester Leisure,Counsel Costs,15-Dec-22,1907950204,Redacted Personal Information,"1,000.00"
Manchester City Council,Chief Executives,Advertising,19-Dec-22,5105849673,Ocean Media Group Ltd,995.00
Manchester City Council,Manchester Leisure,Cash Collection,31-Dec-22,5105850282,Trafford M.B.C.,"7,851.26"
Manchester City Council,Manchester Leisure,Cash Collection,31-Dec-22,5105850490,Trafford M.B.C.,"6,768.12"
Manchester City Council,Chief Executives,Professional fees,07-Dec-22,5105847572,Warwickshire County Council,"1,058.17"
Manchester City Council,Chief Executives,Professional fees,07-Dec-22,5105847571,Warwickshire County Council,782.76
Manchester City Council,Chief Executives,Legal Fees,08-Dec-22,5105847812,Warwickshire County Council,"7,172.55"
Manchester City Council,Chief Executives,Legal Fees,08-Dec-22,5105847814,Warwickshire County Council,"6,795.81"
Manchester City Council,Chief Executives,Professional fees,08-Dec-22,5105847882,Warwickshire County Council,"2,375.61"
Manchester City Council,Chief Executives,Professional fees,08-Dec-22,5105847883,Warwickshire County Council,"1,740.41"
Manchester City Council,Chief Executives,Professional fees,08-Dec-22,5105847897,Warwickshire County Council,"1,446.52"
Manchester City Council,Chief Executives,Professional fees,08-Dec-22,5105847900,Warwickshire County Council,"1,272.87"
Manchester City Council,Chief Executives,Professional fees,08-Dec-22,5105847898,Warwickshire County Council,"1,073.87"
Manchester City Council,Chief Executives,Professional fees,08-Dec-22,5105847884,Warwickshire County Council,942.75
Manchester City Council,Chief Executives,Legal Fees,09-Dec-22,5105848254,Warwickshire County Council,"1,863.84"
Manchester City Council,Chief Executives,Legal Fees,12-Dec-22,5105848477,Warwickshire County Council,"1,903.58"
Manchester City Council,Chief Executives,Legal Fees,12-Dec-22,5105848501,Warwickshire County Council,"1,740.41"
Manchester City Council,Chief Executives,Legal Fees,12-Dec-22,5105848473,Warwickshire County Council,"1,733.78"
Manchester City Council,Chief Executives,Legal Fees,12-Dec-22,5105848508,Warwickshire County Council,"1,546.54"
Manchester City Council,Chief Executives,Legal Fees,12-Dec-22,5105848478,Warwickshire County Council,"1,468.51"
Manchester City Council,Chief Executives,Legal Fees,12-Dec-22,5105848474,Warwickshire County Council,949.22
Manchester City Council,Chief Executives,Legal Fees,12-Dec-22,5105848489,Warwickshire County Council,657.05
Manchester City Council,Chief Executives,Legal Fees,12-Dec-22,5105848475,Warwickshire County Council,620.29
Manchester City Council,Chief Executives,Legal Fees,12-Dec-22,5105848476,Warwickshire County Council,587.47
Manchester City Council,Chief Executives,Professional fees,12-Dec-22,5105847901,Warwickshire County Council,"1,863.84"
Manchester City Council,Chief Executives,Professional fees,12-Dec-22,5105848488,Warwickshire County Council,"-1,740.41"
Manchester City Council,Chief Executives,Professional fees,12-Dec-22,5105848253,Warwickshire County Council,"-1,863.84"
Manchester City Council,Chief Executives,Legal Fees,13-Dec-22,5105848567,Warwickshire County Council,702.89
Manchester City Council,Chief Executives,Professional fees,13-Dec-22,5105848627,Warwickshire County Council,"1,965.34"
Manchester City Council,Chief Executives,Legal Fees,14-Dec-22,5105848840,Warwickshire County Council,935.58
Manchester City Council,Childrens & Education Services,Legal Fees,15-Dec-22,5105849115,Warwickshire County Council,"2,212.47"
Manchester City Council,Chief Executives,Legal Fees,31-Dec-22,5105848706,Warwickshire County Council,"1,091.30"
Manchester City Council,Chief Executives,Legal Fees,31-Dec-22,5105848838,Warwickshire County Council,913.15
Manchester City Council,Childrens & Education Services,Transport Coach Hire,14-Dec-22,5105848541,Exec-Coach Services,"2,940.00"
Manchester City Council,Childrens & Education Services,Transport Coach Hire,31-Dec-22,5105850832,Exec-Coach Services,"1,680.00"
Manchester City Council,Chief Executives,I T Provision,09-Dec-22,5105848045,Insight Direct (Uk) Ltd,"5,274.90"
Manchester City Council,Chief Executives,Licences Purchase,12-Dec-22,5105847011,Insight Direct (Uk) Ltd,"26,240.74"
Manchester City Council,Chief Executives,Vehicle Plant Furniture and Equipment,12-Dec-22,5105848111,Insight Direct (Uk) Ltd,"22,171.80"
Manchester City Council,Adult Social Care,I T Provision,14-Dec-22,5105846926,Insight Direct (Uk) Ltd,804.77
Manchester City Council,Chief Executives,Telecoms Equip,19-Dec-22,5105847492,Insight Direct (Uk) Ltd,"1,572.48"
Manchester City Council,Chief Executives,Telecoms Equip,19-Dec-22,5105849571,Insight Direct (Uk) Ltd,"-1,572.48"
Manchester City Council,Chief Executives,I T Provision,22-Dec-22,5105849709,Insight Direct (Uk) Ltd,839.07
Manchester City Council,Chief Executives,I T Provision,31-Dec-22,5105850768,Insight Direct (Uk) Ltd,"10,389.04"
Manchester City Council,Chief Executives,I T Provision,31-Dec-22,5105850769,Insight Direct (Uk) Ltd,542.80
Manchester City Council,Chief Executives,I T Provision,31-Dec-22,5105849791,Insight Direct (Uk) Ltd,"40,798.50"
Manchester City Council,Chief Executives,I T Provision,31-Dec-22,5105849485,Insight Direct (Uk) Ltd,"67,389.00"
Manchester City Council,Chief Executives,I T Provision,31-Dec-22,5105848195,Insight Direct (Uk) Ltd,"49,465.50"
Manchester City Council,Chief Executives,Vehicle Plant Furniture and Equipment,31-Dec-22,5105850791,Insight Direct (Uk) Ltd,"3,966.72"
Manchester City Council,Corporate Services,ClothsUniformLaundry,20-Dec-22,5105849777,Longworth Ltd,"-1,100.52"
Manchester City Council,Corporate Services,ClothsUniformLaundry,31-Dec-22,5105849843,Longworth Ltd,"1,100.52"
Manchester City Council,Hospitality + Trading Services,Vehicle Hire Costs,21-Dec-22,5105850185,Manchester Van Hire Ltd,"41,500.65"
Manchester City Council,Chief Executives,Vehicle Hire Costs,22-Dec-22,5105850470,Manchester Van Hire Ltd,642.42
Manchester City Council,Chief Executives,Vehicle Hire Costs,22-Dec-22,5105850474,Manchester Van Hire Ltd,642.42
Manchester City Council,Hospitality + Trading Services,Vehicle Repairs,22-Dec-22,5105850472,Manchester Van Hire Ltd,"2,708.58"
Manchester City Council,Hospitality + Trading Services,Vehicle Repairs,22-Dec-22,5105850471,Manchester Van Hire Ltd,"2,530.60"
Manchester City Council,Housing Revenue Account,Council Dwelling Adaptations,20-Dec-22,5105849744,Pts Plumbing Trade Supplies,"1,581.86"
Manchester City Council,Housing Revenue Account,Council Dwelling Adaptations,20-Dec-22,5105849744,Pts Plumbing Trade Supplies,"1,017.98"
Manchester City Council,Housing Revenue Account,Council Dwelling Adaptations,23-Dec-22,5105850479,Pts Plumbing Trade Supplies,"4,824.35"
Manchester City Council,Housing Revenue Account,Council Dwelling Adaptations,23-Dec-22,5105850476,Pts Plumbing Trade Supplies,"1,857.93"
Manchester City Council,Housing Revenue Account,Council Dwelling Adaptations,31-Dec-22,5105850226,Pts Plumbing Trade Supplies,629.71
Manchester City Council,Housing Revenue Account,Council Dwelling Adaptations,31-Dec-22,5105850225,Pts Plumbing Trade Supplies,548.36
Manchester City Council,Hospitality + Trading Services,Vehicle Hire Costs,23-Dec-22,5105850096,Winners Contract Hire Ltd,"67,208.00"
Manchester City Council,Regeneration Finance,Stationery,31-Dec-22,5105848584,Yorkshire Purchasing,780.46
Manchester City Council,Manchester Leisure,I T Provision,08-Dec-22,5105847253,T.I.S. Limited,550.00
Manchester City Council,Adult Social Care,Personal needs of client,23-Dec-22,5105850359,Bennett Workplace Solutions Ltd,"5,703.00"
Manchester City Council,Childrens & Education Services,Transport Coach Hire,31-Dec-22,5105850358,Bennett Workplace Solutions Ltd,710.00
Manchester City Council,Regeneration Finance,Gas,15-Dec-22,1907963783,Corona Energy Ltd,"143,870.65"
Manchester City Council,Housing Revenue Account,Gas,15-Dec-22,1907963784,Corona Energy Ltd,"50,271.26"
Manchester City Council,Manchester Leisure,Gas,15-Dec-22,1907963727,Corona Energy Ltd,"45,115.22"
Manchester City Council,Manchester Leisure,Gas,15-Dec-22,1907963787,Corona Energy Ltd,"39,577.45"
Manchester City Council,Housing Revenue Account,Gas,15-Dec-22,1907963599,Corona Energy Ltd,"38,837.43"
Manchester City Council,Manchester Leisure,Gas,15-Dec-22,1907963605,Corona Energy Ltd,"25,907.39"
Manchester City Council,Manchester Leisure,Gas,15-Dec-22,1907963554,Corona Energy Ltd,"25,140.87"
Manchester City Council,Manchester Leisure,Gas,15-Dec-22,1907963694,Corona Energy Ltd,"24,878.02"
Manchester City Council,Manchester Leisure,Gas,15-Dec-22,1907963715,Corona Energy Ltd,"23,992.39"
Manchester City Council,Manchester Leisure,Gas,15-Dec-22,1907963668,Corona Energy Ltd,"20,414.60"
Manchester City Council,Regeneration Finance,Gas,15-Dec-22,1907963634,Corona Energy Ltd,"18,583.52"
Manchester City Council,Regeneration Finance,Gas,15-Dec-22,1907963739,Corona Energy Ltd,"15,848.56"
Manchester City Council,Hospitality + Trading Services,Gas,15-Dec-22,1907963576,Corona Energy Ltd,"15,183.96"
Manchester City Council,Manchester Leisure,Gas,15-Dec-22,1907963733,Corona Energy Ltd,"13,476.62"
Manchester City Council,Regeneration Finance,Gas,15-Dec-22,1907963542,Corona Energy Ltd,"12,476.59"
Manchester City Council,Manchester Leisure,Gas,15-Dec-22,1907963703,Corona Energy Ltd,"9,539.34"
Manchester City Council,Regeneration Finance,Gas,15-Dec-22,1907963809,Corona Energy Ltd,"8,619.11"
Manchester City Council,Manchester Leisure,Gas,15-Dec-22,1907963711,Corona Energy Ltd,"7,449.94"
Manchester City Council,Manchester Leisure,Gas,15-Dec-22,1907963716,Corona Energy Ltd,"7,305.40"
Manchester City Council,Adult Social Care,Gas,15-Dec-22,1907963621,Corona Energy Ltd,"7,291.48"
Manchester City Council,Regeneration Finance,Gas,15-Dec-22,1907963646,Corona Energy Ltd,"7,268.40"
Manchester City Council,Manchester Leisure,Gas,15-Dec-22,1907963552,Corona Energy Ltd,"7,161.34"
Manchester City Council,Manchester Leisure,Gas,15-Dec-22,1907963653,Corona Energy Ltd,"6,891.61"
Manchester City Council,Regeneration Finance,Gas,15-Dec-22,1907963665,Corona Energy Ltd,"6,723.23"
Manchester City Council,Manchester Leisure,Gas,15-Dec-22,1907963701,Corona Energy Ltd,"6,556.36"
Manchester City Council,Regeneration Finance,Gas,15-Dec-22,1907963638,Corona Energy Ltd,"6,473.15"
Manchester City Council,Manchester Leisure,Gas,15-Dec-22,1907963712,Corona Energy Ltd,"6,216.48"
Manchester City Council,Manchester Leisure,Gas,15-Dec-22,1907963672,Corona Energy Ltd,"6,026.13"
Manchester City Council,Manchester Leisure,Gas,15-Dec-22,1907963655,Corona Energy Ltd,"5,871.13"
Manchester City Council,Manchester Leisure,Gas,15-Dec-22,1907963759,Corona Energy Ltd,"5,683.50"
Manchester City Council,Manchester Leisure,Gas,15-Dec-22,1907963670,Corona Energy Ltd,"5,656.22"
Manchester City Council,Manchester Leisure,Gas,15-Dec-22,1907963578,Corona Energy Ltd,"5,642.37"
Manchester City Council,Regeneration Finance,Gas,15-Dec-22,1907963647,Corona Energy Ltd,"5,579.74"
Manchester City Council,Manchester Leisure,Gas,15-Dec-22,1907963754,Corona Energy Ltd,"5,445.57"
Manchester City Council,Manchester Leisure,Gas,15-Dec-22,1907963760,Corona Energy Ltd,"5,033.41"
Manchester City Council,Regeneration Finance,Gas,15-Dec-22,1907963652,Corona Energy Ltd,"4,786.32"
Manchester City Council,Manchester Leisure,Gas,15-Dec-22,1907963755,Corona Energy Ltd,"4,773.14"
Manchester City Council,Adult Social Care,Gas,15-Dec-22,1907963685,Corona Energy Ltd,"4,695.83"
Manchester City Council,Manchester Leisure,Gas,15-Dec-22,1907963607,Corona Energy Ltd,"4,613.22"
Manchester City Council,Manchester Leisure,Gas,15-Dec-22,1907963553,Corona Energy Ltd,"4,598.64"
Manchester City Council,Regeneration Finance,Gas,15-Dec-22,1907963636,Corona Energy Ltd,"4,436.61"
Manchester City Council,Manchester Leisure,Gas,15-Dec-22,1907963569,Corona Energy Ltd,"4,259.75"
Manchester City Council,Regeneration Finance,Gas,15-Dec-22,1907963782,Corona Energy Ltd,"4,131.42"
Manchester City Council,Regeneration Finance,Gas,15-Dec-22,1907963667,Corona Energy Ltd,"4,108.14"
Manchester City Council,Regeneration Finance,Gas,15-Dec-22,1907963657,Corona Energy Ltd,"4,066.47"
Manchester City Council,Regeneration Finance,Gas,15-Dec-22,1907963629,Corona Energy Ltd,"3,963.71"
Manchester City Council,Regeneration Finance,Gas,15-Dec-22,1907963752,Corona Energy Ltd,"3,908.52"
Manchester City Council,Manchester Leisure,Gas,15-Dec-22,1907963571,Corona Energy Ltd,"3,692.79"
Manchester City Council,Regeneration Finance,Gas,15-Dec-22,1907963635,Corona Energy Ltd,"3,652.83"
Manchester City Council,Regeneration Finance,Gas,15-Dec-22,1907963586,Corona Energy Ltd,"3,590.01"
Manchester City Council,Regeneration Finance,Gas,15-Dec-22,1907963749,Corona Energy Ltd,"3,571.10"
Manchester City Council,Regeneration Finance,Gas,15-Dec-22,1907963600,Corona Energy Ltd,"3,531.65"
Manchester City Council,Adult Social Care,Gas,15-Dec-22,1907963745,Corona Energy Ltd,"3,487.83"
Manchester City Council,Manchester Leisure,Gas,15-Dec-22,1907963722,Corona Energy Ltd,"3,449.83"
Manchester City Council,Hospitality + Trading Services,Gas,15-Dec-22,1907963557,Corona Energy Ltd,"3,428.32"
Manchester City Council,Regeneration Finance,Gas,15-Dec-22,1907963799,Corona Energy Ltd,"3,156.51"
Manchester City Council,Regeneration Finance,Gas,15-Dec-22,1907963642,Corona Energy Ltd,"3,129.43"
Manchester City Council,Regeneration Finance,Gas,15-Dec-22,1907963547,Corona Energy Ltd,"3,128.95"
Manchester City Council,Childrens & Education Services,Gas,15-Dec-22,1907963714,Corona Energy Ltd,"3,003.38"
Manchester City Council,Adult Social Care,Gas,15-Dec-22,1907963796,Corona Energy Ltd,"2,916.01"
Manchester City Council,Regeneration Finance,Gas,15-Dec-22,1907963637,Corona Energy Ltd,"2,688.99"
Manchester City Council,Manchester Leisure,Gas,15-Dec-22,1907963780,Corona Energy Ltd,"2,546.86"
Manchester City Council,Manchester Leisure,Gas,15-Dec-22,1907963630,Corona Energy Ltd,"2,503.16"
Manchester City Council,Childrens & Education Services,Gas,15-Dec-22,1907963587,Corona Energy Ltd,"2,438.89"
Manchester City Council,Manchester Leisure,Gas,15-Dec-22,1907963793,Corona Energy Ltd,"2,411.18"
Manchester City Council,Manchester Leisure,Gas,15-Dec-22,1907963545,Corona Energy Ltd,"2,372.54"
Manchester City Council,Childrens & Education Services,Gas,15-Dec-22,1907963801,Corona Energy Ltd,"2,312.15"
Manchester City Council,Hospitality + Trading Services,Gas,15-Dec-22,1907963633,Corona Energy Ltd,"2,307.47"
Manchester City Council,Regeneration Finance,Gas,15-Dec-22,1907963744,Corona Energy Ltd,"2,263.70"
Manchester City Council,Regeneration Finance,Gas,15-Dec-22,1907963656,Corona Energy Ltd,"2,219.02"
Manchester City Council,Manchester Leisure,Gas,15-Dec-22,1907963726,Corona Energy Ltd,"2,214.80"
Manchester City Council,Regeneration Finance,Gas,15-Dec-22,1907963781,Corona Energy Ltd,"2,178.35"
Manchester City Council,Regeneration Finance,Gas,15-Dec-22,1907963643,Corona Energy Ltd,"2,052.28"
Manchester City Council,Regeneration Finance,Gas,15-Dec-22,1907963713,Corona Energy Ltd,"1,994.54"
Manchester City Council,Hospitality + Trading Services,Gas,15-Dec-22,1907963556,Corona Energy Ltd,"1,948.30"
Manchester City Council,Regeneration Finance,Gas,15-Dec-22,1907963660,Corona Energy Ltd,"1,946.18"
Manchester City Council,Childrens & Education Services,Gas,15-Dec-22,1907963762,Corona Energy Ltd,"1,944.77"
Manchester City Council,Childrens & Education Services,Gas,15-Dec-22,1907963746,Corona Energy Ltd,"1,929.66"
Manchester City Council,Hospitality + Trading Services,Gas,15-Dec-22,1907963765,Corona Energy Ltd,"1,925.67"
Manchester City Council,Childrens & Education Services,Gas,15-Dec-22,1907963573,Corona Energy Ltd,"1,900.20"
Manchester City Council,Manchester Leisure,Gas,15-Dec-22,1907963584,Corona Energy Ltd,"1,890.44"
Manchester City Council,Adult Social Care,Gas,15-Dec-22,1907963734,Corona Energy Ltd,"1,871.17"
Manchester City Council,Regeneration Finance,Gas,15-Dec-22,1907963757,Corona Energy Ltd,"1,860.12"
Manchester City Council,Housing Revenue Account,Gas,15-Dec-22,1907963750,Corona Energy Ltd,"1,847.62"
Manchester City Council,Regeneration Finance,Gas,15-Dec-22,1907963756,Corona Energy Ltd,"1,818.38"
Manchester City Council,Regeneration Finance,Gas,15-Dec-22,1907963644,Corona Energy Ltd,"1,786.83"
Manchester City Council,Manchester Leisure,Gas,15-Dec-22,1907963604,Corona Energy Ltd,"1,784.22"
Manchester City Council,Regeneration Finance,Gas,15-Dec-22,1907963737,Corona Energy Ltd,"1,718.24"
Manchester City Council,Adult Social Care,Gas,15-Dec-22,1907963567,Corona Energy Ltd,"1,712.96"
Manchester City Council,Regeneration Finance,Gas,15-Dec-22,1907963585,Corona Energy Ltd,"1,687.99"
Manchester City Council,Regeneration Finance,Gas,15-Dec-22,1907963779,Corona Energy Ltd,"1,659.60"
Manchester City Council,Adult Social Care,Gas,15-Dec-22,1907963581,Corona Energy Ltd,"1,606.70"
Manchester City Council,Manchester Leisure,Gas,15-Dec-22,1907963570,Corona Energy Ltd,"1,604.05"
Manchester City Council,Corporate Services,Gas,15-Dec-22,1907963539,Corona Energy Ltd,"1,599.42"
Manchester City Council,Regeneration Finance,Gas,15-Dec-22,1907963648,Corona Energy Ltd,"1,577.90"
Manchester City Council,Regeneration Finance,Gas,15-Dec-22,1907963682,Corona Energy Ltd,"1,526.35"
Manchester City Council,Childrens & Education Services,Gas,15-Dec-22,1907963559,Corona Energy Ltd,"1,525.42"
Manchester City Council,Adult Social Care,Gas,15-Dec-22,1907963528,Corona Energy Ltd,"1,522.36"
Manchester City Council,Adult Social Care,Gas,15-Dec-22,1907963527,Corona Energy Ltd,"1,515.68"
Manchester City Council,Manchester Leisure,Gas,15-Dec-22,1907963709,Corona Energy Ltd,"1,505.67"
Manchester City Council,Childrens & Education Services,Gas,15-Dec-22,1907963666,Corona Energy Ltd,"1,488.11"
Manchester City Council,Adult Social Care,Gas,15-Dec-22,1907963579,Corona Energy Ltd,"1,479.26"
Manchester City Council,Manchester Leisure,Gas,15-Dec-22,1907963555,Corona Energy Ltd,"1,424.83"
Manchester City Council,Adult Social Care,Gas,15-Dec-22,1907963540,Corona Energy Ltd,"1,386.97"
Manchester City Council,Regeneration Finance,Gas,15-Dec-22,1907963663,Corona Energy Ltd,"1,381.07"
Manchester City Council,Manchester Leisure,Gas,15-Dec-22,1907963794,Corona Energy Ltd,"1,330.29"
Manchester City Council,Adult Social Care,Gas,15-Dec-22,1907963558,Corona Energy Ltd,"1,282.24"
Manchester City Council,Manchester Leisure,Gas,15-Dec-22,1907963725,Corona Energy Ltd,"1,281.36"
Manchester City Council,Regeneration Finance,Gas,15-Dec-22,1907963732,Corona Energy Ltd,"1,279.56"
Manchester City Council,Manchester Leisure,Gas,15-Dec-22,1907963572,Corona Energy Ltd,"1,278.92"
Manchester City Council,Adult Social Care,Gas,15-Dec-22,1907963792,Corona Energy Ltd,"1,270.76"
Manchester City Council,Childrens & Education Services,Gas,15-Dec-22,1907963800,Corona Energy Ltd,"1,270.64"
Manchester City Council,Adult Social Care,Gas,15-Dec-22,1907963577,Corona Energy Ltd,"1,266.20"
Manchester City Council,Childrens & Education Services,Gas,15-Dec-22,1907963544,Corona Energy Ltd,"1,237.68"
Manchester City Council,Childrens & Education Services,Gas,15-Dec-22,1907963708,Corona Energy Ltd,"1,225.83"
Manchester City Council,Regeneration Finance,Gas,15-Dec-22,1907963538,Corona Energy Ltd,"1,222.06"
Manchester City Council,Manchester Leisure,Gas,15-Dec-22,1907963719,Corona Energy Ltd,"1,204.93"
Manchester City Council,Regeneration Finance,Gas,15-Dec-22,1907963797,Corona Energy Ltd,"1,183.25"
Manchester City Council,Regeneration Finance,Gas,15-Dec-22,1907963771,Corona Energy Ltd,"1,178.74"
Manchester City Council,Adult Social Care,Gas,15-Dec-22,1907963622,Corona Energy Ltd,"1,174.99"
Manchester City Council,Manchester Leisure,Gas,15-Dec-22,1907963549,Corona Energy Ltd,"1,094.29"
Manchester City Council,Adult Social Care,Gas,15-Dec-22,1907963738,Corona Energy Ltd,"1,091.28"
Manchester City Council,Regeneration Finance,Gas,15-Dec-22,1907963795,Corona Energy Ltd,"1,083.57"
Manchester City Council,Manchester Leisure,Gas,15-Dec-22,1907963728,Corona Energy Ltd,"1,077.59"
Manchester City Council,Manchester Leisure,Gas,15-Dec-22,1907963729,Corona Energy Ltd,"1,068.98"
Manchester City Council,Childrens & Education Services,Gas,15-Dec-22,1907963641,Corona Energy Ltd,"1,050.90"
Manchester City Council,Regeneration Finance,Gas,15-Dec-22,1907963692,Corona Energy Ltd,"1,047.04"
Manchester City Council,Adult Social Care,Gas,15-Dec-22,1907963541,Corona Energy Ltd,"1,038.14"
Manchester City Council,Childrens & Education Services,Gas,15-Dec-22,1907963583,Corona Energy Ltd,937.20
Manchester City Council,Adult Social Care,Gas,15-Dec-22,1907963789,Corona Energy Ltd,937.17
Manchester City Council,Regeneration Finance,Gas,15-Dec-22,1907963731,Corona Energy Ltd,936.00
Manchester City Council,Regeneration Finance,Gas,15-Dec-22,1907963689,Corona Energy Ltd,906.28
Manchester City Council,Adult Social Care,Gas,15-Dec-22,1907963530,Corona Energy Ltd,904.67
Manchester City Council,Manchester Leisure,Gas,15-Dec-22,1907963730,Corona Energy Ltd,901.49
Manchester City Council,Regeneration Finance,Gas,15-Dec-22,1907963803,Corona Energy Ltd,900.66
Manchester City Council,Regeneration Finance,Gas,15-Dec-22,1907963798,Corona Energy Ltd,841.80
Manchester City Council,Regeneration Finance,Gas,15-Dec-22,1907963700,Corona Energy Ltd,816.85
Manchester City Council,Adult Social Care,Gas,15-Dec-22,1907963568,Corona Energy Ltd,815.70
Manchester City Council,Regeneration Finance,Gas,15-Dec-22,1907963687,Corona Energy Ltd,807.91
Manchester City Council,Adult Social Care,Gas,15-Dec-22,1907963775,Corona Energy Ltd,806.07
Manchester City Council,Manchester Leisure,Gas,15-Dec-22,1907963723,Corona Energy Ltd,771.21
Manchester City Council,Regeneration Finance,Gas,15-Dec-22,1907963811,Corona Energy Ltd,746.91
Manchester City Council,Manchester Leisure,Gas,15-Dec-22,1907963550,Corona Energy Ltd,737.85
Manchester City Council,Childrens & Education Services,Gas,15-Dec-22,1907963551,Corona Energy Ltd,731.83
Manchester City Council,Regeneration Finance,Gas,15-Dec-22,1907963623,Corona Energy Ltd,719.66
Manchester City Council,Adult Social Care,Gas,15-Dec-22,1907963702,Corona Energy Ltd,718.07
Manchester City Council,Hospitality + Trading Services,Gas,15-Dec-22,1907963608,Corona Energy Ltd,711.87
Manchester City Council,Regeneration Finance,Gas,15-Dec-22,1907963548,Corona Energy Ltd,706.32
Manchester City Council,Hospitality + Trading Services,Gas,15-Dec-22,1907963768,Corona Energy Ltd,696.31
Manchester City Council,Regeneration Finance,Gas,15-Dec-22,1907963603,Corona Energy Ltd,655.84
Manchester City Council,Regeneration Finance,Gas,15-Dec-22,1907963598,Corona Energy Ltd,647.19
Manchester City Council,Childrens & Education Services,Gas,15-Dec-22,1907963704,Corona Energy Ltd,618.91
Manchester City Council,Manchester Leisure,Gas,15-Dec-22,1907963718,Corona Energy Ltd,590.42
Manchester City Council,Regeneration Finance,Gas,15-Dec-22,1907963582,Corona Energy Ltd,562.49
Manchester City Council,Childrens & Education Services,Gas,15-Dec-22,1907963626,Corona Energy Ltd,554.55
Manchester City Council,Regeneration Finance,Gas,15-Dec-22,1907963628,Corona Energy Ltd,536.09
Manchester City Council,Regeneration Finance,Gas,15-Dec-22,1907963772,Corona Energy Ltd,505.81
Manchester City Council,Regeneration Finance,Gas,15-Dec-22,1700143014,Corona Energy Ltd,-506.83
Manchester City Council,Adult Social Care,Gas,15-Dec-22,1700142897,Corona Energy Ltd,-519.77
Manchester City Council,Childrens & Education Services,Gas,15-Dec-22,1700142833,Corona Energy Ltd,-534.00
Manchester City Council,Childrens & Education Services,Gas,15-Dec-22,1700142933,Corona Energy Ltd,-534.96
Manchester City Council,Manchester Leisure,Gas,15-Dec-22,1700142952,Corona Energy Ltd,-541.62
Manchester City Council,Childrens & Education Services,Gas,15-Dec-22,1700142848,Corona Energy Ltd,-546.13
Manchester City Council,Hospitality + Trading Services,Gas,15-Dec-22,1700142845,Corona Energy Ltd,-551.90
Manchester City Council,Adult Social Care,Gas,15-Dec-22,1700142867,Corona Energy Ltd,-561.90
Manchester City Council,Adult Social Care,Gas,15-Dec-22,1700143009,Corona Energy Ltd,-567.99
Manchester City Council,Manchester Leisure,Gas,15-Dec-22,1700142962,Corona Energy Ltd,-572.44
Manchester City Council,Manchester Leisure,Gas,15-Dec-22,1700142961,Corona Energy Ltd,-590.42
Manchester City Council,Manchester Leisure,Gas,15-Dec-22,1700142859,Corona Energy Ltd,-592.93
Manchester City Council,Manchester Leisure,Gas,15-Dec-22,1700142844,Corona Energy Ltd,-608.61
Manchester City Council,Adult Social Care,Gas,15-Dec-22,1700142871,Corona Energy Ltd,-616.05
Manchester City Council,Adult Social Care,Gas,15-Dec-22,1700142829,Corona Energy Ltd,-617.99
Manchester City Council,Regeneration Finance,Gas,15-Dec-22,1700142917,Corona Energy Ltd,-628.62
Manchester City Council,Regeneration Finance,Gas,15-Dec-22,1700143029,Corona Energy Ltd,-630.91
Manchester City Council,Regeneration Finance,Gas,15-Dec-22,1700142938,Corona Energy Ltd,-638.52
Manchester City Council,Adult Social Care,Gas,15-Dec-22,1700142869,Corona Energy Ltd,-656.53
Manchester City Council,Adult Social Care,Gas,15-Dec-22,1700142819,Corona Energy Ltd,-671.23
Manchester City Council,Adult Social Care,Gas,15-Dec-22,1700142818,Corona Energy Ltd,-671.47
Manchester City Council,Regeneration Finance,Gas,15-Dec-22,1700143000,Corona Energy Ltd,-690.14
Manchester City Council,Corporate Services,Gas,15-Dec-22,1700142828,Corona Energy Ltd,-697.23
Manchester City Council,Manchester Leisure,Gas,15-Dec-22,1700142886,Corona Energy Ltd,-698.80
Manchester City Council,Regeneration Finance,Gas,15-Dec-22,1700142875,Corona Energy Ltd,-702.46
Manchester City Council,Regeneration Finance,Gas,15-Dec-22,1700142972,Corona Energy Ltd,-706.85
Manchester City Council,Hospitality + Trading Services,Gas,15-Dec-22,1700142994,Corona Energy Ltd,-712.00
Manchester City Council,Regeneration Finance,Gas,15-Dec-22,1700143027,Corona Energy Ltd,-719.42
Manchester City Council,Regeneration Finance,Gas,15-Dec-22,1700142913,Corona Energy Ltd,-738.36
Manchester City Council,Adult Social Care,Gas,15-Dec-22,1700142856,Corona Energy Ltd,-768.39
Manchester City Council,Regeneration Finance,Gas,15-Dec-22,1700142927,Corona Energy Ltd,-788.90
Manchester City Council,Childrens & Education Services,Gas,15-Dec-22,1700142865,Corona Energy Ltd,-791.15
Manchester City Council,Manchester Leisure,Gas,15-Dec-22,1700142874,Corona Energy Ltd,-800.92
Manchester City Council,Childrens & Education Services,Gas,15-Dec-22,1700142979,Corona Energy Ltd,-802.37
Manchester City Council,Childrens & Education Services,Gas,15-Dec-22,1700142993,Corona Energy Ltd,-812.30
Manchester City Council,Regeneration Finance,Gas,15-Dec-22,1700142987,Corona Energy Ltd,-813.45
Manchester City Council,Housing Revenue Account,Gas,15-Dec-22,1700142981,Corona Energy Ltd,-822.65
Manchester City Council,Regeneration Finance,Gas,15-Dec-22,1700142956,Corona Energy Ltd,-825.26
Manchester City Council,Adult Social Care,Gas,15-Dec-22,1700142971,Corona Energy Ltd,-827.75
Manchester City Council,Regeneration Finance,Gas,15-Dec-22,1700142912,Corona Energy Ltd,-867.63
Manchester City Council,Regeneration Finance,Gas,15-Dec-22,1700143002,Corona Energy Ltd,-907.69
Manchester City Council,Regeneration Finance,Gas,15-Dec-22,1700142923,Corona Energy Ltd,-920.36
Manchester City Council,Regeneration Finance,Gas,15-Dec-22,1700142977,Corona Energy Ltd,-950.80
Manchester City Council,Hospitality + Trading Services,Gas,15-Dec-22,1700142904,Corona Energy Ltd,-960.37
Manchester City Council,Childrens & Education Services,Gas,15-Dec-22,1700143018,Corona Energy Ltd,-962.02
Manchester City Council,Manchester Leisure,Gas,15-Dec-22,1700142834,Corona Energy Ltd,-979.74
Manchester City Council,Manchester Leisure,Gas,15-Dec-22,1700143010,Corona Energy Ltd,-988.13
Manchester City Council,Regeneration Finance,Gas,15-Dec-22,1700143025,Corona Energy Ltd,"-1,029.61"
Manchester City Council,Childrens & Education Services,Gas,15-Dec-22,1700142877,Corona Energy Ltd,"-1,032.49"
Manchester City Council,Manchester Leisure,Gas,15-Dec-22,1700143001,Corona Energy Ltd,"-1,040.60"
Manchester City Council,Manchester Leisure,Gas,15-Dec-22,1700142966,Corona Energy Ltd,"-1,074.11"
Manchester City Council,Manchester Leisure,Gas,15-Dec-22,1700142963,Corona Energy Ltd,"-1,124.57"
Manchester City Council,Manchester Leisure,Gas,15-Dec-22,1700142903,Corona Energy Ltd,"-1,135.92"
Manchester City Council,Regeneration Finance,Gas,15-Dec-22,1700142908,Corona Energy Ltd,"-1,136.66"
Manchester City Council,Regeneration Finance,Gas,15-Dec-22,1700142836,Corona Energy Ltd,"-1,207.20"
Manchester City Council,Regeneration Finance,Gas,15-Dec-22,1700142911,Corona Energy Ltd,"-1,266.40"
Manchester City Council,Childrens & Education Services,Gas,15-Dec-22,1700142957,Corona Energy Ltd,"-1,267.02"
Manchester City Council,Adult Social Care,Gas,15-Dec-22,1700143013,Corona Energy Ltd,"-1,311.47"
Manchester City Council,Regeneration Finance,Gas,15-Dec-22,1700143016,Corona Energy Ltd,"-1,323.75"
Manchester City Council,Hospitality + Trading Services,Gas,15-Dec-22,1700142846,Corona Energy Ltd,"-1,474.96"
Manchester City Council,Regeneration Finance,Gas,15-Dec-22,1700142884,Corona Energy Ltd,"-1,500.08"
Manchester City Council,Regeneration Finance,Gas,15-Dec-22,1700142876,Corona Energy Ltd,"-1,507.45"
Manchester City Council,Regeneration Finance,Gas,15-Dec-22,1700142906,Corona Energy Ltd,"-1,526.04"
Manchester City Council,Regeneration Finance,Gas,15-Dec-22,1700142980,Corona Energy Ltd,"-1,526.36"
Manchester City Council,Manchester Leisure,Gas,15-Dec-22,1700142860,Corona Energy Ltd,"-1,552.11"
Manchester City Council,Adult Social Care,Gas,15-Dec-22,1700142978,Corona Energy Ltd,"-1,574.26"
Manchester City Council,Regeneration Finance,Gas,15-Dec-22,1700143021,Corona Energy Ltd,"-1,628.80"
Manchester City Council,Regeneration Finance,Gas,15-Dec-22,1700142983,Corona Energy Ltd,"-1,636.98"
Manchester City Council,Regeneration Finance,Gas,15-Dec-22,1700142934,Corona Energy Ltd,"-1,725.63"
Manchester City Council,Regeneration Finance,Gas,15-Dec-22,1700143003,Corona Energy Ltd,"-1,743.07"
Manchester City Council,Regeneration Finance,Gas,15-Dec-22,1700142902,Corona Energy Ltd,"-1,782.79"
Manchester City Council,Regeneration Finance,Gas,15-Dec-22,1700142924,Corona Energy Ltd,"-1,808.01"
Manchester City Council,Manchester Leisure,Gas,15-Dec-22,1700142858,Corona Energy Ltd,"-1,827.16"
Manchester City Council,Regeneration Finance,Gas,15-Dec-22,1700142907,Corona Energy Ltd,"-1,885.92"
Manchester City Council,Regeneration Finance,Gas,15-Dec-22,1700143019,Corona Energy Ltd,"-2,022.64"
Manchester City Council,Regeneration Finance,Gas,15-Dec-22,1700142919,Corona Energy Ltd,"-2,053.30"
Manchester City Council,Manchester Leisure,Gas,15-Dec-22,1700142842,Corona Energy Ltd,"-2,059.12"
Manchester City Council,Manchester Leisure,Gas,15-Dec-22,1700142889,Corona Energy Ltd,"-2,073.45"
Manchester City Council,Adult Social Care,Gas,15-Dec-22,1700142939,Corona Energy Ltd,"-2,118.57"
Manchester City Council,Manchester Leisure,Gas,15-Dec-22,1700142986,Corona Energy Ltd,"-2,178.81"
Manchester City Council,Manchester Leisure,Gas,15-Dec-22,1700142991,Corona Energy Ltd,"-2,267.19"
Manchester City Council,Manchester Leisure,Gas,15-Dec-22,1700142936,Corona Energy Ltd,"-2,341.77"
Manchester City Council,Regeneration Finance,Gas,15-Dec-22,1700142932,Corona Energy Ltd,"-2,439.43"
Manchester City Council,Regeneration Finance,Gas,15-Dec-22,1700142916,Corona Energy Ltd,"-2,468.37"
Manchester City Council,Manchester Leisure,Gas,15-Dec-22,1700142985,Corona Energy Ltd,"-2,469.00"
Manchester City Council,Manchester Leisure,Gas,15-Dec-22,1700142868,Corona Energy Ltd,"-2,502.38"
Manchester City Council,Manchester Leisure,Gas,15-Dec-22,1700142955,Corona Energy Ltd,"-2,549.82"
Manchester City Council,Manchester Leisure,Gas,15-Dec-22,1700142990,Corona Energy Ltd,"-2,573.25"
Manchester City Council,Manchester Leisure,Gas,15-Dec-22,1700142922,Corona Energy Ltd,"-2,689.39"
Manchester City Council,Manchester Leisure,Gas,15-Dec-22,1700142946,Corona Energy Ltd,"-2,698.72"
Manchester City Council,Manchester Leisure,Gas,15-Dec-22,1700142937,Corona Energy Ltd,"-2,726.13"
Manchester City Council,Regeneration Finance,Gas,15-Dec-22,1700142909,Corona Energy Ltd,"-2,788.26"
Manchester City Council,Manchester Leisure,Gas,15-Dec-22,1700142959,Corona Energy Ltd,"-2,939.85"
Manchester City Council,Adult Social Care,Gas,15-Dec-22,1700142896,Corona Energy Ltd,"-3,027.51"
Manchester City Council,Regeneration Finance,Gas,15-Dec-22,1700142915,Corona Energy Ltd,"-3,136.68"
Manchester City Council,Manchester Leisure,Gas,15-Dec-22,1700142920,Corona Energy Ltd,"-3,155.92"
Manchester City Council,Manchester Leisure,Gas,15-Dec-22,1700142954,Corona Energy Ltd,"-3,264.03"
Manchester City Council,Manchester Leisure,Gas,15-Dec-22,1700142841,Corona Energy Ltd,"-3,276.12"
Manchester City Council,Regeneration Finance,Gas,15-Dec-22,1700143023,Corona Energy Ltd,"-3,286.29"
Manchester City Council,Manchester Leisure,Gas,15-Dec-22,1700142948,Corona Energy Ltd,"-3,886.01"
Manchester City Council,Regeneration Finance,Gas,15-Dec-22,1700142831,Corona Energy Ltd,"-5,299.91"
Manchester City Council,Manchester Leisure,Gas,15-Dec-22,1700142970,Corona Energy Ltd,"-5,850.30"
Manchester City Council,Hospitality + Trading Services,Gas,15-Dec-22,1700142866,Corona Energy Ltd,"-6,477.22"
Manchester City Council,Regeneration Finance,Gas,15-Dec-22,1700142974,Corona Energy Ltd,"-6,921.15"
Manchester City Council,Regeneration Finance,Gas,15-Dec-22,1700142905,Corona Energy Ltd,"-8,104.70"
Manchester City Council,Manchester Leisure,Gas,15-Dec-22,1700142935,Corona Energy Ltd,"-9,207.98"
Manchester City Council,Manchester Leisure,Gas,15-Dec-22,1700142943,Corona Energy Ltd,"-10,092.65"
Manchester City Council,Manchester Leisure,Gas,15-Dec-22,1700142965,Corona Energy Ltd,"-10,163.44"
Manchester City Council,Manchester Leisure,Gas,15-Dec-22,1700142958,Corona Energy Ltd,"-10,263.12"
Manchester City Council,Manchester Leisure,Gas,15-Dec-22,1700142843,Corona Energy Ltd,"-11,072.78"
Manchester City Council,Manchester Leisure,Gas,15-Dec-22,1700142887,Corona Energy Ltd,"-11,096.20"
Manchester City Council,Housing Revenue Account,Gas,15-Dec-22,1700142883,Corona Energy Ltd,"-18,141.75"
Manchester City Council,Manchester Leisure,Gas,15-Dec-22,1700143006,Corona Energy Ltd,"-18,554.20"
Manchester City Council,Housing Revenue Account,Gas,15-Dec-22,1700143005,Corona Energy Ltd,"-23,590.20"
Manchester City Council,Regeneration Finance,Gas,15-Dec-22,1700143004,Corona Energy Ltd,"-56,260.52"
Manchester City Council,Manchester Leisure,Gas,15-Dec-22,1700142863,Corona Energy Ltd,"-66,580.21"
Manchester City Council,Chief Executives,Agency staff provision,06-Dec-22,5105847595,Hays Personnel,"24,789.81"
Manchester City Council,Chief Executives,Agency staff provision,22-Dec-22,5105850458,Hays Personnel,"15,351.96"
Manchester City Council,Childrens & Education Services,Equipment,05-Dec-22,1907951612,Amazon Co.Uk,505.71
Manchester City Council,Chief Executives,Courier Costs,08-Dec-22,5105847895,Speed Couriers (Northern) Ltd,696.14
Manchester City Council,Chief Executives,Courier Costs,15-Dec-22,5105849221,Speed Couriers (Northern) Ltd,649.50
Manchester City Council,Chief Executives,Courier Costs,19-Dec-22,5105849700,Speed Couriers (Northern) Ltd,533.74
Manchester City Council,General Fund,Levies,13-Dec-22,1907606875,GMCA,"3,755,400.00"
Manchester City Council,Collection Fund,Ctax Preceptr Pymnts,16-Dec-22,1907607430,GMCA,"3,733,897.00"
Manchester City Council,Collection Fund,Bus Rate - Preceptor,16-Dec-22,1907607430,GMCA,"162,768.00"
Manchester City Council,Manchester Leisure,Levies,16-Dec-22,1907741172,GMCA,"2,496,000.00"
Manchester City Council,Chief Executives,AGMA Contributions,21-Dec-22,5105849806,GMCA,"1,640,000.00"
Manchester City Council,Environment and Operations,Construction Works,31-Dec-22,5105850622,GMCA,"14,387.96"
Manchester City Council,Environment and Operations,Construction Works,31-Dec-22,5105848317,GMCA,"2,000.00"
Manchester City Council,General Fund,Levies,28-Dec-22,1907607457,Environment Agency,"61,886.37"
Manchester City Council,Corporate Services,Travel Season TLS,08-Dec-22,5105847772,Stagecoach Manchester,635.00
Manchester City Council,Corporate Services,Travel Season TLS,12-Dec-22,5105847758,Stagecoach Manchester,635.00
Manchester City Council,Corporate Services,Travel Season TLS,12-Dec-22,5105847760,Stagecoach Manchester,635.00
Manchester City Council,Corporate Services,Travel Season TLS,21-Dec-22,5105849577,Stagecoach Manchester,635.00
Manchester City Council,Corporate Services,Travel Season TLS,21-Dec-22,5105849578,Stagecoach Manchester,635.00
Manchester City Council,Regeneration Finance,Grounds Maintenance,02-Dec-22,5105847097,Countrywide Grounds Maintenance Ltd,595.00
Manchester City Council,Regeneration Finance,Grounds Maintenance,22-Dec-22,5105850237,Countrywide Grounds Maintenance Ltd,695.00
Manchester City Council,Corporate Services,Travel Season TLS,21-Dec-22,5105850097,Northern Trains Limited,"1,780.50"
Manchester City Council,Corporate Services,Travel Season TLS,21-Dec-22,5105850098,Northern Trains Limited,"-1,780.50"
Manchester City Council,Corporate Services,Travel Season TLS,31-Dec-22,5105850155,Northern Trains Limited,"1,629.90"
Manchester City Council,Corporate Services,Travel Season TLS,05-Dec-22,5105847044,First Bus,636.50
Manchester City Council,Chief Executives,Printing,22-Dec-22,5105847806,Tangent Print service,588.00
Manchester City Council,Adult Social Care,Equipment,31-Dec-22,5105850276,Invacare Limited,"8,657.00"
Manchester City Council,Childrens & Education Services,Payments for services,05-Dec-22,5105846829,Teaching Personnel Ltd,760.00
Manchester City Council,Childrens & Education Services,Payments for services,12-Dec-22,5105847975,Teaching Personnel Ltd,760.00
Manchester City Council,Childrens & Education Services,Payments for services,12-Dec-22,5105848447,Teaching Personnel Ltd,760.00
Manchester City Council,Childrens & Education Services,Payments for services,31-Dec-22,5105847837,Teaching Personnel Ltd,760.00
Manchester City Council,Adult Social Care,Extra Care Sheltd HP,31-Dec-22,5105847007,Sevacare (U K ) lTD,"36,586.81"
Manchester City Council,Adult Social Care,Extra Care Sheltd HP,31-Dec-22,5105847007,Sevacare (U K ) lTD,889.33
Manchester City Council,Manchester Leisure,Professional fees,13-Dec-22,5105848614,Serco Limited,892.50
Manchester City Council,Manchester Leisure,Training and Development,31-Dec-22,5105850045,Serco Limited,"1,002.00"
Manchester City Council,Manchester Leisure,Library Materials Acquisition,15-Dec-22,1907957601,Nelson Microfilm Ltd,"1,500.00"
Manchester City Council,Chief Executives,Advertising,19-Dec-22,5105849718,Guardian News and Media Limited,"4,533.75"
Manchester City Council,Manchester Leisure,I T Provision,22-Dec-22,5105850287,M247 UK Ltd,554.04
Manchester City Council,Manchester Leisure,ICT Hardware,22-Dec-22,5105850288,M247 UK Ltd,575.98
Manchester City Council,Manchester Leisure,ICT Hardware,22-Dec-22,5105850289,M247 UK Ltd,575.98
Manchester City Council,Childrens & Education Services,Third party payments to other Local Authorities,14-Dec-22,5105849063,Ashton On Mersey High School,"1,684.00"
Manchester City Council,Hospitality + Trading Services,Hire of Machinery,09-Dec-22,5105848350,Fast Hire UK,"9,535.00"
Manchester City Council,Regeneration Finance,Third party payments relating to Voluntary Organisations,13-Dec-22,5105848591,Proper Job Theatre company,"2,144.00"
Manchester City Council,Housing Revenue Account,Council Dwelling Adaptations,15-Dec-22,5105849278,Manchester Working Ltd,"221,018.96"
Manchester City Council,Manchester Leisure,Equipment,15-Dec-22,5105849099,Sun Leisure Ltd,"2,156.80"
Manchester City Council,Manchester Leisure,Equipment,15-Dec-22,5105849096,Sun Leisure Ltd,"-2,246.68"
Manchester City Council,Childrens & Education Services,Professional fees,16-Dec-22,5105849380,Cellmark,832.50
Manchester City Council,Childrens & Education Services,Professional fees,20-Dec-22,5105849746,Cellmark,504.00
Manchester City Council,Childrens & Education Services,"Consumable items eg Toilet rolls, soap etc",21-Dec-22,5105850090,Cellmark,500.00
Manchester City Council,Adult Social Care,Hire of Premises,21-Dec-22,5105850012,Radisson Edwardian Manchester Hotel,"4,750.00"
Manchester City Council,Manchester Leisure,Rents,01-Dec-22,1907942453,Colliers International (Client A/C),"361,683.72"
Manchester City Council,Adult Social Care,Bed & Breakfast Acc,07-Dec-22,5105847625,Redacted Personal Information,"25,536.00"
Manchester City Council,Adult Social Care,Bed & Breakfast Acc,08-Dec-22,5105847839,Redacted Personal Information,"12,208.00"
Manchester City Council,Adult Social Care,Bed & Breakfast Acc,14-Dec-22,5105848901,Redacted Personal Information,"25,548.00"
Manchester City Council,Adult Social Care,Bed & Breakfast Acc,14-Dec-22,5105848842,Redacted Personal Information,"12,208.00"
Manchester City Council,Adult Social Care,Bed & Breakfast Acc,20-Dec-22,5105849992,Redacted Personal Information,"25,868.00"
Manchester City Council,Adult Social Care,Bed & Breakfast Acc,21-Dec-22,5105850113,Redacted Personal Information,"12,270.00"
Manchester City Council,Adult Social Care,Bed & Breakfast Acc,21-Dec-22,5105850013,Redacted Personal Information,"-12,116.00"
Manchester City Council,Adult Social Care,Bed & Breakfast Acc,23-Dec-22,5105850616,Redacted Personal Information,"25,868.00"
Manchester City Council,Adult Social Care,Bed & Breakfast Acc,23-Dec-22,5105850587,Redacted Personal Information,"12,116.00"
Manchester City Council,Adult Social Care,Bed & Breakfast Acc,23-Dec-22,5105850588,Redacted Personal Information,"-12,116.00"
Manchester City Council,Manchester Leisure,Works and associated costs for Land and Buildings,09-Dec-22,5105847714,MRM Street Furniture Ltd,"5,905.00"
Manchester City Council,Chief Executives,ICT Sup & Maintnance,06-Dec-22,5105846967,Finastra,690.00
Manchester City Council,Childrens & Education Services,Contract Cleaning External,13-Dec-22,1907957620,Family Action,"1,650.84"
Manchester City Council,Childrens & Education Services,Third party payments to other Local Authorities,13-Dec-22,1907957620,Family Action,"1,703.64"
Manchester City Council,Childrens & Education Services,Third party payments relating to Voluntary Organisations,31-Dec-22,5105848895,Family Action,"147,827.23"
Manchester City Council,Adult Social Care,Equipment,20-Dec-22,5105849720,Bentley Fielden Ltd,979.00
Manchester City Council,Corporate Services,Fees,09-Dec-22,1907940514,Newlyn Plc,"18,295.90"
Manchester City Council,Corporate Services,Fees,09-Dec-22,1907939766,Newlyn Plc,"11,603.37"
Manchester City Council,Corporate Services,Fees,09-Dec-22,1907940513,Newlyn Plc,"11,393.96"
Manchester City Council,Corporate Services,Fees,09-Dec-22,1907940515,Newlyn Plc,"11,041.29"
Manchester City Council,Corporate Services,Fees,09-Dec-22,1907939767,Newlyn Plc,"9,828.30"
Manchester City Council,Corporate Services,Fees,09-Dec-22,1907939768,Newlyn Plc,"9,230.13"
Manchester City Council,Corporate Services,Fees,09-Dec-22,1907939765,Newlyn Plc,"7,866.19"
Manchester City Council,Corporate Services,Fees,09-Dec-22,1907939765,Newlyn Plc,"-7,866.19"
Manchester City Council,Corporate Services,Fees,09-Dec-22,1907939768,Newlyn Plc,"-9,230.13"
Manchester City Council,Corporate Services,Fees,09-Dec-22,1907939767,Newlyn Plc,"-9,828.30"
Manchester City Council,Corporate Services,Fees,09-Dec-22,1907940515,Newlyn Plc,"-11,041.29"
Manchester City Council,Corporate Services,Fees,09-Dec-22,1907940513,Newlyn Plc,"-11,393.96"
Manchester City Council,Corporate Services,Fees,09-Dec-22,1907939766,Newlyn Plc,"-11,603.37"
Manchester City Council,Corporate Services,Fees,09-Dec-22,1907940514,Newlyn Plc,"-18,295.90"
Manchester City Council,Corporate Services,Fees,20-Dec-22,1907961816,Newlyn Plc,"22,073.55"
Manchester City Council,Corporate Services,Fees,20-Dec-22,1907961816,Newlyn Plc,"-22,073.55"
Manchester City Council,Corporate Services,HH Support Fund,05-Dec-22,1907951599,Manchester Alliance For,"100,000.00"
Manchester City Council,Chief Executives,Works and associated costs for Land and Buildings,09-Dec-22,5105848180,Faithful & Gould Ltd,"11,160.00"
Manchester City Council,Corporate Services,Works and associated costs for Land and Buildings,12-Dec-22,5105848393,Faithful & Gould Ltd,"37,000.00"
Manchester City Council,Corporate Services,Works and associated costs for Land and Buildings,12-Dec-22,5105848391,Faithful & Gould Ltd,"1,034.52"
Manchester City Council,Housing General Fund,Works and associated costs for Land and Buildings,31-Dec-22,5105850248,Faithful & Gould Ltd,"42,247.00"
Manchester City Council,Chief Executives,Works and associated costs for Land and Buildings,31-Dec-22,5105850181,Faithful & Gould Ltd,"38,963.00"
Manchester City Council,Housing General Fund,Building Works,05-Dec-22,1907950786,Hoist & Shower Chair Company,"2,378.00"
Manchester City Council,Housing General Fund,Building Works,05-Dec-22,1907950789,Hoist & Shower Chair Company,"2,633.00"
Manchester City Council,Housing Revenue Account,Council Dwelling Adaptations,05-Dec-22,5105847127,Hoist & Shower Chair Company,"2,475.50"
Manchester City Council,Housing General Fund,Building Works,12-Dec-22,1907950783,Hoist & Shower Chair Company,"2,633.00"
Manchester City Council,Housing General Fund,Building Works,21-Dec-22,1907968652,Hoist & Shower Chair Company,"2,363.00"
Manchester City Council,Housing General Fund,Building Works,21-Dec-22,1907968649,Hoist & Shower Chair Company,"2,698.00"
Manchester City Council,Regeneration Finance,Professional fees,15-Dec-22,5105848590,arc4,"2,265.38"
Manchester City Council,Corporate Services,Transport Taxis,14-Dec-22,1907960764,City Car Club Ltd,"1,847.74"
Manchester City Council,Corporate Services,Transport Taxis,14-Dec-22,1907960766,City Car Club Ltd,"1,319.68"
Manchester City Council,Corporate Services,Transport Taxis,14-Dec-22,1907960807,City Car Club Ltd,"1,205.52"
Manchester City Council,Corporate Services,Transport Taxis,14-Dec-22,1907960809,City Car Club Ltd,884.46
Manchester City Council,Adult Social Care,Third party payments to Health Authority,31-Dec-22,5105847685,NHS Central Manchester CCG,"-163,800.00"
Manchester City Council,Corporate Services,Security,07-Dec-22,5105847510,Taranto Systems Ltd,"2,306.20"
Manchester City Council,Corporate Services,Security,31-Dec-22,5105850761,Taranto Systems Ltd,"2,230.00"
Manchester City Council,Adult Social Care,Rents,09-Dec-22,5105848142,M & Q Properties Management Ltd,"4,802.21"
Manchester City Council,Adult Social Care,Rents,20-Dec-22,5105849925,M & Q Properties Management Ltd,"3,551.88"
Manchester City Council,Adult Social Care,Equipment,05-Dec-22,5105847228,Drive Devilbiss Healthcare Ltd,"4,566.00"
Manchester City Council,Adult Social Care,Equipment,06-Dec-22,5105847254,Drive Devilbiss Healthcare Ltd,"3,042.00"
Manchester City Council,Adult Social Care,Equipment,06-Dec-22,5105847246,Drive Devilbiss Healthcare Ltd,"-3,042.00"
Manchester City Council,Adult Social Care,Equipment,09-Dec-22,5105848226,Drive Devilbiss Healthcare Ltd,"4,217.44"
Manchester City Council,Adult Social Care,Equipment,12-Dec-22,5105848248,Drive Devilbiss Healthcare Ltd,"2,859.12"
Manchester City Council,Adult Social Care,Equipment,16-Dec-22,5105848915,Drive Devilbiss Healthcare Ltd,535.20
Manchester City Council,Adult Social Care,Equipment,22-Dec-22,5105850198,Drive Devilbiss Healthcare Ltd,"1,457.26"
Manchester City Council,Adult Social Care,Equipment,31-Dec-22,5105849375,Drive Devilbiss Healthcare Ltd,"3,494.48"
Manchester City Council,Chief Executives,Agency staff provision,02-Dec-22,5105847025,Capita Resourcing Limited,"4,625.00"
Manchester City Council,Chief Executives,Agency staff provision,02-Dec-22,5105846875,Capita Resourcing Limited,"4,025.00"
Manchester City Council,Chief Executives,Agency staff provision,02-Dec-22,5105846876,Capita Resourcing Limited,"4,025.00"
Manchester City Council,Chief Executives,Agency staff provision,09-Dec-22,5105848042,Capita Resourcing Limited,"4,025.00"
Manchester City Council,Chief Executives,Agency staff provision,16-Dec-22,5105849406,Capita Resourcing Limited,"4,025.00"
Manchester City Council,Chief Executives,Agency staff provision,16-Dec-22,5105849405,Capita Resourcing Limited,925.00
Manchester City Council,Chief Executives,Agency staff provision,21-Dec-22,5105850167,Capita Resourcing Limited,"4,625.00"
Manchester City Council,Chief Executives,Agency staff provision,21-Dec-22,5105850169,Capita Resourcing Limited,"4,025.00"
Manchester City Council,Manchester Leisure,Professional fees,22-Dec-22,5105849011,Sensormatic Solutions,766.77
Manchester City Council,Manchester Leisure,Professional fees,22-Dec-22,5105849018,Sensormatic Solutions,766.77
Manchester City Council,Manchester Leisure,Professional fees,22-Dec-22,5105850228,Sensormatic Solutions,-766.77
Manchester City Council,Manchester Leisure,Professional fees,22-Dec-22,5105850229,Sensormatic Solutions,-766.77
Manchester City Council,Adult Social Care,Legal Fees,06-Dec-22,5105847356,Gray's Inn Square Chambers Ltd,756.24
Manchester City Council,Adult Social Care,Legal Fees,08-Dec-22,5105847886,Gray's Inn Square Chambers Ltd,750.00
Manchester City Council,Adult Social Care,Legal Fees,09-Dec-22,5105848020,Gray's Inn Square Chambers Ltd,"1,000.00"
Manchester City Council,Adult Social Care,Legal Fees,09-Dec-22,5105848019,Gray's Inn Square Chambers Ltd,605.60
Manchester City Council,Adult Social Care,Legal Fees,15-Dec-22,5105849208,Gray's Inn Square Chambers Ltd,893.75
Manchester City Council,Regeneration Finance,Professional fees,07-Dec-22,5105847516,Greater Manchester Ecology Unit,"10,047.00"
Manchester City Council,Corporate Services,Professional fees,31-Dec-22,5105847515,Greater Manchester Ecology Unit,560.00
Manchester City Council,Manchester Leisure,Training and Development,31-Dec-22,5105850703,Stockport HGV Training Centre,681.67
Manchester City Council,Childrens & Education Services,Transport Coach Hire,31-Dec-22,5105849786,Redacted Personal Information,"4,420.00"
Manchester City Council,Childrens & Education Services,Transport Coach Hire,31-Dec-22,5105849787,Redacted Personal Information,"4,200.00"
Manchester City Council,Childrens & Education Services,Vehicle Parts/Spares,31-Dec-22,5105849020,The Windmill Special Need Co Ltd,"1,377.00"
Manchester City Council,Housing Revenue Account,Private Finance and Public Private partnership initiatives,16-Dec-22,5105849467,Renaissance Miles Platting Ltd,"1,444,570.64"
Manchester City Council,Childrens & Education Services,Transport Coach Hire,31-Dec-22,5105847834,Galaxy Transport (Manchester) Ltd,"1,029.60"
